Body,Body name,Date,Transaction number,Amount,Non recoverable VAT included in amount,Supplier name,Supplier ID,Expense area,Fund type,Expense type,Category description
http://thanet.gov.uk/supplierspend,Thanet District Council,08/01/2019,466767,1500,,Canterbury Christ Church University,CAN006,Deputy Chief Executive/S151,Revenue,Services,VARIOUS CATEGORIES
http://thanet.gov.uk/supplierspend,Thanet District Council,08/01/2019,466804,830.7,,Carol Peters,PET003,Dir Ops/Commercial Serv,Revenue,Services,AGENCY PAYMENTS
http://thanet.gov.uk/supplierspend,Thanet District Council,08/01/2019,466811,983.75,,Cipfa Business Ltd,CIP008,Deputy Chief Executive/S151,Revenue,"Print, Stat And Gen Off Exps",FINANCIAL SERVICES
http://thanet.gov.uk/supplierspend,Thanet District Council,08/01/2019,466774,1584.58,,Dennis Eagle Limited,TER011,Dir Ops/Commercial Serv,Revenue,Direct Transport Costs,VEHICLE MANAGEMENT
http://thanet.gov.uk/supplierspend,Thanet District Council,08/01/2019,467026,458.65,,Dennis Eagle Ltd,DEN005,Dir Ops/Commercial Serv,Revenue,Direct Transport Costs,VEHICLE MANAGEMENT
http://thanet.gov.uk/supplierspend,Thanet District Council,08/01/2019,467027,829.36,,Dennis Eagle Ltd,DEN005,Dir Ops/Commercial Serv,Revenue,Direct Transport Costs,VEHICLE MANAGEMENT
http://thanet.gov.uk/supplierspend,Thanet District Council,08/01/2019,467028,920.25,,Dennis Eagle Ltd,DEN005,Dir Ops/Commercial Serv,Revenue,Direct Transport Costs,VEHICLE MANAGEMENT
http://thanet.gov.uk/supplierspend,Thanet District Council,08/01/2019,466990,506.73,,Elec-Sec Ltd,ELE014,Director Of Corp Gov/Mon Off,Revenue,"Repairs,  Alter & Mtce - Build",BUILDING CONSTRUCTION MATERIAL
http://thanet.gov.uk/supplierspend,Thanet District Council,08/01/2019,467038,420,,Florence Court Hotel Ltd,FLO009,Deputy Chief Executive/S151,Revenue,Rents,HOUSING MANAGEMENT
http://thanet.gov.uk/supplierspend,Thanet District Council,08/01/2019,467040,570,,Florence Court Hotel Ltd,FLO009,Deputy Chief Executive/S151,Revenue,Rents,HOUSING MANAGEMENT
http://thanet.gov.uk/supplierspend,Thanet District Council,08/01/2019,467048,480,,Florence Court Hotel Ltd,FLO009,Deputy Chief Executive/S151,Revenue,Rents,HOUSING MANAGEMENT
http://thanet.gov.uk/supplierspend,Thanet District Council,08/01/2019,467034,800,,G & G Forklifts,GGF001,Director of Corporate Resources and S151,Balance Sheet,Other Land And Buildings-Hra,VEHICLE MANAGEMENT
http://thanet.gov.uk/supplierspend,Thanet District Council,08/01/2019,466822,875.54,,Grummant (H & P Services) Ltd,GRU001,Dir Ops/Commercial Serv,Revenue,"Repairs,  Alter & Mtce - Build",CONSTRUCTION-REPAIR AND MAINT
http://thanet.gov.uk/supplierspend,Thanet District Council,08/01/2019,467424,5943.96,,Hodge Jones & Allen Llp,HOD006,Deputy Chief Executive/S151,Revenue,Services,LEGAL SERVICES
http://thanet.gov.uk/supplierspend,Thanet District Council,08/01/2019,466783,1401.5,,Hr Go (Kent) Ltd,HRG001,Dir Ops/Commercial Serv,Revenue,Agency Staff,HUMAN RESOURCES
http://thanet.gov.uk/supplierspend,Thanet District Council,08/01/2019,466785,508.09,,Hr Go (Kent) Ltd,HRG001,Dir Ops/Commercial Serv,Revenue,Agency Staff,HUMAN RESOURCES
http://thanet.gov.uk/supplierspend,Thanet District Council,08/01/2019,467085,1401.5,,Hr Go (Kent) Ltd,HRG001,Dir Ops/Commercial Serv,Revenue,Agency Staff,HUMAN RESOURCES
http://thanet.gov.uk/supplierspend,Thanet District Council,08/01/2019,467423,756.45,,John Gale,GAL001,Director of Corporate Resources and S151,Balance Sheet,Capital Exp-Non Council Assets,GRANTS
http://thanet.gov.uk/supplierspend,Thanet District Council,08/01/2019,467426,654.1,,John Gale,GAL001,Director of Corporate Resources and S151,Balance Sheet,Capital Exp-Non Council Assets,GRANTS
http://thanet.gov.uk/supplierspend,Thanet District Council,08/01/2019,467428,1032.5,,John Gale,GAL001,Director of Corporate Resources and S151,Balance Sheet,Capital Exp-Non Council Assets,GRANTS
http://thanet.gov.uk/supplierspend,Thanet District Council,08/01/2019,466592,1412.52,,Kent County Council (Kcs),KCC003,Deputy Chief Executive/S151,Revenue,Energy Costs,FACILITIES AND MANGEMENT SERV
http://thanet.gov.uk/supplierspend,Thanet District Council,08/01/2019,466600,1685.69,,Kent County Council (Kcs),KCC003,Director Of Corp Gov/Mon Off,Revenue,Energy Costs,FACILITIES AND MANGEMENT SERV
http://thanet.gov.uk/supplierspend,Thanet District Council,08/01/2019,466749,1888.57,,Kent County Council (Kcs),KCC003,Director Of Corp Gov/Mon Off,Revenue,Energy Costs,FACILITIES AND MANGEMENT SERV
http://thanet.gov.uk/supplierspend,Thanet District Council,08/01/2019,466750,2452.61,,Kent County Council (Kcs),KCC003,Dir Ops/Commercial Serv,Revenue,Energy Costs,FACILITIES AND MANGEMENT SERV
http://thanet.gov.uk/supplierspend,Thanet District Council,08/01/2019,466794,18052.07,,Kent County Council (Kcs),KCC003,Director Of Corp Gov/Mon Off,Revenue,Energy Costs,FACILITIES AND MANGEMENT SERV
http://thanet.gov.uk/supplierspend,Thanet District Council,08/01/2019,467012,9502.18,,Kent County Council (Kcs),KCC003,Director Of Corp Gov/Mon Off,Revenue,Energy Costs,FACILITIES AND MANGEMENT SERV
http://thanet.gov.uk/supplierspend,Thanet District Council,08/01/2019,467227,1650,,Km Media Group Limited,KMM001,Dir Ops/Commercial Serv,Revenue,Miscellaneous Expenses,FACILITIES AND MANGEMENT SERV
http://thanet.gov.uk/supplierspend,Thanet District Council,08/01/2019,467052,630.39,,Margate Harbour Arm Ltd,MAR076,Dir Ops/Commercial Serv,Revenue,Services,VARIOUS CATEGORIES
http://thanet.gov.uk/supplierspend,Thanet District Council,08/01/2019,465176,4317.5,,Mears Ltd,MEA003,Director of Corporate Resources and S151,Balance Sheet,Council Dwellings,CONSTRUCTION-REPAIR AND MAINT
http://thanet.gov.uk/supplierspend,Thanet District Council,08/01/2019,466788,820.54,,Mears Ltd,MEA003,Director of Corporate Resources and S151,Balance Sheet,Repairs And Mtce Holding A/C,CONSTRUCTION-REPAIR AND MAINT
http://thanet.gov.uk/supplierspend,Thanet District Council,08/01/2019,466789,6858.57,,Mears Ltd,MEA003,Director of Corporate Resources and S151,Balance Sheet,Repairs And Mtce Holding A/C,CONSTRUCTION-REPAIR AND MAINT
http://thanet.gov.uk/supplierspend,Thanet District Council,08/01/2019,466791,1510.62,,Mears Ltd,MEA003,Director of Corporate Resources and S151,Balance Sheet,Repairs And Mtce Holding A/C,CONSTRUCTION-REPAIR AND MAINT
http://thanet.gov.uk/supplierspend,Thanet District Council,08/01/2019,466792,19854.59,,Mears Ltd,MEA003,Director of Corporate Resources and S151,Balance Sheet,Repairs And Mtce Holding A/C,CONSTRUCTION-REPAIR AND MAINT
http://thanet.gov.uk/supplierspend,Thanet District Council,08/01/2019,466947,3063,,Mears Ltd,MEA003,Director of Corporate Resources and S151,Balance Sheet,Repairs And Mtce Holding A/C,CONSTRUCTION-REPAIR AND MAINT
http://thanet.gov.uk/supplierspend,Thanet District Council,08/01/2019,467049,15519.92,,Mears Ltd,MEA003,Director of Corporate Resources and S151,Balance Sheet,Repairs And Mtce Holding A/C,CONSTRUCTION-REPAIR AND MAINT
http://thanet.gov.uk/supplierspend,Thanet District Council,08/01/2019,466761,450,,Monitor Pest Control Ltd,MON018,Director of Corporate Resources and S151,Balance Sheet,Repairs And Mtce Holding A/C,ENVIRONMENTAL SERVICES
http://thanet.gov.uk/supplierspend,Thanet District Council,08/01/2019,466762,450,,Monitor Pest Control Ltd,MON018,Director of Corporate Resources and S151,Balance Sheet,Repairs And Mtce Holding A/C,ENVIRONMENTAL SERVICES
http://thanet.gov.uk/supplierspend,Thanet District Council,08/01/2019,466998,1331.69,,Ncc Mechanical Services Limited,NCC006,Director Of Corp Gov/Mon Off,Revenue,"Repairs,  Alter & Mtce - Build",CONSTRUCTION-REPAIR AND MAINT
http://thanet.gov.uk/supplierspend,Thanet District Council,08/01/2019,467425,6541,,Northwood Builders,NOR002,Director of Corporate Resources and S151,Balance Sheet,Capital Exp-Non Council Assets,GRANTS
http://thanet.gov.uk/supplierspend,Thanet District Council,08/01/2019,466746,799.88,,Ohuk Limited,OHU001,Dir Ops/Commercial Serv,Revenue,Agency Staff,HUMAN RESOURCES
http://thanet.gov.uk/supplierspend,Thanet District Council,08/01/2019,467051,746.55,,Ohuk Limited,OHU001,Dir Ops/Commercial Serv,Revenue,Agency Staff,HUMAN RESOURCES
http://thanet.gov.uk/supplierspend,Thanet District Council,08/01/2019,465960,2637.87,,Potter Raper Partnership,POT006,Director of Corporate Resources and S151,Balance Sheet,Council Dwellings,CONSULTANCY
http://thanet.gov.uk/supplierspend,Thanet District Council,08/01/2019,467053,2637.88,,Potter Raper Partnership,POT006,Director of Corporate Resources and S151,Balance Sheet,Council Dwellings,CONSULTANCY
http://thanet.gov.uk/supplierspend,Thanet District Council,08/01/2019,467101,25949.3,,Profile Security Services Limited,PRO018,Dir Ops/Commercial Serv,Revenue,Services,FACILITIES AND MANGEMENT SERV
http://thanet.gov.uk/supplierspend,Thanet District Council,08/01/2019,467102,961.25,,Profile Security Services Limited,PRO018,Dir Ops/Commercial Serv,Revenue,Services,FACILITIES AND MANGEMENT SERV
http://thanet.gov.uk/supplierspend,Thanet District Council,08/01/2019,467417,1950,,REDACTED PERSONAL DATA,N/A,Deputy Chief Executive/S151,Revenue,Grants & Subscriptions,RENT DEPOSITS
http://thanet.gov.uk/supplierspend,Thanet District Council,08/01/2019,466777,503.58,,Scottish Water Business Stream Ltd,SCO019,Dir Ops/Commercial Serv,Revenue,Water Services,UTILITIES
http://thanet.gov.uk/supplierspend,Thanet District Council,08/01/2019,466988,520.35,,Scottish Water Business Stream Ltd,SCO019,Dir Ops/Commercial Serv,Revenue,Water Services,UTILITIES
http://thanet.gov.uk/supplierspend,Thanet District Council,08/01/2019,467003,2022.44,,Scottish Water Business Stream Ltd,SCO019,Dir Ops/Commercial Serv,Revenue,Water Services,UTILITIES
http://thanet.gov.uk/supplierspend,Thanet District Council,08/01/2019,467004,958.97,,Scottish Water Business Stream Ltd,SCO019,Dir Ops/Commercial Serv,Revenue,Water Services,UTILITIES
http://thanet.gov.uk/supplierspend,Thanet District Council,08/01/2019,467005,1658.41,,Scottish Water Business Stream Ltd,SCO019,Dir Ops/Commercial Serv,Revenue,Water Services,UTILITIES
http://thanet.gov.uk/supplierspend,Thanet District Council,08/01/2019,467007,1111.51,,Scottish Water Business Stream Ltd,SCO019,Dir Ops/Commercial Serv,Revenue,Water Services,UTILITIES
http://thanet.gov.uk/supplierspend,Thanet District Council,08/01/2019,467323,1333.3,,Scottish Water Business Stream Ltd,SCO019,Dir Ops/Commercial Serv,Revenue,Water Services,UTILITIES
http://thanet.gov.uk/supplierspend,Thanet District Council,08/01/2019,467327,2409.78,,Scottish Water Business Stream Ltd,SCO019,Dir Ops/Commercial Serv,Revenue,Water Services,UTILITIES
http://thanet.gov.uk/supplierspend,Thanet District Council,08/01/2019,466958,3254,,Securitas Security Services (Uk) Ltd,SEC019,Director Of Corp Gov/Mon Off,Revenue,Services,FACILITIES AND MANGEMENT SERV
http://thanet.gov.uk/supplierspend,Thanet District Council,08/01/2019,466731,3195,,Sellick Partnership Ltd,SEL011,Director Of Corp Gov/Mon Off,Revenue,Agency Staff,HUMAN RESOURCES
http://thanet.gov.uk/supplierspend,Thanet District Council,08/01/2019,466799,455,,Sellick Partnership Ltd,SEL011,Director Of Corp Gov/Mon Off,Revenue,Services,HUMAN RESOURCES
http://thanet.gov.uk/supplierspend,Thanet District Council,08/01/2019,466935,1157.13,,Sellick Partnership Ltd,SEL011,Director Of Corp Gov/Mon Off,Revenue,Services,HUMAN RESOURCES
http://thanet.gov.uk/supplierspend,Thanet District Council,08/01/2019,466955,3195,,Sellick Partnership Ltd,SEL011,Director Of Corp Gov/Mon Off,Revenue,Agency Staff,HUMAN RESOURCES
http://thanet.gov.uk/supplierspend,Thanet District Council,08/01/2019,467427,10325,,South East Building Company Limited,SEB001,Director of Corporate Resources and S151,Balance Sheet,Capital Exp-Non Council Assets,GRANTS
http://thanet.gov.uk/supplierspend,Thanet District Council,08/01/2019,466609,6105.09,,Southern Electric,SEL007,Deputy Chief Executive/S151,Revenue,Energy Costs,UTILITIES
http://thanet.gov.uk/supplierspend,Thanet District Council,08/01/2019,466611,458.66,,Southern Electric,SEL007,Dir Ops/Commercial Serv,Revenue,Energy Costs,UTILITIES
http://thanet.gov.uk/supplierspend,Thanet District Council,08/01/2019,466966,728,,Stagecoach Services Limited,STA023,Director of Corporate Resources and S151,Balance Sheet,Staff Bus Permits Holding A/C,PUBLIC TRANSPORT
http://thanet.gov.uk/supplierspend,Thanet District Council,08/01/2019,467449,510,,Sycon Uk Ltd,SYC002,Deputy Chief Executive/S151,Revenue,Grants & Subscriptions,RENT DEPOSITS
http://thanet.gov.uk/supplierspend,Thanet District Council,08/01/2019,466066,3559.47,,The Oyster Partnership Ltd,OYS001,Director Of Corp Gov/Mon Off,Revenue,Agency Staff,HUMAN RESOURCES
http://thanet.gov.uk/supplierspend,Thanet District Council,08/01/2019,466748,1853.78,,The Oyster Partnership Ltd,OYS001,Director Of Corp Gov/Mon Off,Revenue,Agency Staff,HUMAN RESOURCES
http://thanet.gov.uk/supplierspend,Thanet District Council,08/01/2019,466933,49106.33,,Thintech Ltd,THI009,East Kent Shared Services,Revenue,Communications & Computing,ICT
http://thanet.gov.uk/supplierspend,Thanet District Council,08/01/2019,466999,743.4,,Tim Darsley Associates Limited,TIM010,Director Of Corp Gov/Mon Off,Revenue,Services,HUMAN RESOURCES
http://thanet.gov.uk/supplierspend,Thanet District Council,08/01/2019,465792,11316.83,,Town & Country Cleaners Ltd,TOW002,Director of Corporate Resources and S151,Balance Sheet,Repairs And Mtce Holding A/C,CLEANING AND JANITORIAL
http://thanet.gov.uk/supplierspend,Thanet District Council,08/01/2019,467055,4160,,Trade Container Services Ltd,TRA065,Director of Corporate Resources and S151,Balance Sheet,Plant And Equipment,FACILITIES AND MANGEMENT SERV
http://thanet.gov.uk/supplierspend,Thanet District Council,08/01/2019,466114,7414,,Twm Traffic Control Systems Ltd,TWM001,Dir Ops/Commercial Serv,Revenue,"Equip, Furniture And Materials",STREET AND TRAFFIC MANAGEMENT
http://thanet.gov.uk/supplierspend,Thanet District Council,08/01/2019,466755,900.12,,Venn Group Limited,VEN004,Director Of Corp Gov/Mon Off,Revenue,Services,HUMAN RESOURCES
http://thanet.gov.uk/supplierspend,Thanet District Council,08/01/2019,467067,812.76,,Venn Group Limited,VEN004,Director Of Corp Gov/Mon Off,Revenue,Services,HUMAN RESOURCES
http://thanet.gov.uk/supplierspend,Thanet District Council,08/01/2019,466769,452.64,,W G Burbridge,BUR016,Director of Corporate Resources and S151,Balance Sheet,Other Land And Buildings-Hra,BUILDING CONSTRUCTION MATERIAL
http://thanet.gov.uk/supplierspend,Thanet District Council,08/01/2019,467421,1013,,Your Move,YOU014,Deputy Chief Executive/S151,Revenue,Grants & Subscriptions,RENT DEPOSITS
http://thanet.gov.uk/supplierspend,Thanet District Council,11/01/2019,467378,1500,,All Access Ltd,ALL031,Dir Ops/Commercial Serv,Revenue,"Repairs,  Alter & Mtce - Build",BUILDING CONSTRUCTION MATERIAL
http://thanet.gov.uk/supplierspend,Thanet District Council,11/01/2019,467299,904,,Aston Walker,AST008,Dir Ops/Commercial Serv,Revenue,Services,CEMETERY AND CREMATORIUM
http://thanet.gov.uk/supplierspend,Thanet District Council,11/01/2019,466938,1130.25,,Barcham Trees Plc,BAR021,Dir Ops/Commercial Serv,Revenue,Grounds Mtce Costs,HORTICULTURAL
http://thanet.gov.uk/supplierspend,Thanet District Council,11/01/2019,466943,880,,Beebee Communications,BEE010,Dir Ops/Commercial Serv,Revenue,Services,FACILITIES AND MANGEMENT SERV
http://thanet.gov.uk/supplierspend,Thanet District Council,11/01/2019,466613,139.97,,Canon (Uk) Ltd,CAN021,Dir Ops/Commercial Serv,Revenue,"Equip, Furniture And Materials",FACILITIES AND MANGEMENT SERV
http://thanet.gov.uk/supplierspend,Thanet District Council,11/01/2019,466613,1196.17,,Canon (Uk) Ltd,CAN021,Director Of Corp Gov/Mon Off,Revenue,"Equip, Furniture And Materials",FACILITIES AND MANGEMENT SERV
http://thanet.gov.uk/supplierspend,Thanet District Council,11/01/2019,467300,525,,Canterbury City Council,CAN004,Dir Ops/Commercial Serv,Revenue,"Repairs,  Alter & Mtce - Build",VARIOUS CATS-PUBLIC SECTOR
http://thanet.gov.uk/supplierspend,Thanet District Council,11/01/2019,467288,2114.99,,Capita Business Services Ltd,CAP001,Deputy Chief Executive/S151,Revenue,Communications & Computing,HUMAN RESOURCES
http://thanet.gov.uk/supplierspend,Thanet District Council,11/01/2019,466514,1429.77,,Ccs Media Limited,CCS003,East Kent Shared Services,Revenue,Communications & Computing,ICT
http://thanet.gov.uk/supplierspend,Thanet District Council,11/01/2019,467368,2102.18,,Ccs Media Limited,CCS003,Director of Corporate Resources and S151,Balance Sheet,Plant And Equipment,ICT
http://thanet.gov.uk/supplierspend,Thanet District Council,11/01/2019,467388,7000,,Coastal Publications,COA018,Dir Ops/Commercial Serv,Revenue,Grants & Subscriptions,ARTS AND LEISURE SERVICES
http://thanet.gov.uk/supplierspend,Thanet District Council,11/01/2019,467652,2750,,Gl Hearn Limited,GLH001,Director of Corporate Resources and S151,Balance Sheet,Other Land And Buildings-Hra,CONSULTANCY
http://thanet.gov.uk/supplierspend,Thanet District Council,11/01/2019,467390,1409,,Guardian Security & Fire Ltd,GUA005,Dir Ops/Commercial Serv,Revenue,"Repairs,  Alter & Mtce - Build",HEALTH AND SAFETY
http://thanet.gov.uk/supplierspend,Thanet District Council,11/01/2019,467391,605,,Guardian Security & Fire Ltd,GUA005,Dir Ops/Commercial Serv,Revenue,"Repairs,  Alter & Mtce - Build",HEALTH AND SAFETY
http://thanet.gov.uk/supplierspend,Thanet District Council,11/01/2019,466803,1236.65,,Hilton Cabinet Co Ltd,HIL002,Dir Ops/Commercial Serv,Revenue,"Equip, Furniture And Materials",FURNITURE AND SOFT FURNISHINGS
http://thanet.gov.uk/supplierspend,Thanet District Council,11/01/2019,466786,449.55,,Hr Go (Kent) Ltd,HRG001,Dir Ops/Commercial Serv,Revenue,Agency Staff,HUMAN RESOURCES
http://thanet.gov.uk/supplierspend,Thanet District Council,11/01/2019,467084,449.55,,Hr Go (Kent) Ltd,HRG001,Dir Ops/Commercial Serv,Revenue,Agency Staff,HUMAN RESOURCES
http://thanet.gov.uk/supplierspend,Thanet District Council,11/01/2019,467225,771.37,,Hr Go (Kent) Ltd,HRG001,Dir Ops/Commercial Serv,Revenue,Agency Staff,HUMAN RESOURCES
http://thanet.gov.uk/supplierspend,Thanet District Council,11/01/2019,467273,449.55,,Hr Go (Kent) Ltd,HRG001,Dir Ops/Commercial Serv,Revenue,Agency Staff,HUMAN RESOURCES
http://thanet.gov.uk/supplierspend,Thanet District Council,11/01/2019,467279,606.43,,Hr Go (Kent) Ltd,HRG001,Dir Ops/Commercial Serv,Revenue,Agency Staff,HUMAN RESOURCES
http://thanet.gov.uk/supplierspend,Thanet District Council,11/01/2019,467081,2925,,Local Government Information Unit,LOC005,Chief Executive,Revenue,Grants & Subscriptions,GOVERNMENT AGENCIES
http://thanet.gov.uk/supplierspend,Thanet District Council,11/01/2019,466747,3355.4,,Mears Ltd,MEA003,Director Of Corp Gov/Mon Off,Revenue,"Repairs,  Alter & Mtce - Build",CONSTRUCTION-REPAIR AND MAINT
http://thanet.gov.uk/supplierspend,Thanet District Council,11/01/2019,466930,1712.7,,Mears Ltd,MEA003,Dir Ops/Commercial Serv,Revenue,"Repairs,  Alter & Mtce - Build",CONSTRUCTION-REPAIR AND MAINT
http://thanet.gov.uk/supplierspend,Thanet District Council,11/01/2019,467238,17124.42,,Mears Ltd,MEA003,Director of Corporate Resources and S151,Balance Sheet,Repairs And Mtce Holding A/C,CONSTRUCTION-REPAIR AND MAINT
http://thanet.gov.uk/supplierspend,Thanet District Council,11/01/2019,467249,2391.23,,Mears Ltd,MEA003,Director of Corporate Resources and S151,Balance Sheet,Repairs And Mtce Holding A/C,CONSTRUCTION-REPAIR AND MAINT
http://thanet.gov.uk/supplierspend,Thanet District Council,11/01/2019,467250,4941.52,,Mears Ltd,MEA003,Director of Corporate Resources and S151,Balance Sheet,Repairs And Mtce Holding A/C,CONSTRUCTION-REPAIR AND MAINT
http://thanet.gov.uk/supplierspend,Thanet District Council,11/01/2019,467251,1482.71,,Mears Ltd,MEA003,Director of Corporate Resources and S151,Balance Sheet,Repairs And Mtce Holding A/C,CONSTRUCTION-REPAIR AND MAINT
http://thanet.gov.uk/supplierspend,Thanet District Council,11/01/2019,467252,12597.48,,Mears Ltd,MEA003,Director of Corporate Resources and S151,Balance Sheet,Repairs And Mtce Holding A/C,CONSTRUCTION-REPAIR AND MAINT
http://thanet.gov.uk/supplierspend,Thanet District Council,11/01/2019,467253,41929.02,,Mears Ltd,MEA003,Director of Corporate Resources and S151,Balance Sheet,Repairs And Mtce Holding A/C,CONSTRUCTION-REPAIR AND MAINT
http://thanet.gov.uk/supplierspend,Thanet District Council,11/01/2019,467331,850.57,,Mears Ltd,MEA003,Director Of Corp Gov/Mon Off,Revenue,"Repairs,  Alter & Mtce - Build",CONSTRUCTION-REPAIR AND MAINT
http://thanet.gov.uk/supplierspend,Thanet District Council,11/01/2019,467573,35320.5,,Mears Ltd,MEA003,Director of Corporate Resources and S151,Balance Sheet,Repairs And Mtce Holding A/C,CONSTRUCTION-REPAIR AND MAINT
http://thanet.gov.uk/supplierspend,Thanet District Council,11/01/2019,466954,750,,Messenger Mobile Services Ltd,MES006,Director Of Corp Gov/Mon Off,Revenue,"Repairs,  Alter & Mtce - Build",ENVIRONMENTAL SERVICES
http://thanet.gov.uk/supplierspend,Thanet District Council,11/01/2019,467668,1000,,Miles & Barr Property Man  Ltd,MIL048,Deputy Chief Executive/S151,Revenue,Grants & Subscriptions,RENT DEPOSITS
http://thanet.gov.uk/supplierspend,Thanet District Council,11/01/2019,467363,1746.53,,National Express Ltd,NAT010,Dir Ops/Commercial Serv,Revenue,Services,AGENCY PAYMENTS
http://thanet.gov.uk/supplierspend,Thanet District Council,11/01/2019,467090,529.19,,Nylon Fasteners Limited,NYL001,Dir Ops/Commercial Serv,Revenue,"Equip, Furniture And Materials",STREET AND TRAFFIC MANAGEMENT
http://thanet.gov.uk/supplierspend,Thanet District Council,11/01/2019,467261,799.88,,Ohuk Limited,OHU001,Dir Ops/Commercial Serv,Revenue,Agency Staff,HUMAN RESOURCES
http://thanet.gov.uk/supplierspend,Thanet District Council,11/01/2019,467659,165015,,Paramount Ind Property Services Llp,PAR074,Deputy Chief Executive/S151,Revenue,Services,HOUSING MANAGEMENT
http://thanet.gov.uk/supplierspend,Thanet District Council,11/01/2019,466829,1660.5,,Parkeon Limited,PAR063,Dir Ops/Commercial Serv,Revenue,Communications & Computing,STREET AND TRAFFIC MANAGEMENT
http://thanet.gov.uk/supplierspend,Thanet District Council,11/01/2019,467664,674.86,,Peabody South East Limited,PEA024,Director of Corporate Resources and S151,Balance Sheet,Capital Exp-Non Council Assets,GRANTS
http://thanet.gov.uk/supplierspend,Thanet District Council,11/01/2019,467665,850,,REDACTED PERSONAL DATA,N/A,Deputy Chief Executive/S151,Revenue,Grants & Subscriptions,RENT DEPOSITS
http://thanet.gov.uk/supplierspend,Thanet District Council,11/01/2019,467666,850,,REDACTED PERSONAL DATA,N/A,Deputy Chief Executive/S151,Revenue,Grants & Subscriptions,RENT ALLOWANCES
http://thanet.gov.uk/supplierspend,Thanet District Council,11/01/2019,467673,9038.5,,REDACTED PERSONAL DATA,N/A,Director of Corporate Resources and S151,Balance Sheet,Capital Exp-Non Council Assets,GRANTS
http://thanet.gov.uk/supplierspend,Thanet District Council,11/01/2019,467356,1595.4,,Scottish Water Business Stream Ltd,SCO019,Dir Ops/Commercial Serv,Revenue,Water Services,UTILITIES
http://thanet.gov.uk/supplierspend,Thanet District Council,11/01/2019,467234,3205.42,,Sellick Partnership Ltd,SEL011,Director Of Corp Gov/Mon Off,Revenue,Agency Staff,HUMAN RESOURCES
http://thanet.gov.uk/supplierspend,Thanet District Council,11/01/2019,467235,1195.74,,Sellick Partnership Ltd,SEL011,Director Of Corp Gov/Mon Off,Revenue,Services,HUMAN RESOURCES
http://thanet.gov.uk/supplierspend,Thanet District Council,11/01/2019,467237,440,,Sellick Partnership Ltd,SEL011,Director Of Corp Gov/Mon Off,Revenue,Services,HUMAN RESOURCES
http://thanet.gov.uk/supplierspend,Thanet District Council,11/01/2019,467377,639,,Sellick Partnership Ltd,SEL011,Director Of Corp Gov/Mon Off,Revenue,Agency Staff,HUMAN RESOURCES
http://thanet.gov.uk/supplierspend,Thanet District Council,11/01/2019,467315,-546.11,,Southern Electric,SEL007,Dir Ops/Commercial Serv,Revenue,Energy Costs,UTILITIES
http://thanet.gov.uk/supplierspend,Thanet District Council,11/01/2019,467316,852.5,,Southern Electric,SEL007,Dir Ops/Commercial Serv,Revenue,Energy Costs,UTILITIES
http://thanet.gov.uk/supplierspend,Thanet District Council,11/01/2019,467318,3636.82,,Southern Electric,SEL007,Dir Ops/Commercial Serv,Revenue,Energy Costs,UTILITIES
http://thanet.gov.uk/supplierspend,Thanet District Council,11/01/2019,467322,705.07,,Southern Electric,SEL007,Director Of Corp Gov/Mon Off,Revenue,Energy Costs,UTILITIES
http://thanet.gov.uk/supplierspend,Thanet District Council,11/01/2019,466812,663,,Streetmaster (S.Wales) Limited,STR001,Dir Ops/Commercial Serv,Revenue,"Equip, Furniture And Materials",HIGHWAY EQUIPMENT AND MATERIAL
http://thanet.gov.uk/supplierspend,Thanet District Council,11/01/2019,466813,675.5,,Streetmaster (S.Wales) Limited,STR001,Dir Ops/Commercial Serv,Revenue,"Equip, Furniture And Materials",HIGHWAY EQUIPMENT AND MATERIAL
http://thanet.gov.uk/supplierspend,Thanet District Council,11/01/2019,466814,733,,Streetmaster (S.Wales) Limited,STR001,Dir Ops/Commercial Serv,Revenue,"Equip, Furniture And Materials",HIGHWAY EQUIPMENT AND MATERIAL
http://thanet.gov.uk/supplierspend,Thanet District Council,11/01/2019,466815,718,,Streetmaster (S.Wales) Limited,STR001,Dir Ops/Commercial Serv,Revenue,"Equip, Furniture And Materials",HIGHWAY EQUIPMENT AND MATERIAL
http://thanet.gov.uk/supplierspend,Thanet District Council,11/01/2019,466816,681,,Streetmaster (S.Wales) Limited,STR001,Dir Ops/Commercial Serv,Revenue,"Equip, Furniture And Materials",HIGHWAY EQUIPMENT AND MATERIAL
http://thanet.gov.uk/supplierspend,Thanet District Council,11/01/2019,466817,758,,Streetmaster (S.Wales) Limited,STR001,Dir Ops/Commercial Serv,Revenue,"Equip, Furniture And Materials",HIGHWAY EQUIPMENT AND MATERIAL
http://thanet.gov.uk/supplierspend,Thanet District Council,11/01/2019,466946,6156,,T Nielsen & Company Ltd,NIE001,Dir Ops/Commercial Serv,Revenue,"Repairs,  Alter & Mtce - Build",CONSTRUCTION-REPAIR AND MAINT
http://thanet.gov.uk/supplierspend,Thanet District Council,11/01/2019,467405,828.48,,Trustmarque Solutions Limited,TRU014,East Kent Shared Services,Revenue,Communications & Computing,ICT
http://thanet.gov.uk/supplierspend,Thanet District Council,11/01/2019,467407,1326.36,,Trustmarque Solutions Limited,TRU014,East Kent Shared Services,Revenue,Communications & Computing,ICT
http://thanet.gov.uk/supplierspend,Thanet District Council,11/01/2019,467271,1092.39,,Venn Group Limited,VEN004,Director Of Corp Gov/Mon Off,Revenue,Services,HUMAN RESOURCES
http://thanet.gov.uk/supplierspend,Thanet District Council,11/01/2019,466952,66911.03,,W W Martin Ltd,MAR003,Director of Corporate Resources and S151,Balance Sheet,Council Dwellings,CONSTRUCTION-REPAIR AND MAINT
http://thanet.gov.uk/supplierspend,Thanet District Council,11/01/2019,466716,756,,Xchanging Global Insurance Sols Ltd,XCH001,East Kent Shared Services,Revenue,Communications & Computing,ICT
http://thanet.gov.uk/supplierspend,Thanet District Council,11/01/2019,466716,1346,,Xchanging Global Insurance Sols Ltd,XCH001,Deputy Chief Executive/S151,Revenue,Communications & Computing,ICT
http://thanet.gov.uk/supplierspend,Thanet District Council,15/01/2019,467440,900.27,,Arco Limited,ARC001,Dir Ops/Commercial Serv,Revenue,"Clothes, Uniforms & Laundry",CLOTHING
http://thanet.gov.uk/supplierspend,Thanet District Council,15/01/2019,467563,3680.43,,Ats Euromaster Ltd,ATS002,Dir Ops/Commercial Serv,Revenue,Direct Transport Costs,VEHICLE MANAGEMENT
http://thanet.gov.uk/supplierspend,Thanet District Council,15/01/2019,467239,1571.58,,Blakedown Landscapes (Se) Ltd,BLA034,Director of Corporate Resources and S151,Balance Sheet,Other Land And Buildings-Hra,CONSTRUCTION-REPAIR AND MAINT
http://thanet.gov.uk/supplierspend,Thanet District Council,15/01/2019,467609,966.33,,Calibre Cleaning Ltd,CAL010,Director Of Corp Gov/Mon Off,Revenue,Cleaning & Domestic Supplies,CLEANING AND JANITORIAL
http://thanet.gov.uk/supplierspend,Thanet District Council,15/01/2019,467357,45.41,,Cannon Hygiene Limited,CAN030,Dir Ops/Commercial Serv,Revenue,Fixtures & Fittings,ENVIRONMENTAL SERVICES
http://thanet.gov.uk/supplierspend,Thanet District Council,15/01/2019,467357,1927.77,,Cannon Hygiene Limited,CAN030,Dir Ops/Commercial Serv,Revenue,Services,ENVIRONMENTAL SERVICES
http://thanet.gov.uk/supplierspend,Thanet District Council,15/01/2019,467593,561,,Canterbury City Council,CAN004,Dir Ops/Commercial Serv,Revenue,"Equip, Furniture And Materials",VARIOUS CATS-PUBLIC SECTOR
http://thanet.gov.uk/supplierspend,Thanet District Council,15/01/2019,467268,17824.48,,Certas Energy Uk Ltd,CER005,Dir Ops/Commercial Serv,Revenue,Direct Transport Costs,VEHICLE MANAGEMENT
http://thanet.gov.uk/supplierspend,Thanet District Council,15/01/2019,467370,5571.7,,Cobalt Telephone Technologies Ltd,COB002,Dir Ops/Commercial Serv,Revenue,Services,ICT
http://thanet.gov.uk/supplierspend,Thanet District Council,15/01/2019,467728,500,,Countrystyle Recycling Limited,COU019,Dir Ops/Commercial Serv,Revenue,Cont Hire & Operating Lease,ENVIRONMENTAL SERVICES
http://thanet.gov.uk/supplierspend,Thanet District Council,15/01/2019,467418,975,,Decksafe Solutions Ltd,DEC004,Dir Ops/Commercial Serv,Revenue,"Equip, Furniture And Materials",MARITIME SERVICES
http://thanet.gov.uk/supplierspend,Thanet District Council,15/01/2019,467230,1185.7,,E Saunders Margate Ltd,SAU001,Director Of Corp Gov/Mon Off,Revenue,"Repairs,  Alter & Mtce - Build",CONSTRUCTION-REPAIR AND MAINT
http://thanet.gov.uk/supplierspend,Thanet District Council,15/01/2019,467369,1180,,Eagle Security Alarms Ltd,EAG005,Dir Ops/Commercial Serv,Revenue,"Repairs,  Alter & Mtce - Build",FACILITIES AND MANGEMENT SERV
http://thanet.gov.uk/supplierspend,Thanet District Council,15/01/2019,467731,419,,East Kent Hose,EKH004,Dir Ops/Commercial Serv,Revenue,Direct Transport Costs,VEHICLE MANAGEMENT
http://thanet.gov.uk/supplierspend,Thanet District Council,15/01/2019,467092,588.16,,Elec-Sec Ltd,ELE014,Director Of Corp Gov/Mon Off,Revenue,"Repairs,  Alter & Mtce - Build",BUILDING CONSTRUCTION MATERIAL
http://thanet.gov.uk/supplierspend,Thanet District Council,15/01/2019,467093,470.04,,Elec-Sec Ltd,ELE014,Director Of Corp Gov/Mon Off,Revenue,"Repairs,  Alter & Mtce - Build",BUILDING CONSTRUCTION MATERIAL
http://thanet.gov.uk/supplierspend,Thanet District Council,15/01/2019,466942,1531.13,,Electoral Reform Services,ELE010,Director Of Corp Gov/Mon Off,Revenue,"Print, Stat And Gen Off Exps",FACILITIES AND MANGEMENT SERV
http://thanet.gov.uk/supplierspend,Thanet District Council,15/01/2019,467608,18852.85,,Faun Zoeller (Uk) Ltd,FAU001,Dir Ops/Commercial Serv,Revenue,Direct Transport Costs,VEHICLE MANAGEMENT
http://thanet.gov.uk/supplierspend,Thanet District Council,15/01/2019,467760,1315.31,,Gas Contract Services Ltd,GAS004,Director of Corporate Resources and S151,Balance Sheet,Repairs And Mtce Holding A/C,CONSTRUCTION-REPAIR AND MAINT
http://thanet.gov.uk/supplierspend,Thanet District Council,15/01/2019,467457,1244,,Grammer & Company Limited,GRA024,Dir Ops/Commercial Serv,Revenue,Miscellaneous Expenses,FACILITIES AND MANGEMENT SERV
http://thanet.gov.uk/supplierspend,Thanet District Council,15/01/2019,467619,465,,Guard It Limited,GUA008,Dir Ops/Commercial Serv,Revenue,Services,FACILITIES AND MANGEMENT SERV
http://thanet.gov.uk/supplierspend,Thanet District Council,15/01/2019,467900,10000,,H M Courts & Tribunal Service,HMC007,Dir Ops/Commercial Serv,Revenue,Services,GOVERNMENT AGENCIES
http://thanet.gov.uk/supplierspend,Thanet District Council,15/01/2019,467333,995,,Hi Way Services Ltd,HIW002,Dir Ops/Commercial Serv,Revenue,"Repairs,  Alter & Mtce - Build",HIGHWAY EQUIPMENT AND MATERIAL
http://thanet.gov.uk/supplierspend,Thanet District Council,15/01/2019,467086,777.75,,Hr Go (Kent) Ltd,HRG001,Dir Ops/Commercial Serv,Revenue,Agency Staff,HUMAN RESOURCES
http://thanet.gov.uk/supplierspend,Thanet District Council,15/01/2019,467274,778.84,,Hr Go (Kent) Ltd,HRG001,Dir Ops/Commercial Serv,Revenue,Agency Staff,HUMAN RESOURCES
http://thanet.gov.uk/supplierspend,Thanet District Council,15/01/2019,467275,1383.02,,Hr Go (Kent) Ltd,HRG001,Dir Ops/Commercial Serv,Revenue,Agency Staff,HUMAN RESOURCES
http://thanet.gov.uk/supplierspend,Thanet District Council,15/01/2019,467276,777.75,,Hr Go (Kent) Ltd,HRG001,Dir Ops/Commercial Serv,Revenue,Agency Staff,HUMAN RESOURCES
http://thanet.gov.uk/supplierspend,Thanet District Council,15/01/2019,467340,1212.63,,Hr Go (Kent) Ltd,HRG001,Dir Ops/Commercial Serv,Revenue,Agency Staff,HUMAN RESOURCES
http://thanet.gov.uk/supplierspend,Thanet District Council,15/01/2019,467341,5286.79,,Hr Go (Kent) Ltd,HRG001,Dir Ops/Commercial Serv,Revenue,Agency Staff,HUMAN RESOURCES
http://thanet.gov.uk/supplierspend,Thanet District Council,15/01/2019,467382,570.35,,Hr Go (Kent) Ltd,HRG001,Dir Ops/Commercial Serv,Revenue,Agency Staff,HUMAN RESOURCES
http://thanet.gov.uk/supplierspend,Thanet District Council,15/01/2019,467433,6190.37,,Hr Go (Kent) Ltd,HRG001,Dir Ops/Commercial Serv,Revenue,Agency Staff,HUMAN RESOURCES
http://thanet.gov.uk/supplierspend,Thanet District Council,15/01/2019,467437,855.73,,Hr Go (Kent) Ltd,HRG001,Dir Ops/Commercial Serv,Revenue,Agency Staff,HUMAN RESOURCES
http://thanet.gov.uk/supplierspend,Thanet District Council,15/01/2019,467646,1734.12,,Hr Go (Kent) Ltd,HRG001,Dir Ops/Commercial Serv,Revenue,Agency Staff,HUMAN RESOURCES
http://thanet.gov.uk/supplierspend,Thanet District Council,15/01/2019,467695,6342.19,,Hr Go (Kent) Ltd,HRG001,Dir Ops/Commercial Serv,Revenue,Agency Staff,HUMAN RESOURCES
http://thanet.gov.uk/supplierspend,Thanet District Council,15/01/2019,467875,866.65,,Hr Go (Kent) Ltd,HRG001,Dir Ops/Commercial Serv,Revenue,Agency Staff,HUMAN RESOURCES
http://thanet.gov.uk/supplierspend,Thanet District Council,15/01/2019,467881,674.05,,Hr Go (Kent) Ltd,HRG001,Dir Ops/Commercial Serv,Revenue,Agency Staff,HUMAN RESOURCES
http://thanet.gov.uk/supplierspend,Thanet District Council,15/01/2019,467866,2300,,John Reeve (Plant Hire) Ltd,REE013,Dir Ops/Commercial Serv,Revenue,Cont Hire & Operating Lease,VEHICLE MANAGEMENT
http://thanet.gov.uk/supplierspend,Thanet District Council,15/01/2019,467287,800,,Ling Metals Limited,LIN004,Dir Ops/Commercial Serv,Revenue,Cleaning & Domestic Supplies,ENVIRONMENTAL SERVICES
http://thanet.gov.uk/supplierspend,Thanet District Council,15/01/2019,467438,540,,Main Man Supplies Ltd,MAI001,Dir Ops/Commercial Serv,Revenue,"Clothes, Uniforms & Laundry",CLOTHING
http://thanet.gov.uk/supplierspend,Thanet District Council,15/01/2019,467389,305,,Marshall Motor Group Ltd,MAR117,Director Of Corp Gov/Mon Off,Revenue,Direct Transport Costs,VEHICLE MANAGEMENT
http://thanet.gov.uk/supplierspend,Thanet District Council,15/01/2019,467389,11229.08,,Marshall Motor Group Ltd,MAR117,Director of Corporate Resources and S151,Balance Sheet,Plant And Equipment,VEHICLE MANAGEMENT
http://thanet.gov.uk/supplierspend,Thanet District Council,15/01/2019,467392,305,,Marshall Motor Group Ltd,MAR117,Dir Ops/Commercial Serv,Revenue,Direct Transport Costs,VEHICLE MANAGEMENT
http://thanet.gov.uk/supplierspend,Thanet District Council,15/01/2019,467392,11229.08,,Marshall Motor Group Ltd,MAR117,Director of Corporate Resources and S151,Balance Sheet,Plant And Equipment,VEHICLE MANAGEMENT
http://thanet.gov.uk/supplierspend,Thanet District Council,15/01/2019,467393,305,,Marshall Motor Group Ltd,MAR117,Dir Ops/Commercial Serv,Revenue,Direct Transport Costs,VEHICLE MANAGEMENT
http://thanet.gov.uk/supplierspend,Thanet District Council,15/01/2019,467393,11229.08,,Marshall Motor Group Ltd,MAR117,Director of Corporate Resources and S151,Balance Sheet,Plant And Equipment,VEHICLE MANAGEMENT
http://thanet.gov.uk/supplierspend,Thanet District Council,15/01/2019,467606,525.4,,Mc Truck & Bus Ltd,MCT002,Dir Ops/Commercial Serv,Revenue,Direct Transport Costs,VEHICLE MANAGEMENT
http://thanet.gov.uk/supplierspend,Thanet District Council,15/01/2019,467373,703.12,,Mears Ltd,MEA003,Director of Corporate Resources and S151,Balance Sheet,Repairs And Mtce Holding A/C,CONSTRUCTION-REPAIR AND MAINT
http://thanet.gov.uk/supplierspend,Thanet District Council,15/01/2019,467374,703.12,,Mears Ltd,MEA003,Director of Corporate Resources and S151,Balance Sheet,Repairs And Mtce Holding A/C,CONSTRUCTION-REPAIR AND MAINT
http://thanet.gov.uk/supplierspend,Thanet District Council,15/01/2019,467381,4992.65,,Mears Ltd,MEA003,Director of Corporate Resources and S151,Balance Sheet,Repairs And Mtce Holding A/C,CONSTRUCTION-REPAIR AND MAINT
http://thanet.gov.uk/supplierspend,Thanet District Council,15/01/2019,467384,4992.65,,Mears Ltd,MEA003,Director of Corporate Resources and S151,Balance Sheet,Repairs And Mtce Holding A/C,CONSTRUCTION-REPAIR AND MAINT
http://thanet.gov.uk/supplierspend,Thanet District Council,15/01/2019,467872,19000,,Ovenden Allworks Limited,OVE008,Director of Corporate Resources and S151,Balance Sheet,Rechargeable Works,CONSTRUCTION-REPAIR AND MAINT
http://thanet.gov.uk/supplierspend,Thanet District Council,15/01/2019,467334,800,,P & R Installation Company Limited,PRI035,Director of Corporate Resources and S151,Balance Sheet,Repairs And Mtce Holding A/C,BUILDING CONSTRUCTION MATERIAL
http://thanet.gov.uk/supplierspend,Thanet District Council,15/01/2019,467336,25030.82,,P & R Installation Company Limited,PRI035,Director of Corporate Resources and S151,Balance Sheet,Repairs And Mtce Holding A/C,BUILDING CONSTRUCTION MATERIAL
http://thanet.gov.uk/supplierspend,Thanet District Council,15/01/2019,467338,693.15,,P & R Installation Company Limited,PRI035,Director of Corporate Resources and S151,Balance Sheet,Repairs And Mtce Holding A/C,BUILDING CONSTRUCTION MATERIAL
http://thanet.gov.uk/supplierspend,Thanet District Council,15/01/2019,467375,2153.25,,P&G Engineering&Welding Supplies Ltd,PGE001,Dir Ops/Commercial Serv,Revenue,Direct Transport Costs,BUILDING CONSTRUCTION MATERIAL
http://thanet.gov.uk/supplierspend,Thanet District Council,15/01/2019,467898,900,,Regency Properties,REG004,Deputy Chief Executive/S151,Revenue,Grants & Subscriptions,RENT DEPOSITS
http://thanet.gov.uk/supplierspend,Thanet District Council,15/01/2019,467899,900,,Regency Properties,REG004,Deputy Chief Executive/S151,Revenue,Grants & Subscriptions,RENT DEPOSITS
http://thanet.gov.uk/supplierspend,Thanet District Council,15/01/2019,467468,245.22,,Scottish Water Business Stream Ltd,SCO019,Director Of Corp Gov/Mon Off,Revenue,Water Services,UTILITIES
http://thanet.gov.uk/supplierspend,Thanet District Council,15/01/2019,467468,281.58,,Scottish Water Business Stream Ltd,SCO019,Dir Ops/Commercial Serv,Revenue,Water Services,UTILITIES
http://thanet.gov.uk/supplierspend,Thanet District Council,15/01/2019,465855,4320.83,,Southern Electric,SEL007,Dir Ops/Commercial Serv,Revenue,Energy Costs,UTILITIES
http://thanet.gov.uk/supplierspend,Thanet District Council,15/01/2019,467317,-4320.83,,Southern Electric,SEL007,Dir Ops/Commercial Serv,Revenue,Energy Costs,UTILITIES
http://thanet.gov.uk/supplierspend,Thanet District Council,15/01/2019,467681,2059.82,,Southern Electric,SEL007,Deputy Chief Executive/S151,Revenue,Energy Costs,UTILITIES
http://thanet.gov.uk/supplierspend,Thanet District Council,15/01/2019,467684,9517.61,,Southern Electric,SEL007,Deputy Chief Executive/S151,Revenue,Energy Costs,UTILITIES
http://thanet.gov.uk/supplierspend,Thanet District Council,15/01/2019,467725,5.36,,Southern Electric,SEL007,Deputy Chief Executive/S151,Revenue,Energy Costs,UTILITIES
http://thanet.gov.uk/supplierspend,Thanet District Council,15/01/2019,467725,571.99,,Southern Electric,SEL007,Dir Ops/Commercial Serv,Revenue,Energy Costs,UTILITIES
http://thanet.gov.uk/supplierspend,Thanet District Council,15/01/2019,467402,868.28,,Teleshore (Uk) Ltd,TEL003,Dir Ops/Commercial Serv,Revenue,"Repairs,  Alter & Mtce - Build",CEMETERY AND CREMATORIUM
http://thanet.gov.uk/supplierspend,Thanet District Council,15/01/2019,467409,865,,Thanet Waste Services Ltd,TWA001,Dir Ops/Commercial Serv,Revenue,Cleaning & Domestic Supplies,ENVIRONMENTAL SERVICES
http://thanet.gov.uk/supplierspend,Thanet District Council,15/01/2019,467342,443,,The Yaboo Company Limited,YAB001,Dir Ops/Commercial Serv,Revenue,"Equip, Furniture And Materials",DOMESTIC GOODS
http://thanet.gov.uk/supplierspend,Thanet District Council,15/01/2019,467264,898.12,,Total Supplies Ltd,TOT009,Dir Ops/Commercial Serv,Revenue,"Equip, Furniture And Materials",CLEANING AND JANITORIAL
http://thanet.gov.uk/supplierspend,Thanet District Council,15/01/2019,467770,446.5,,Watling Jcb Limited,WAT024,Dir Ops/Commercial Serv,Revenue,Direct Transport Costs,VEHICLE MANAGEMENT
http://thanet.gov.uk/supplierspend,Thanet District Council,18/01/2019,467869,509,,C S Mitchell Ltd,MIT010,Dir Ops/Commercial Serv,Revenue,"Equip, Furniture And Materials",MARITIME SERVICES
http://thanet.gov.uk/supplierspend,Thanet District Council,18/01/2019,467439,2859.54,,Ccs Media Limited,CCS003,East Kent Shared Services,Revenue,Communications & Computing,ICT
http://thanet.gov.uk/supplierspend,Thanet District Council,18/01/2019,468094,1653556.96,,Civica Uk Ltd,CIV003,East Kent Shared Services,Revenue,Private Contractors,ICT
http://thanet.gov.uk/supplierspend,Thanet District Council,18/01/2019,467873,1990,,Cloud Technology Solutions Ltd,CLO006,East Kent Shared Services,Revenue,Training,ICT
http://thanet.gov.uk/supplierspend,Thanet District Council,18/01/2019,467446,3519.72,,Commercial Services Trading Ltd,COM048,Dir Ops/Commercial Serv,Revenue,Cont Hire & Operating Lease,VARIOUS CATS-PUBLIC SECTOR
http://thanet.gov.uk/supplierspend,Thanet District Council,18/01/2019,467575,1539,,Csl Power Systems Ltd,CSL002,Dir Ops/Commercial Serv,Revenue,"Repairs,  Alter & Mtce - Build",BUILDING CONSTRUCTION MATERIAL
http://thanet.gov.uk/supplierspend,Thanet District Council,18/01/2019,468105,600,,Dolphin Lifts Kent,DOL003,Director of Corporate Resources and S151,Balance Sheet,Capital Exp-Non Council Assets,GRANTS
http://thanet.gov.uk/supplierspend,Thanet District Council,18/01/2019,468106,1755.9,,Dolphin Lifts Kent,DOL003,Director of Corporate Resources and S151,Balance Sheet,Capital Exp-Non Council Assets,GRANTS
http://thanet.gov.uk/supplierspend,Thanet District Council,18/01/2019,468108,4700,,Dolphin Lifts Kent,DOL003,Director of Corporate Resources and S151,Balance Sheet,Capital Exp-Non Council Assets,GRANTS
http://thanet.gov.uk/supplierspend,Thanet District Council,18/01/2019,467041,1050,,Florence Court Hotel Ltd,FLO009,Deputy Chief Executive/S151,Revenue,Rents,HOUSING MANAGEMENT
http://thanet.gov.uk/supplierspend,Thanet District Council,18/01/2019,467044,665,,Florence Court Hotel Ltd,FLO009,Deputy Chief Executive/S151,Revenue,Rents,HOUSING MANAGEMENT
http://thanet.gov.uk/supplierspend,Thanet District Council,18/01/2019,468098,1472.8,,Heath Lambert Limited (Client Money),HEA011,Director of Corporate Resources and S151,Balance Sheet,Insurance Holding Account,FINANCIAL SERVICES
http://thanet.gov.uk/supplierspend,Thanet District Council,18/01/2019,468100,4252.54,,Heath Lambert Limited (Client Money),HEA011,Director of Corporate Resources and S151,Balance Sheet,Insurance Holding Account,FINANCIAL SERVICES
http://thanet.gov.uk/supplierspend,Thanet District Council,18/01/2019,467385,1669.19,,Hr Go (Kent) Ltd,HRG001,Dir Ops/Commercial Serv,Revenue,Agency Staff,HUMAN RESOURCES
http://thanet.gov.uk/supplierspend,Thanet District Council,18/01/2019,467694,3282.56,,Hr Go (Kent) Ltd,HRG001,Dir Ops/Commercial Serv,Revenue,Agency Staff,HUMAN RESOURCES
http://thanet.gov.uk/supplierspend,Thanet District Council,18/01/2019,467876,987.27,,Hr Go (Kent) Ltd,HRG001,Dir Ops/Commercial Serv,Revenue,Agency Staff,HUMAN RESOURCES
http://thanet.gov.uk/supplierspend,Thanet District Council,18/01/2019,467704,608,,Hydrosphere Uk Limited,HYD009,Dir Ops/Commercial Serv,Revenue,"Equip, Furniture And Materials",VEHICLE MANAGEMENT
http://thanet.gov.uk/supplierspend,Thanet District Council,18/01/2019,468097,273388,,Kent & Medway Towns Fire Authority,KMT001,Director of Corporate Resources and S151,Balance Sheet,Collection Fund - Preceptors,VARIOUS CATS-PUBLIC SECTOR
http://thanet.gov.uk/supplierspend,Thanet District Council,18/01/2019,468095,4479726,,Kent County Council,KCC022,Director of Corporate Resources and S151,Balance Sheet,Collection Fund - Preceptors,VARIOUS CATS-PUBLIC SECTOR
http://thanet.gov.uk/supplierspend,Thanet District Council,18/01/2019,468096,612004,,Kent Police & Crime Commissioner,KPA003,Director of Corporate Resources and S151,Balance Sheet,Collection Fund - Preceptors,VARIOUS CATS-PUBLIC SECTOR
http://thanet.gov.uk/supplierspend,Thanet District Council,18/01/2019,465947,3518.66,,Mc Truck & Bus Ltd,MCT002,Dir Ops/Commercial Serv,Revenue,Direct Transport Costs,VEHICLE MANAGEMENT
http://thanet.gov.uk/supplierspend,Thanet District Council,18/01/2019,467618,8970,,Moreton Hayward Ltd,MOR034,Director of Corporate Resources and S151,Balance Sheet,Council Dwellings,CONSULTANCY
http://thanet.gov.uk/supplierspend,Thanet District Council,18/01/2019,468087,6801,,National Heritage Memorial Fund,NAT041,Director of Corporate Resources and S151,Balance Sheet,Rev Grants Rec In Adv,GRANTS
http://thanet.gov.uk/supplierspend,Thanet District Council,18/01/2019,467255,32716,,Northgate Public Services (Uk) Ltd,NOR018,Deputy Chief Executive/S151,Revenue,Communications & Computing,ICT
http://thanet.gov.uk/supplierspend,Thanet District Council,18/01/2019,467256,625,,Northgate Public Services (Uk) Ltd,NOR018,Dir Ops/Commercial Serv,Revenue,Communications & Computing,ICT
http://thanet.gov.uk/supplierspend,Thanet District Council,18/01/2019,467386,886.91,,Northgate Public Services (Uk) Ltd,NOR018,Dir Ops/Commercial Serv,Revenue,Communications & Computing,ICT
http://thanet.gov.uk/supplierspend,Thanet District Council,18/01/2019,467884,1371.65,,Ntm-Gb Limited,NTM001,Dir Ops/Commercial Serv,Revenue,Direct Transport Costs,VEHICLE MANAGEMENT
http://thanet.gov.uk/supplierspend,Thanet District Council,18/01/2019,467662,796,,Paramount Ind Property Services Llp,PAR074,Deputy Chief Executive/S151,Revenue,Grants & Subscriptions,HOUSING MANAGEMENT
http://thanet.gov.uk/supplierspend,Thanet District Council,18/01/2019,468112,520,,Peabody South East Limited,PEA024,Director of Corporate Resources and S151,Balance Sheet,Capital Exp-Non Council Assets,GRANTS
http://thanet.gov.uk/supplierspend,Thanet District Council,18/01/2019,467591,1128.2,,Peer 1 (Uk) Limited,PEE003,East Kent Shared Services,Revenue,Communications & Computing,ICT
http://thanet.gov.uk/supplierspend,Thanet District Council,18/01/2019,467592,4930.77,,Rand Associates Consultancy Ser Ltd,RAN006,Deputy Chief Executive/S151,Revenue,Services,CONSTRUCTION-REPAIR AND MAINT
http://thanet.gov.uk/supplierspend,Thanet District Council,18/01/2019,467778,3536.78,,Shoreline Surveys Limited,SHO001,Dir Ops/Commercial Serv,Revenue,"Repairs,  Alter & Mtce - Build",MARITIME SERVICES
http://thanet.gov.uk/supplierspend,Thanet District Council,18/01/2019,467612,1462.9,,Techniques For Change Ltd,TEC011,East Kent Shared Services,Revenue,Training,HUMAN RESOURCES
http://thanet.gov.uk/supplierspend,Thanet District Council,18/01/2019,467631,900.5,,Topdesk Uk Limited,TOP011,East Kent Shared Services,Revenue,Communications & Computing,ICT
http://thanet.gov.uk/supplierspend,Thanet District Council,18/01/2019,467565,503.64,,Trustmarque Solutions Limited,TRU014,East Kent Shared Services,Revenue,Communications & Computing,ICT
http://thanet.gov.uk/supplierspend,Thanet District Council,18/01/2019,467650,2273.76,,Trustmarque Solutions Limited,TRU014,East Kent Shared Services,Revenue,Communications & Computing,ICT
http://thanet.gov.uk/supplierspend,Thanet District Council,23/01/2019,468012,500,,All Sign Solutions Ltd,ALL002,Dir Ops/Commercial Serv,Revenue,"Equip, Furniture And Materials",BUILDING CONSTRUCTION MATERIAL
http://thanet.gov.uk/supplierspend,Thanet District Council,23/01/2019,467871,632.57,,Aspli Safety Limited,ASP005,Dir Ops/Commercial Serv,Revenue,"Equip, Furniture And Materials",MARITIME SERVICES
http://thanet.gov.uk/supplierspend,Thanet District Council,23/01/2019,468093,1000,,Conor Masterson Photography,MAS013,Deputy Chief Executive/S151,Revenue,Services,FACILITIES AND MANGEMENT SERV
http://thanet.gov.uk/supplierspend,Thanet District Council,23/01/2019,468396,-750,,Conor Masterson Photography,MAS013,Deputy Chief Executive/S151,Revenue,Services,FACILITIES AND MANGEMENT SERV
http://thanet.gov.uk/supplierspend,Thanet District Council,23/01/2019,468397,750,,Conor Masterson Photography,MAS013,Deputy Chief Executive/S151,Revenue,Services,FACILITIES AND MANGEMENT SERV
http://thanet.gov.uk/supplierspend,Thanet District Council,23/01/2019,468388,1275,,Cooke & Co.,COO010,Deputy Chief Executive/S151,Revenue,Grants & Subscriptions,VARIOUS CATEGORIES
http://thanet.gov.uk/supplierspend,Thanet District Council,23/01/2019,468402,607.5,,Frandham Boarding Kennels,FRA010,Dir Ops/Commercial Serv,Revenue,Services,ENVIRONMENTAL SERVICES
http://thanet.gov.uk/supplierspend,Thanet District Council,23/01/2019,468379,2250,,Hazle Mccormack Young Llp,HAZ004,Director of Corporate Resources and S151,Balance Sheet,Council Dwellings,CONSTRUCTION-REPAIR AND MAINT
http://thanet.gov.uk/supplierspend,Thanet District Council,23/01/2019,468394,3200.6,,Hodge Jones & Allen Llp,HOD006,Deputy Chief Executive/S151,Revenue,Services,LEGAL SERVICES
http://thanet.gov.uk/supplierspend,Thanet District Council,23/01/2019,467890,604.4,,Hydroblastit,HYD018,Dir Ops/Commercial Serv,Revenue,"Repairs,  Alter & Mtce - Build",MARITIME SERVICES
http://thanet.gov.uk/supplierspend,Thanet District Council,23/01/2019,467891,1855,,Hydroblastit,HYD018,Dir Ops/Commercial Serv,Revenue,"Repairs,  Alter & Mtce - Build",MARITIME SERVICES
http://thanet.gov.uk/supplierspend,Thanet District Council,23/01/2019,466023,8975.85,,Kingdom Security Limited,KIN039,Dir Ops/Commercial Serv,Revenue,Services,STREET AND TRAFFIC MANAGEMENT
http://thanet.gov.uk/supplierspend,Thanet District Council,23/01/2019,467447,7560,,Penna Plc,PEN008,Deputy Chief Executive/S151,Revenue,Services,HUMAN RESOURCES
http://thanet.gov.uk/supplierspend,Thanet District Council,23/01/2019,468393,1750,,Prospects Assured Uk Ltd,PRO032,Deputy Chief Executive/S151,Revenue,Grants & Subscriptions,RENT DEPOSITS
http://thanet.gov.uk/supplierspend,Thanet District Council,23/01/2019,468395,50000,,Ramsgate Town Council,RAM031,Dir Ops/Commercial Serv,Revenue,Grants & Subscriptions,VARIOUS CATS-PUBLIC SECTOR
http://thanet.gov.uk/supplierspend,Thanet District Council,23/01/2019,467366,630,,Survey And Test,SUR015,Director Of Corp Gov/Mon Off,Revenue,"Repairs,  Alter & Mtce - Build",UTILITIES
http://thanet.gov.uk/supplierspend,Thanet District Council,23/01/2019,468387,1150,,Thanet Property Rental,TPR001,Deputy Chief Executive/S151,Revenue,Grants & Subscriptions,RENT DEPOSITS
http://thanet.gov.uk/supplierspend,Thanet District Council,23/01/2019,467443,2531.69,,The Oyster Partnership Ltd,OYS001,Director Of Corp Gov/Mon Off,Revenue,Agency Staff,HUMAN RESOURCES
http://thanet.gov.uk/supplierspend,Thanet District Council,23/01/2019,467777,1062,,The Oyster Partnership Ltd,OYS001,Director Of Corp Gov/Mon Off,Revenue,Agency Staff,HUMAN RESOURCES
http://thanet.gov.uk/supplierspend,Thanet District Council,23/01/2019,468262,151,,Total Merchandise Ltd,TOT012,Deputy Chief Executive/S151,Revenue,Services,STATIONERY
http://thanet.gov.uk/supplierspend,Thanet District Council,23/01/2019,468262,326,,Total Merchandise Ltd,TOT012,Deputy Chief Executive/S151,Revenue,"Print, Stat And Gen Off Exps",STATIONERY
http://thanet.gov.uk/supplierspend,Thanet District Council,23/01/2019,461024,800,,Visit Kent Ltd,VIS005,Dir Ops/Commercial Serv,Revenue,Services,ARTS AND LEISURE SERVICES
http://thanet.gov.uk/supplierspend,Thanet District Council,23/01/2019,468390,1150,,Yyz Ltd (The Property Management Co.),YYZ001,Deputy Chief Executive/S151,Revenue,Grants & Subscriptions,RENT DEPOSITS
http://thanet.gov.uk/supplierspend,Thanet District Council,28/01/2019,468327,534.95,,Nat West Bank,NWE001,East Kent Shared Services,Revenue,Services,VARIOUS CATEGORIES
http://thanet.gov.uk/supplierspend,Thanet District Council,28/01/2019,468327,3294.2,,Nat West Bank,NWE001,Deputy Chief Executive/S151,Revenue,Services,VARIOUS CATEGORIES
http://thanet.gov.uk/supplierspend,Thanet District Council,28/01/2019,468357,1587.76,,Worldpay Ltd,WOR008,Deputy Chief Executive/S151,Revenue,Services,FINANCIAL SERVICES
http://thanet.gov.uk/supplierspend,Thanet District Council,28/01/2019,468362,2558.86,,Worldpay Ltd,WOR008,Deputy Chief Executive/S151,Revenue,Services,FINANCIAL SERVICES
http://thanet.gov.uk/supplierspend,Thanet District Council,28/01/2019,468378,1635.44,,Worldpay Ltd,WOR008,Deputy Chief Executive/S151,Revenue,Services,FINANCIAL SERVICES
http://thanet.gov.uk/supplierspend,Thanet District Council,28/01/2019,468380,1386.72,,Worldpay Ltd,WOR008,Deputy Chief Executive/S151,Revenue,Services,FINANCIAL SERVICES
http://thanet.gov.uk/supplierspend,Thanet District Council,28/01/2019,468383,1824.14,,Worldpay Ltd,WOR008,Deputy Chief Executive/S151,Revenue,Services,FINANCIAL SERVICES
http://thanet.gov.uk/supplierspend,Thanet District Council,28/01/2019,468384,600.22,,Worldpay Ltd,WOR008,Deputy Chief Executive/S151,Revenue,Services,FINANCIAL SERVICES
http://thanet.gov.uk/supplierspend,Thanet District Council,29/01/2019,467601,544.58,,A A Fencing Uk Ltd,AAF001,Dir Ops/Commercial Serv,Revenue,"Repairs,  Alter & Mtce - Build",BUILDING CONSTRUCTION MATERIAL
http://thanet.gov.uk/supplierspend,Thanet District Council,29/01/2019,468304,1750,,Adrian Cox Associates Limited,ADR002,Director Of Corp Gov/Mon Off,Revenue,"Repairs,  Alter & Mtce - Build",CONSULTANCY
http://thanet.gov.uk/supplierspend,Thanet District Council,29/01/2019,468300,138,,Alans Hgv'S Driving School,ALA004,Dir Ops/Commercial Serv,Revenue,"Repairs,  Alter & Mtce - Build",HUMAN RESOURCES
http://thanet.gov.uk/supplierspend,Thanet District Council,29/01/2019,468300,782,,Alans Hgv'S Driving School,ALA004,Dir Ops/Commercial Serv,Revenue,Services,HUMAN RESOURCES
http://thanet.gov.uk/supplierspend,Thanet District Council,29/01/2019,468614,3643,,Albion Fencing&Construction Kent Ltd,ALB005,Director of Corporate Resources and S151,Balance Sheet,Plant And Equipment,BUILDING CONSTRUCTION MATERIAL
http://thanet.gov.uk/supplierspend,Thanet District Council,29/01/2019,468174,1830,,All About Asbestos Limited,ALL044,Director Of Corp Gov/Mon Off,Revenue,"Repairs,  Alter & Mtce - Build",ENVIRONMENTAL SERVICES
http://thanet.gov.uk/supplierspend,Thanet District Council,29/01/2019,468010,1320,,All Sign Solutions Ltd,ALL002,Director of Corporate Resources and S151,Balance Sheet,Repairs And Mtce Holding A/C,BUILDING CONSTRUCTION MATERIAL
http://thanet.gov.uk/supplierspend,Thanet District Council,29/01/2019,468306,3833,,Alphatec Software Ltd,ALP008,Deputy Chief Executive/S151,Revenue,Communications & Computing,ICT
http://thanet.gov.uk/supplierspend,Thanet District Council,29/01/2019,468620,660,,Ass Of Electoral Administrators,AEA001,Director Of Corp Gov/Mon Off,Revenue,Expenses,HUMAN RESOURCES
http://thanet.gov.uk/supplierspend,Thanet District Council,29/01/2019,467974,976,,Aston Walker,AST008,Dir Ops/Commercial Serv,Revenue,Services,CEMETERY AND CREMATORIUM
http://thanet.gov.uk/supplierspend,Thanet District Council,29/01/2019,468236,455.4,,Ate (Uk) Limited,ANG014,Dir Ops/Commercial Serv,Revenue,Direct Transport Costs,VEHICLE MANAGEMENT
http://thanet.gov.uk/supplierspend,Thanet District Council,29/01/2019,468078,703,,Bevan Brittan Llp,BEV001,Director Of Corp Gov/Mon Off,Revenue,Services,LEGAL SERVICES
http://thanet.gov.uk/supplierspend,Thanet District Council,29/01/2019,467894,4334,,British Ports Association,BPA002,Dir Ops/Commercial Serv,Revenue,Grants & Subscriptions,HUMAN RESOURCES
http://thanet.gov.uk/supplierspend,Thanet District Council,29/01/2019,468173,715,,British Red Cross Society,BRI045,East Kent Shared Services,Revenue,Training,HUMAN RESOURCES
http://thanet.gov.uk/supplierspend,Thanet District Council,29/01/2019,468180,2154.72,,Capita Business Services Ltd,CAP001,Deputy Chief Executive/S151,Revenue,Services,HUMAN RESOURCES
http://thanet.gov.uk/supplierspend,Thanet District Council,29/01/2019,468186,472.5,,Capita Business Services Ltd,CAP001,Deputy Chief Executive/S151,Revenue,Services,HUMAN RESOURCES
http://thanet.gov.uk/supplierspend,Thanet District Council,29/01/2019,467242,8151.24,,Ccs Media Limited,CCS003,Director of Corporate Resources and S151,Balance Sheet,Plant And Equipment,ICT
http://thanet.gov.uk/supplierspend,Thanet District Council,29/01/2019,468266,16363.2,,Ccs Media Limited,CCS003,Director of Corporate Resources and S151,Balance Sheet,Plant And Equipment,ICT
http://thanet.gov.uk/supplierspend,Thanet District Council,29/01/2019,468575,483.92,,Ccs Media Limited,CCS003,East Kent Shared Services,Revenue,Communications & Computing,ICT
http://thanet.gov.uk/supplierspend,Thanet District Council,29/01/2019,468610,478.48,,Ccs Media Limited,CCS003,Director Of Corp Gov/Mon Off,Revenue,"Equip, Furniture And Materials",ICT
http://thanet.gov.uk/supplierspend,Thanet District Council,29/01/2019,468202,34615.53,,Certas Energy Uk Ltd,CER005,Dir Ops/Commercial Serv,Revenue,Direct Transport Costs,VEHICLE MANAGEMENT
http://thanet.gov.uk/supplierspend,Thanet District Council,29/01/2019,467973,35492.94,,Civica Uk Ltd,CIV003,East Kent Shared Services,Revenue,Communications & Computing,ICT
http://thanet.gov.uk/supplierspend,Thanet District Council,29/01/2019,468023,2752.92,,Coolspirit Limited,COO036,Director of Corporate Resources and S151,Balance Sheet,Plant And Equipment,ICT
http://thanet.gov.uk/supplierspend,Thanet District Council,29/01/2019,468667,46679.98,,D C L G,DCL002,Director of Corporate Resources and S151,Balance Sheet,Capital Receipts Reserve,GOVERNMENT AGENCIES
http://thanet.gov.uk/supplierspend,Thanet District Council,29/01/2019,468706,20378,,D C L G,DCL002,Director of Corporate Resources and S151,Balance Sheet,Business Rates Retention,GOVERNMENT AGENCIES
http://thanet.gov.uk/supplierspend,Thanet District Council,29/01/2019,467751,2704.34,,Dcb (Kent) Ltd,DCB001,Director of Corporate Resources and S151,Balance Sheet,Repairs And Mtce Holding A/C,CONSTRUCTION-REPAIR AND MAINT
http://thanet.gov.uk/supplierspend,Thanet District Council,29/01/2019,467752,1756.05,,Dcb (Kent) Ltd,DCB001,Director of Corporate Resources and S151,Balance Sheet,Repairs And Mtce Holding A/C,CONSTRUCTION-REPAIR AND MAINT
http://thanet.gov.uk/supplierspend,Thanet District Council,29/01/2019,467753,9697.88,,Dcb (Kent) Ltd,DCB001,Director of Corporate Resources and S151,Balance Sheet,Repairs And Mtce Holding A/C,CONSTRUCTION-REPAIR AND MAINT
http://thanet.gov.uk/supplierspend,Thanet District Council,29/01/2019,468293,81318.55,,Dcb (Kent) Ltd,DCB001,Director of Corporate Resources and S151,Balance Sheet,Repairs And Mtce Holding A/C,CONSTRUCTION-REPAIR AND MAINT
http://thanet.gov.uk/supplierspend,Thanet District Council,29/01/2019,468233,610.73,,Dennis Eagle Ltd,DEN005,Dir Ops/Commercial Serv,Revenue,Direct Transport Costs,VEHICLE MANAGEMENT
http://thanet.gov.uk/supplierspend,Thanet District Council,29/01/2019,467419,1250,,Dha Planning Limited,DHA002,Deputy Chief Executive/S151,Revenue,Services,CONSULTANCY
http://thanet.gov.uk/supplierspend,Thanet District Council,29/01/2019,467448,1555,,Disclosure And Barring Service,DIS017,Dir Ops/Commercial Serv,Revenue,"Equip, Furniture And Materials",HUMAN RESOURCES
http://thanet.gov.uk/supplierspend,Thanet District Council,29/01/2019,468040,70857.5,,Dover District Council,DOV001,Deputy Chief Executive/S151,Revenue,Services,VARIOUS CATS-PUBLIC SECTOR
http://thanet.gov.uk/supplierspend,Thanet District Council,29/01/2019,468041,30905,,Dover District Council,DOV001,East Kent Shared Services,Revenue,Services,VARIOUS CATS-PUBLIC SECTOR
http://thanet.gov.uk/supplierspend,Thanet District Council,29/01/2019,468042,15540,,Dover District Council,DOV001,East Kent Shared Services,Revenue,Services,VARIOUS CATS-PUBLIC SECTOR
http://thanet.gov.uk/supplierspend,Thanet District Council,29/01/2019,468043,14747.5,,Dover District Council,DOV001,Deputy Chief Executive/S151,Revenue,Services,VARIOUS CATS-PUBLIC SECTOR
http://thanet.gov.uk/supplierspend,Thanet District Council,29/01/2019,468328,330967.75,,East Kent Housing Ltd,EKH002,Deputy Chief Executive/S151,Revenue,Other Agencies,HOUSING MANAGEMENT
http://thanet.gov.uk/supplierspend,Thanet District Council,29/01/2019,468235,971.5,,Edmundson Electrical Limited,EDM001,Dir Ops/Commercial Serv,Revenue,"Repairs,  Alter & Mtce - Build",BUILDING CONSTRUCTION MATERIAL
http://thanet.gov.uk/supplierspend,Thanet District Council,29/01/2019,468250,-582.9,,Edmundson Electrical Limited,EDM001,Dir Ops/Commercial Serv,Revenue,"Repairs,  Alter & Mtce - Build",BUILDING CONSTRUCTION MATERIAL
http://thanet.gov.uk/supplierspend,Thanet District Council,29/01/2019,468298,468.82,,Electoral Reform Services,ELE010,Director Of Corp Gov/Mon Off,Revenue,"Print, Stat And Gen Off Exps",FACILITIES AND MANGEMENT SERV
http://thanet.gov.uk/supplierspend,Thanet District Council,29/01/2019,468197,800,,G & G Forklifts,GGF001,Director of Corporate Resources and S151,Balance Sheet,Other Land And Buildings-Hra,VEHICLE MANAGEMENT
http://thanet.gov.uk/supplierspend,Thanet District Council,29/01/2019,468691,128660,,Heath Lambert Limited (Client Money),HEA011,Director of Corporate Resources and S151,Balance Sheet,Insurance Holding Account,FINANCIAL SERVICES
http://thanet.gov.uk/supplierspend,Thanet District Council,29/01/2019,468003,7236.5,,Hr Go (Kent) Ltd,HRG001,Dir Ops/Commercial Serv,Revenue,Agency Staff,HUMAN RESOURCES
http://thanet.gov.uk/supplierspend,Thanet District Council,29/01/2019,468255,525.1,,Hr Go (Kent) Ltd,HRG001,Dir Ops/Commercial Serv,Revenue,Agency Staff,HUMAN RESOURCES
http://thanet.gov.uk/supplierspend,Thanet District Council,29/01/2019,468258,1401.5,,Hr Go (Kent) Ltd,HRG001,Dir Ops/Commercial Serv,Revenue,Agency Staff,HUMAN RESOURCES
http://thanet.gov.uk/supplierspend,Thanet District Council,29/01/2019,468259,777.75,,Hr Go (Kent) Ltd,HRG001,Dir Ops/Commercial Serv,Revenue,Agency Staff,HUMAN RESOURCES
http://thanet.gov.uk/supplierspend,Thanet District Council,29/01/2019,468062,2324.28,,Iken Business Ltd,IKE001,Director Of Corp Gov/Mon Off,Revenue,Communications & Computing,ICT
http://thanet.gov.uk/supplierspend,Thanet District Council,29/01/2019,468254,2500,,John Letherland Limited,JOH015,Dir Ops/Commercial Serv,Revenue,Services,CONSTRUCTION-REPAIR AND MAINT
http://thanet.gov.uk/supplierspend,Thanet District Council,29/01/2019,467975,688.85,,Kent County Council,KCC002,Director Of Corp Gov/Mon Off,Revenue,Services,VARIOUS CATS-PUBLIC SECTOR
http://thanet.gov.uk/supplierspend,Thanet District Council,29/01/2019,468268,1524.56,,Kent County Council,KCC002,Director Of Corp Gov/Mon Off,Revenue,Rents,VARIOUS CATS-PUBLIC SECTOR
http://thanet.gov.uk/supplierspend,Thanet District Council,29/01/2019,468615,1512,,Kent County Council,KCC002,Director Of Corp Gov/Mon Off,Revenue,Services,VARIOUS CATS-PUBLIC SECTOR
http://thanet.gov.uk/supplierspend,Thanet District Council,29/01/2019,467286,800,,Ling Metals Limited,LIN004,Dir Ops/Commercial Serv,Revenue,Cleaning & Domestic Supplies,ENVIRONMENTAL SERVICES
http://thanet.gov.uk/supplierspend,Thanet District Council,29/01/2019,468185,675,,Ling Metals Limited,LIN004,Dir Ops/Commercial Serv,Revenue,Cleaning & Domestic Supplies,ENVIRONMENTAL SERVICES
http://thanet.gov.uk/supplierspend,Thanet District Council,29/01/2019,468188,2338.2,,Ling Metals Limited,LIN004,Dir Ops/Commercial Serv,Revenue,Services,ENVIRONMENTAL SERVICES
http://thanet.gov.uk/supplierspend,Thanet District Council,29/01/2019,468199,-800,,Ling Metals Limited,LIN004,Dir Ops/Commercial Serv,Revenue,Cleaning & Domestic Supplies,ENVIRONMENTAL SERVICES
http://thanet.gov.uk/supplierspend,Thanet District Council,29/01/2019,468030,440,,Lyreco Uk Limited,LYR001,Director Of Corp Gov/Mon Off,Revenue,"Print, Stat And Gen Off Exps",STATIONERY
http://thanet.gov.uk/supplierspend,Thanet District Council,29/01/2019,468286,587570,,Maidstone Borough Council,MAI002,Deputy Chief Executive/S151,Revenue,Revenue Financing,VARIOUS CATS-PUBLIC SECTOR
http://thanet.gov.uk/supplierspend,Thanet District Council,29/01/2019,468286,1557100,,Maidstone Borough Council,MAI002,Director of Corporate Resources and S151,Balance Sheet,Collection Fund,VARIOUS CATS-PUBLIC SECTOR
http://thanet.gov.uk/supplierspend,Thanet District Council,29/01/2019,468674,303385,,Maidstone Borough Council,MAI002,Director of Corporate Resources and S151,Balance Sheet,Business Rate Pooling,VARIOUS CATS-PUBLIC SECTOR
http://thanet.gov.uk/supplierspend,Thanet District Council,29/01/2019,468004,1674,,Mears Ltd,MEA003,Director of Corporate Resources and S151,Balance Sheet,Repairs And Mtce Holding A/C,CONSTRUCTION-REPAIR AND MAINT
http://thanet.gov.uk/supplierspend,Thanet District Council,29/01/2019,468005,9789.21,,Mears Ltd,MEA003,Director of Corporate Resources and S151,Balance Sheet,Repairs And Mtce Holding A/C,CONSTRUCTION-REPAIR AND MAINT
http://thanet.gov.uk/supplierspend,Thanet District Council,29/01/2019,468006,3577.88,,Mears Ltd,MEA003,Director of Corporate Resources and S151,Balance Sheet,Repairs And Mtce Holding A/C,CONSTRUCTION-REPAIR AND MAINT
http://thanet.gov.uk/supplierspend,Thanet District Council,29/01/2019,468007,1307.72,,Mears Ltd,MEA003,Director of Corporate Resources and S151,Balance Sheet,Repairs And Mtce Holding A/C,CONSTRUCTION-REPAIR AND MAINT
http://thanet.gov.uk/supplierspend,Thanet District Council,29/01/2019,468008,533.75,,Mears Ltd,MEA003,Director of Corporate Resources and S151,Balance Sheet,Repairs And Mtce Holding A/C,CONSTRUCTION-REPAIR AND MAINT
http://thanet.gov.uk/supplierspend,Thanet District Council,29/01/2019,468033,792,,Mears Ltd,MEA003,Director of Corporate Resources and S151,Balance Sheet,Council Dwellings,CONSTRUCTION-REPAIR AND MAINT
http://thanet.gov.uk/supplierspend,Thanet District Council,29/01/2019,468036,9479.2,,Mears Ltd,MEA003,Director Of Corp Gov/Mon Off,Revenue,"Repairs,  Alter & Mtce - Build",CONSTRUCTION-REPAIR AND MAINT
http://thanet.gov.uk/supplierspend,Thanet District Council,29/01/2019,468273,501.53,,Mears Ltd,MEA003,Director Of Corp Gov/Mon Off,Revenue,"Repairs,  Alter & Mtce - Build",CONSTRUCTION-REPAIR AND MAINT
http://thanet.gov.uk/supplierspend,Thanet District Council,29/01/2019,468273,617.28,,Mears Ltd,MEA003,Dir Ops/Commercial Serv,Revenue,"Repairs,  Alter & Mtce - Build",CONSTRUCTION-REPAIR AND MAINT
http://thanet.gov.uk/supplierspend,Thanet District Council,29/01/2019,468336,1852.06,,Mears Ltd,MEA003,Dir Ops/Commercial Serv,Revenue,"Repairs,  Alter & Mtce - Build",CONSTRUCTION-REPAIR AND MAINT
http://thanet.gov.uk/supplierspend,Thanet District Council,29/01/2019,468352,100948.71,,Mears Ltd,MEA003,Deputy Chief Executive/S151,Revenue,"Repairs,  Alter & Mtce - Build",CONSTRUCTION-REPAIR AND MAINT
http://thanet.gov.uk/supplierspend,Thanet District Council,29/01/2019,468526,4993.37,,Mears Ltd,MEA003,Director of Corporate Resources and S151,Balance Sheet,Repairs And Mtce Holding A/C,CONSTRUCTION-REPAIR AND MAINT
http://thanet.gov.uk/supplierspend,Thanet District Council,29/01/2019,468531,19532.72,,Mears Ltd,MEA003,Director of Corporate Resources and S151,Balance Sheet,Repairs And Mtce Holding A/C,CONSTRUCTION-REPAIR AND MAINT
http://thanet.gov.uk/supplierspend,Thanet District Council,29/01/2019,468532,653.95,,Mears Ltd,MEA003,Director of Corporate Resources and S151,Balance Sheet,Repairs And Mtce Holding A/C,CONSTRUCTION-REPAIR AND MAINT
http://thanet.gov.uk/supplierspend,Thanet District Council,29/01/2019,468533,6929.03,,Mears Ltd,MEA003,Director of Corporate Resources and S151,Balance Sheet,Repairs And Mtce Holding A/C,CONSTRUCTION-REPAIR AND MAINT
http://thanet.gov.uk/supplierspend,Thanet District Council,29/01/2019,468534,13941.81,,Mears Ltd,MEA003,Director of Corporate Resources and S151,Balance Sheet,Repairs And Mtce Holding A/C,CONSTRUCTION-REPAIR AND MAINT
http://thanet.gov.uk/supplierspend,Thanet District Council,29/01/2019,468535,863.71,,Mears Ltd,MEA003,Director of Corporate Resources and S151,Balance Sheet,Repairs And Mtce Holding A/C,CONSTRUCTION-REPAIR AND MAINT
http://thanet.gov.uk/supplierspend,Thanet District Council,29/01/2019,468527,2500,,Medway Insulations Limited,MED006,Director of Corporate Resources and S151,Balance Sheet,Repairs And Mtce Holding A/C,ENVIRONMENTAL SERVICES
http://thanet.gov.uk/supplierspend,Thanet District Council,29/01/2019,468666,1750,,Miles & Barr Property Man  Ltd,MIL048,Deputy Chief Executive/S151,Revenue,Grants & Subscriptions,RENT DEPOSITS
http://thanet.gov.uk/supplierspend,Thanet District Council,29/01/2019,468675,1500,,Miles & Barr Property Man  Ltd,MIL048,Deputy Chief Executive/S151,Revenue,Grants & Subscriptions,RENT DEPOSITS
http://thanet.gov.uk/supplierspend,Thanet District Council,29/01/2019,468074,5000,,Neopost Limited Neofunds,NEO004,Director Of Corp Gov/Mon Off,Revenue,Communications & Computing,MAIL SERVICES
http://thanet.gov.uk/supplierspend,Thanet District Council,29/01/2019,468239,799.88,,Ohuk Limited,OHU001,Dir Ops/Commercial Serv,Revenue,Agency Staff,HUMAN RESOURCES
http://thanet.gov.uk/supplierspend,Thanet District Council,29/01/2019,468495,799.88,,Ohuk Limited,OHU001,Dir Ops/Commercial Serv,Revenue,Agency Staff,HUMAN RESOURCES
http://thanet.gov.uk/supplierspend,Thanet District Council,29/01/2019,468171,440.04,,Oracle Corporation Uk Ltd,ORA001,East Kent Shared Services,Revenue,Communications & Computing,ICT
http://thanet.gov.uk/supplierspend,Thanet District Council,29/01/2019,467627,2155.2,,Phoenix Software Ltd,PHO002,Director of Corporate Resources and S151,Balance Sheet,Plant And Equipment,ICT
http://thanet.gov.uk/supplierspend,Thanet District Council,29/01/2019,467088,1350,,Playle & Partners Llp,PLA030,Director Of Corp Gov/Mon Off,Revenue,Services,HUMAN RESOURCES
http://thanet.gov.uk/supplierspend,Thanet District Council,29/01/2019,468541,630,,R Cannon,CAN007,Dir Ops/Commercial Serv,Revenue,Services,MARITIME SERVICES
http://thanet.gov.uk/supplierspend,Thanet District Council,29/01/2019,467867,721.5,,R S S (Wessex) Limited,RSS002,Dir Ops/Commercial Serv,Revenue,Agency Staff,HUMAN RESOURCES
http://thanet.gov.uk/supplierspend,Thanet District Council,29/01/2019,467868,419.25,,R S S (Wessex) Limited,RSS002,Dir Ops/Commercial Serv,Revenue,Agency Staff,HUMAN RESOURCES
http://thanet.gov.uk/supplierspend,Thanet District Council,29/01/2019,468672,6470.98,,REDACTED PERSONAL DATA,N/A,Director of Corporate Resources and S151,Balance Sheet,Capital Exp-Non Council Assets,GRANTS
http://thanet.gov.uk/supplierspend,Thanet District Council,29/01/2019,468184,3342.13,,Scottish Water Business Stream Ltd,SCO019,Director Of Corp Gov/Mon Off,Revenue,Water Services,UTILITIES
http://thanet.gov.uk/supplierspend,Thanet District Council,29/01/2019,468206,5233.76,,Scottish Water Business Stream Ltd,SCO019,Dir Ops/Commercial Serv,Revenue,Water Services,UTILITIES
http://thanet.gov.uk/supplierspend,Thanet District Council,29/01/2019,468218,2630.7,,Scottish Water Business Stream Ltd,SCO019,Dir Ops/Commercial Serv,Revenue,Water Services,UTILITIES
http://thanet.gov.uk/supplierspend,Thanet District Council,29/01/2019,468638,1713,,Secretary Of State,SEC003,Deputy Chief Executive/S151,Revenue,Revenue Financing,GOVERNMENT AGENCIES
http://thanet.gov.uk/supplierspend,Thanet District Council,29/01/2019,468638,1759,,Secretary Of State,SEC003,Director of Corporate Resources and S151,Balance Sheet,Collection Fund,GOVERNMENT AGENCIES
http://thanet.gov.uk/supplierspend,Thanet District Council,29/01/2019,468638,14186,,Secretary Of State,SEC003,Director of Corporate Resources and S151,Balance Sheet,Business Rates Retention,GOVERNMENT AGENCIES
http://thanet.gov.uk/supplierspend,Thanet District Council,29/01/2019,468061,2608.6,,Sellick Partnership Ltd,SEL011,Director Of Corp Gov/Mon Off,Revenue,Agency Staff,HUMAN RESOURCES
http://thanet.gov.uk/supplierspend,Thanet District Council,29/01/2019,468341,418.2,,Sellick Partnership Ltd,SEL011,Director Of Corp Gov/Mon Off,Revenue,Services,HUMAN RESOURCES
http://thanet.gov.uk/supplierspend,Thanet District Council,29/01/2019,468625,1917,,Sellick Partnership Ltd,SEL011,Director Of Corp Gov/Mon Off,Revenue,Agency Staff,HUMAN RESOURCES
http://thanet.gov.uk/supplierspend,Thanet District Council,29/01/2019,468342,2820,,Solent Marine Ltd,SOL011,Dir Ops/Commercial Serv,Revenue,"Equip, Furniture And Materials",MARITIME SERVICES
http://thanet.gov.uk/supplierspend,Thanet District Council,29/01/2019,468321,7229.32,,Specialist Building Products Ltd,SPE027,Director of Corporate Resources and S151,Balance Sheet,Repairs And Mtce Holding A/C,BUILDING CONSTRUCTION MATERIAL
http://thanet.gov.uk/supplierspend,Thanet District Council,29/01/2019,468577,728,,Stagecoach Services Limited,STA023,Director of Corporate Resources and S151,Balance Sheet,Staff Bus Permits Holding A/C,PUBLIC TRANSPORT
http://thanet.gov.uk/supplierspend,Thanet District Council,29/01/2019,466818,618,,Streetmaster (S.Wales) Limited,STR001,Dir Ops/Commercial Serv,Revenue,"Equip, Furniture And Materials",HIGHWAY EQUIPMENT AND MATERIAL
http://thanet.gov.uk/supplierspend,Thanet District Council,29/01/2019,466819,625.5,,Streetmaster (S.Wales) Limited,STR001,Dir Ops/Commercial Serv,Revenue,"Equip, Furniture And Materials",HIGHWAY EQUIPMENT AND MATERIAL
http://thanet.gov.uk/supplierspend,Thanet District Council,29/01/2019,468303,502,,Tennants Distribution Limited,TEN005,Dir Ops/Commercial Serv,Revenue,Direct Transport Costs,VEHICLE MANAGEMENT
http://thanet.gov.uk/supplierspend,Thanet District Council,29/01/2019,468276,504,,Thanet Waste Services Ltd,TWA001,Dir Ops/Commercial Serv,Revenue,Cleaning & Domestic Supplies,ENVIRONMENTAL SERVICES
http://thanet.gov.uk/supplierspend,Thanet District Council,29/01/2019,468571,950,,The Fed Of Burial & Cremation Auths,FED001,Dir Ops/Commercial Serv,Revenue,Grants & Subscriptions,FINANCIAL SERVICES
http://thanet.gov.uk/supplierspend,Thanet District Council,29/01/2019,468242,1582.97,,The Oyster Partnership Ltd,OYS001,Director Of Corp Gov/Mon Off,Revenue,Agency Staff,HUMAN RESOURCES
http://thanet.gov.uk/supplierspend,Thanet District Council,29/01/2019,468077,1885,,The Pipeline,PIP002,Director of Corporate Resources and S151,Balance Sheet,Repairs And Mtce Holding A/C,VARIOUS CATEGORIES
http://thanet.gov.uk/supplierspend,Thanet District Council,29/01/2019,468025,1164.15,,Total Supplies Ltd,TOT009,Dir Ops/Commercial Serv,Revenue,"Equip, Furniture And Materials",CLEANING AND JANITORIAL
http://thanet.gov.uk/supplierspend,Thanet District Council,29/01/2019,467761,11316.83,,Town & Country Cleaners Ltd,TOW002,Director of Corporate Resources and S151,Balance Sheet,Repairs And Mtce Holding A/C,CLEANING AND JANITORIAL
http://thanet.gov.uk/supplierspend,Thanet District Council,29/01/2019,468058,947.4,,Trustmarque Solutions Limited,TRU014,Director of Corporate Resources and S151,Balance Sheet,Plant And Equipment,ICT
http://thanet.gov.uk/supplierspend,Thanet District Council,29/01/2019,468310,1660,,University Of Derby,UNI020,Dir Ops/Commercial Serv,Revenue,Expenses,HUMAN RESOURCES
http://thanet.gov.uk/supplierspend,Thanet District Council,29/01/2019,468049,484,,Veale Wasbrough Vizards Llp,VEA001,Dir Ops/Commercial Serv,Revenue,Services,LEGAL SERVICES
http://thanet.gov.uk/supplierspend,Thanet District Council,29/01/2019,468311,1485,,Watling Jcb Limited,WAT024,Dir Ops/Commercial Serv,Revenue,Cont Hire & Operating Lease,VEHICLE MANAGEMENT
http://thanet.gov.uk/supplierspend,Thanet District Council,29/01/2019,468313,8749.22,,Watling Jcb Limited,WAT024,Dir Ops/Commercial Serv,Revenue,Direct Transport Costs,VEHICLE MANAGEMENT
http://thanet.gov.uk/supplierspend,Thanet District Council,30/01/2019,468912,587570,,Maidstone Borough Council,MAI002,Deputy Chief Executive/S151,Revenue,Revenue Financing,VARIOUS CATS-PUBLIC SECTOR
http://thanet.gov.uk/supplierspend,Thanet District Council,30/01/2019,468912,1557100,,Maidstone Borough Council,MAI002,Director of Corporate Resources and S151,Balance Sheet,Collection Fund,VARIOUS CATS-PUBLIC SECTOR
http://thanet.gov.uk/supplierspend,Thanet District Council,31/01/2019,467564,720.04,,Elec-Sec Ltd,ELE014,Director Of Corp Gov/Mon Off,Revenue,"Repairs,  Alter & Mtce - Build",BUILDING CONSTRUCTION MATERIAL
http://thanet.gov.uk/supplierspend,Thanet District Council,31/01/2019,467587,796.38,,Elec-Sec Ltd,ELE014,Director Of Corp Gov/Mon Off,Revenue,"Repairs,  Alter & Mtce - Build",BUILDING CONSTRUCTION MATERIAL
http://thanet.gov.uk/supplierspend,Thanet District Council,31/01/2019,467588,861.72,,Elec-Sec Ltd,ELE014,Director Of Corp Gov/Mon Off,Revenue,"Repairs,  Alter & Mtce - Build",BUILDING CONSTRUCTION MATERIAL
http://thanet.gov.uk/supplierspend,Thanet District Council,31/01/2019,468091,565.5,,Frandham Boarding Kennels,FRA010,Dir Ops/Commercial Serv,Revenue,Services,ENVIRONMENTAL SERVICES
http://thanet.gov.uk/supplierspend,Thanet District Council,31/01/2019,468277,650,,Hi Way Services Ltd,HIW002,Dir Ops/Commercial Serv,Revenue,"Repairs,  Alter & Mtce - Build",HIGHWAY EQUIPMENT AND MATERIAL
http://thanet.gov.uk/supplierspend,Thanet District Council,31/01/2019,463397,-423.53,,Hr Go (Kent) Ltd,HRG001,Dir Ops/Commercial Serv,Revenue,Agency Staff,HUMAN RESOURCES
http://thanet.gov.uk/supplierspend,Thanet District Council,31/01/2019,468474,600.77,,Hr Go (Kent) Ltd,HRG001,Dir Ops/Commercial Serv,Revenue,Agency Staff,HUMAN RESOURCES
http://thanet.gov.uk/supplierspend,Thanet District Council,31/01/2019,468512,5092.25,,Hr Go (Kent) Ltd,HRG001,Dir Ops/Commercial Serv,Revenue,Agency Staff,HUMAN RESOURCES
http://thanet.gov.uk/supplierspend,Thanet District Council,31/01/2019,468549,-571.31,,Hr Go (Kent) Ltd,HRG001,Dir Ops/Commercial Serv,Revenue,Agency Staff,HUMAN RESOURCES
http://thanet.gov.uk/supplierspend,Thanet District Council,31/01/2019,468604,658.6,,Hr Go (Kent) Ltd,HRG001,Dir Ops/Commercial Serv,Revenue,Agency Staff,HUMAN RESOURCES
http://thanet.gov.uk/supplierspend,Thanet District Council,31/01/2019,467896,13395.19,,Imperial Civil Enforcement Sols Ltd,IMP008,Dir Ops/Commercial Serv,Revenue,"Equip, Furniture And Materials",STREET AND TRAFFIC MANAGEMENT
http://thanet.gov.uk/supplierspend,Thanet District Council,31/01/2019,468607,1100,,Luv Corp Ltd,LUV001,Deputy Chief Executive/S151,Revenue,Services,ICT
http://thanet.gov.uk/supplierspend,Thanet District Council,31/01/2019,468609,1512.5,,Luv Corp Ltd,LUV001,Deputy Chief Executive/S151,Revenue,Services,ICT
http://thanet.gov.uk/supplierspend,Thanet District Council,31/01/2019,468245,1534.05,,Parkeon Limited,PAR063,Dir Ops/Commercial Serv,Revenue,Communications & Computing,STREET AND TRAFFIC MANAGEMENT
http://thanet.gov.uk/supplierspend,Thanet District Council,31/01/2019,468246,1533.75,,Parkeon Limited,PAR063,Dir Ops/Commercial Serv,Revenue,Communications & Computing,STREET AND TRAFFIC MANAGEMENT
http://thanet.gov.uk/supplierspend,Thanet District Council,31/01/2019,467569,425,,Sellick Partnership Ltd,SEL011,Director Of Corp Gov/Mon Off,Revenue,Services,HUMAN RESOURCES
http://thanet.gov.uk/supplierspend,Thanet District Council,31/01/2019,467585,1917,,Sellick Partnership Ltd,SEL011,Director Of Corp Gov/Mon Off,Revenue,Agency Staff,HUMAN RESOURCES
http://thanet.gov.uk/supplierspend,Thanet District Council,31/01/2019,465147,950,,The Fulker Consultancy Limited,FUL005,Director of Corporate Resources and S151,Balance Sheet,Repairs And Mtce Holding A/C,CONSULTANCY
http://thanet.gov.uk/supplierspend,Thanet District Council,06/02/2019,469106,7681.65,,Acorn Maintenance Services Ltd,ACO010,Director of Corporate Resources and S151,Balance Sheet,Capital Exp-Non Council Assets,GRANTS
http://thanet.gov.uk/supplierspend,Thanet District Council,06/02/2019,469118,6343.97,,Acorn Maintenance Services Ltd,ACO010,Director of Corporate Resources and S151,Balance Sheet,Capital Exp-Non Council Assets,GRANTS
http://thanet.gov.uk/supplierspend,Thanet District Council,06/02/2019,468617,513.23,,Aebi Schmidt Uk Limited,AEB002,Dir Ops/Commercial Serv,Revenue,Direct Transport Costs,VEHICLE MANAGEMENT
http://thanet.gov.uk/supplierspend,Thanet District Council,06/02/2019,468618,634.23,,Aebi Schmidt Uk Limited,AEB002,Dir Ops/Commercial Serv,Revenue,Direct Transport Costs,VEHICLE MANAGEMENT
http://thanet.gov.uk/supplierspend,Thanet District Council,06/02/2019,468619,440.48,,Aebi Schmidt Uk Limited,AEB002,Dir Ops/Commercial Serv,Revenue,Direct Transport Costs,VEHICLE MANAGEMENT
http://thanet.gov.uk/supplierspend,Thanet District Council,06/02/2019,468621,585.86,,Aebi Schmidt Uk Limited,AEB002,Dir Ops/Commercial Serv,Revenue,Direct Transport Costs,VEHICLE MANAGEMENT
http://thanet.gov.uk/supplierspend,Thanet District Council,06/02/2019,469092,2295,,Ascendit Lifts Ltd,ASC001,Director of Corporate Resources and S151,Balance Sheet,Capital Exp-Non Council Assets,GRANTS
http://thanet.gov.uk/supplierspend,Thanet District Council,06/02/2019,469094,2285,,Ascendit Lifts Ltd,ASC001,Director of Corporate Resources and S151,Balance Sheet,Capital Exp-Non Council Assets,GRANTS
http://thanet.gov.uk/supplierspend,Thanet District Council,06/02/2019,469098,4700,,Bramling Construction Ltd,BRA020,Director of Corporate Resources and S151,Balance Sheet,Capital Exp-Non Council Assets,GRANTS
http://thanet.gov.uk/supplierspend,Thanet District Council,06/02/2019,469102,11374.54,,Bramling Construction Ltd,BRA020,Director of Corporate Resources and S151,Balance Sheet,Capital Exp-Non Council Assets,GRANTS
http://thanet.gov.uk/supplierspend,Thanet District Council,06/02/2019,469108,12976.5,,Bramling Construction Ltd,BRA020,Director of Corporate Resources and S151,Balance Sheet,Capital Exp-Non Council Assets,GRANTS
http://thanet.gov.uk/supplierspend,Thanet District Council,06/02/2019,469110,13500,,Bramling Construction Ltd,BRA020,Director of Corporate Resources and S151,Balance Sheet,Capital Exp-Non Council Assets,GRANTS
http://thanet.gov.uk/supplierspend,Thanet District Council,06/02/2019,469122,7150.87,,Bramling Construction Ltd,BRA020,Director of Corporate Resources and S151,Balance Sheet,Capital Exp-Non Council Assets,GRANTS
http://thanet.gov.uk/supplierspend,Thanet District Council,06/02/2019,468622,848.52,,Canon (Uk) Ltd,CAN021,Dir Ops/Commercial Serv,Revenue,"Equip, Furniture And Materials",FACILITIES AND MANGEMENT SERV
http://thanet.gov.uk/supplierspend,Thanet District Council,06/02/2019,468622,1133.25,,Canon (Uk) Ltd,CAN021,Director Of Corp Gov/Mon Off,Revenue,"Equip, Furniture And Materials",FACILITIES AND MANGEMENT SERV
http://thanet.gov.uk/supplierspend,Thanet District Council,06/02/2019,467991,1463.52,,Clague Llp,CLA038,Dir Ops/Commercial Serv,Revenue,"Repairs,  Alter & Mtce - Build",CONSTRUCTION-REPAIR AND MAINT
http://thanet.gov.uk/supplierspend,Thanet District Council,06/02/2019,468900,2722.25,,Commercial Services Trading Ltd,COM048,Dir Ops/Commercial Serv,Revenue,Cont Hire & Operating Lease,VARIOUS CATS-PUBLIC SECTOR
http://thanet.gov.uk/supplierspend,Thanet District Council,06/02/2019,468901,2722.25,,Commercial Services Trading Ltd,COM048,Dir Ops/Commercial Serv,Revenue,Cont Hire & Operating Lease,VARIOUS CATS-PUBLIC SECTOR
http://thanet.gov.uk/supplierspend,Thanet District Council,06/02/2019,468930,940.64,,Dcb (Kent) Ltd,DCB001,Director of Corporate Resources and S151,Balance Sheet,Repairs And Mtce Holding A/C,CONSTRUCTION-REPAIR AND MAINT
http://thanet.gov.uk/supplierspend,Thanet District Council,06/02/2019,468931,3715.48,,Dcb (Kent) Ltd,DCB001,Director of Corporate Resources and S151,Balance Sheet,Repairs And Mtce Holding A/C,CONSTRUCTION-REPAIR AND MAINT
http://thanet.gov.uk/supplierspend,Thanet District Council,06/02/2019,468556,1216.32,,Dennis Eagle Limited,TER011,Dir Ops/Commercial Serv,Revenue,Direct Transport Costs,VEHICLE MANAGEMENT
http://thanet.gov.uk/supplierspend,Thanet District Council,06/02/2019,468528,523.46,,Dennis Eagle Ltd,DEN005,Dir Ops/Commercial Serv,Revenue,Direct Transport Costs,VEHICLE MANAGEMENT
http://thanet.gov.uk/supplierspend,Thanet District Council,06/02/2019,468529,531.1,,Dennis Eagle Ltd,DEN005,Dir Ops/Commercial Serv,Revenue,Direct Transport Costs,VEHICLE MANAGEMENT
http://thanet.gov.uk/supplierspend,Thanet District Council,06/02/2019,469104,2200,,Dolphin Lifts Kent,DOL003,Director of Corporate Resources and S151,Balance Sheet,Capital Exp-Non Council Assets,GRANTS
http://thanet.gov.uk/supplierspend,Thanet District Council,06/02/2019,469115,13900,,Dolphin Lifts Kent,DOL003,Director of Corporate Resources and S151,Balance Sheet,Capital Exp-Non Council Assets,GRANTS
http://thanet.gov.uk/supplierspend,Thanet District Council,06/02/2019,469010,1000,,Dr Alexander Marshall,MAR100,Dir Ops/Commercial Serv,Revenue,Services,CEMETERY AND CREMATORIUM
http://thanet.gov.uk/supplierspend,Thanet District Council,06/02/2019,467594,10000,,E Saunders Margate Ltd,SAU001,Dir Ops/Commercial Serv,Revenue,"Repairs,  Alter & Mtce - Build",CONSTRUCTION-REPAIR AND MAINT
http://thanet.gov.uk/supplierspend,Thanet District Council,06/02/2019,468297,950,,Eagle Security Alarms Ltd,EAG005,Dir Ops/Commercial Serv,Revenue,"Equip, Furniture And Materials",FACILITIES AND MANGEMENT SERV
http://thanet.gov.uk/supplierspend,Thanet District Council,06/02/2019,468979,2000,,Educational Life Cic,EDU003,Dir Ops/Commercial Serv,Revenue,Miscellaneous Expenses,HEALTHCARE
http://thanet.gov.uk/supplierspend,Thanet District Council,06/02/2019,468505,454.11,,Elec-Sec Ltd,ELE014,Director Of Corp Gov/Mon Off,Revenue,"Repairs,  Alter & Mtce - Build",BUILDING CONSTRUCTION MATERIAL
http://thanet.gov.uk/supplierspend,Thanet District Council,06/02/2019,468083,555.6,,Electrical Lighting Solutions Ltd,ELE013,Dir Ops/Commercial Serv,Revenue,"Repairs,  Alter & Mtce - Build",BUILDING CONSTRUCTION MATERIAL
http://thanet.gov.uk/supplierspend,Thanet District Council,06/02/2019,469099,3242.74,,Evermech Services Ltd,EVE011,Director of Corporate Resources and S151,Balance Sheet,Capital Exp-Non Council Assets,GRANTS
http://thanet.gov.uk/supplierspend,Thanet District Council,06/02/2019,469147,9340,,Evermech Services Ltd,EVE011,Director of Corporate Resources and S151,Balance Sheet,Capital Exp-Non Council Assets,GRANTS
http://thanet.gov.uk/supplierspend,Thanet District Council,06/02/2019,469150,7722.18,,Evermech Services Ltd,EVE011,Director of Corporate Resources and S151,Balance Sheet,Capital Exp-Non Council Assets,GRANTS
http://thanet.gov.uk/supplierspend,Thanet District Council,06/02/2019,468238,290.17,,Fleet (Line Markers) Ltd,FLE008,Dir Ops/Commercial Serv,Revenue,Services,HORTICULTURAL
http://thanet.gov.uk/supplierspend,Thanet District Council,06/02/2019,468238,1500,,Fleet (Line Markers) Ltd,FLE008,Dir Ops/Commercial Serv,Revenue,"Equip, Furniture And Materials",HORTICULTURAL
http://thanet.gov.uk/supplierspend,Thanet District Council,06/02/2019,469060,765,,Freight Transport Association,FRE007,Dir Ops/Commercial Serv,Revenue,Communications & Computing,HUMAN RESOURCES
http://thanet.gov.uk/supplierspend,Thanet District Council,06/02/2019,468475,210,,Gerlack & Thorne Ltd,GER001,Dir Ops/Commercial Serv,Revenue,"Repairs,  Alter & Mtce - Build",CONSTRUCTION-REPAIR AND MAINT
http://thanet.gov.uk/supplierspend,Thanet District Council,06/02/2019,468475,735,,Gerlack & Thorne Ltd,GER001,Director Of Corp Gov/Mon Off,Revenue,"Repairs,  Alter & Mtce - Build",CONSTRUCTION-REPAIR AND MAINT
http://thanet.gov.uk/supplierspend,Thanet District Council,06/02/2019,468275,1220.4,,Graffiti Removal Ltd,GRA039,Dir Ops/Commercial Serv,Revenue,"Equip, Furniture And Materials",CLEANING AND JANITORIAL
http://thanet.gov.uk/supplierspend,Thanet District Council,06/02/2019,469089,4000,,Heath Lambert Limited (Client Money),HEA011,Director of Corporate Resources and S151,Balance Sheet,Insurance Holding Account,FINANCIAL SERVICES
http://thanet.gov.uk/supplierspend,Thanet District Council,06/02/2019,469120,7001.16,,Hfd Construction,HFD001,Director of Corporate Resources and S151,Balance Sheet,Capital Exp-Non Council Assets,GRANTS
http://thanet.gov.uk/supplierspend,Thanet District Council,06/02/2019,468257,449.55,,Hr Go (Kent) Ltd,HRG001,Dir Ops/Commercial Serv,Revenue,Agency Staff,HUMAN RESOURCES
http://thanet.gov.uk/supplierspend,Thanet District Council,06/02/2019,468602,777.75,,Hr Go (Kent) Ltd,HRG001,Dir Ops/Commercial Serv,Revenue,Agency Staff,HUMAN RESOURCES
http://thanet.gov.uk/supplierspend,Thanet District Council,06/02/2019,468603,1401.5,,Hr Go (Kent) Ltd,HRG001,Dir Ops/Commercial Serv,Revenue,Agency Staff,HUMAN RESOURCES
http://thanet.gov.uk/supplierspend,Thanet District Council,06/02/2019,468605,449.55,,Hr Go (Kent) Ltd,HRG001,Dir Ops/Commercial Serv,Revenue,Agency Staff,HUMAN RESOURCES
http://thanet.gov.uk/supplierspend,Thanet District Council,06/02/2019,468608,425.36,,Hr Go (Kent) Ltd,HRG001,Dir Ops/Commercial Serv,Revenue,Agency Staff,HUMAN RESOURCES
http://thanet.gov.uk/supplierspend,Thanet District Council,06/02/2019,469116,6027.47,,Hubbard & Houghton Construction Ltd,HUB003,Director of Corporate Resources and S151,Balance Sheet,Capital Exp-Non Council Assets,GRANTS
http://thanet.gov.uk/supplierspend,Thanet District Council,06/02/2019,469097,1092.6,,John Gale,GAL001,Director of Corporate Resources and S151,Balance Sheet,Capital Exp-Non Council Assets,GRANTS
http://thanet.gov.uk/supplierspend,Thanet District Council,06/02/2019,467966,9330.98,,Kent County Council (Kcs),KCC003,Dir Ops/Commercial Serv,Revenue,Energy Costs,FACILITIES AND MANGEMENT SERV
http://thanet.gov.uk/supplierspend,Thanet District Council,06/02/2019,467967,1851.78,,Kent County Council (Kcs),KCC003,Dir Ops/Commercial Serv,Revenue,Energy Costs,FACILITIES AND MANGEMENT SERV
http://thanet.gov.uk/supplierspend,Thanet District Council,06/02/2019,467968,6196.18,,Kent County Council (Kcs),KCC003,Dir Ops/Commercial Serv,Revenue,Energy Costs,FACILITIES AND MANGEMENT SERV
http://thanet.gov.uk/supplierspend,Thanet District Council,06/02/2019,467969,2221.39,,Kent County Council (Kcs),KCC003,Dir Ops/Commercial Serv,Revenue,Energy Costs,FACILITIES AND MANGEMENT SERV
http://thanet.gov.uk/supplierspend,Thanet District Council,06/02/2019,467970,1495.49,,Kent County Council (Kcs),KCC003,Dir Ops/Commercial Serv,Revenue,Energy Costs,FACILITIES AND MANGEMENT SERV
http://thanet.gov.uk/supplierspend,Thanet District Council,06/02/2019,467971,9324.89,,Kent County Council (Kcs),KCC003,Director Of Corp Gov/Mon Off,Revenue,Energy Costs,FACILITIES AND MANGEMENT SERV
http://thanet.gov.uk/supplierspend,Thanet District Council,06/02/2019,467972,22292,,Kent County Council (Kcs),KCC003,Director Of Corp Gov/Mon Off,Revenue,Energy Costs,FACILITIES AND MANGEMENT SERV
http://thanet.gov.uk/supplierspend,Thanet District Council,06/02/2019,468014,579.41,,Kent County Council (Kcs),KCC003,Director Of Corp Gov/Mon Off,Revenue,Energy Costs,FACILITIES AND MANGEMENT SERV
http://thanet.gov.uk/supplierspend,Thanet District Council,06/02/2019,468015,2434.64,,Kent County Council (Kcs),KCC003,Director Of Corp Gov/Mon Off,Revenue,Energy Costs,FACILITIES AND MANGEMENT SERV
http://thanet.gov.uk/supplierspend,Thanet District Council,06/02/2019,468016,840.34,,Kent County Council (Kcs),KCC003,Dir Ops/Commercial Serv,Revenue,Energy Costs,FACILITIES AND MANGEMENT SERV
http://thanet.gov.uk/supplierspend,Thanet District Council,06/02/2019,468017,1847.66,,Kent County Council (Kcs),KCC003,Deputy Chief Executive/S151,Revenue,Energy Costs,FACILITIES AND MANGEMENT SERV
http://thanet.gov.uk/supplierspend,Thanet District Council,06/02/2019,468018,785.11,,Kent County Council (Kcs),KCC003,Dir Ops/Commercial Serv,Revenue,Energy Costs,FACILITIES AND MANGEMENT SERV
http://thanet.gov.uk/supplierspend,Thanet District Council,06/02/2019,468019,1354.81,,Kent County Council (Kcs),KCC003,Director Of Corp Gov/Mon Off,Revenue,Energy Costs,FACILITIES AND MANGEMENT SERV
http://thanet.gov.uk/supplierspend,Thanet District Council,06/02/2019,468024,1943.1,,Kent County Council (Kcs),KCC003,Dir Ops/Commercial Serv,Revenue,Energy Costs,FACILITIES AND MANGEMENT SERV
http://thanet.gov.uk/supplierspend,Thanet District Council,06/02/2019,468623,1247.48,,L W Burt & Son Ltd,BUR027,Director Of Corp Gov/Mon Off,Revenue,"Repairs,  Alter & Mtce - Build",CONSTRUCTION-REPAIR AND MAINT
http://thanet.gov.uk/supplierspend,Thanet District Council,06/02/2019,469091,1650,,Lovetts Birchington Ltd,LOV006,Deputy Chief Executive/S151,Revenue,Grants & Subscriptions,RENT DEPOSITS
http://thanet.gov.uk/supplierspend,Thanet District Council,06/02/2019,469070,703.12,,Mears Ltd,MEA003,Director of Corporate Resources and S151,Balance Sheet,Repairs And Mtce Holding A/C,CONSTRUCTION-REPAIR AND MAINT
http://thanet.gov.uk/supplierspend,Thanet District Council,06/02/2019,469071,4992.65,,Mears Ltd,MEA003,Director of Corporate Resources and S151,Balance Sheet,Repairs And Mtce Holding A/C,CONSTRUCTION-REPAIR AND MAINT
http://thanet.gov.uk/supplierspend,Thanet District Council,06/02/2019,469141,1000,,Miles & Barr Property Man  Ltd,MIL048,Deputy Chief Executive/S151,Revenue,Grants & Subscriptions,RENT DEPOSITS
http://thanet.gov.uk/supplierspend,Thanet District Council,06/02/2019,469143,750,,Miles & Barr Property Man  Ltd,MIL048,Deputy Chief Executive/S151,Revenue,Grants & Subscriptions,RENT DEPOSITS
http://thanet.gov.uk/supplierspend,Thanet District Council,06/02/2019,469144,1250,,Miles & Barr Property Man  Ltd,MIL048,Deputy Chief Executive/S151,Revenue,Grants & Subscriptions,RENT DEPOSITS
http://thanet.gov.uk/supplierspend,Thanet District Council,06/02/2019,468634,4006.63,,New Road Contractors Ltd,NEW043,Dir Ops/Commercial Serv,Revenue,"Repairs,  Alter & Mtce - Build",CONSTRUCTION-REPAIR AND MAINT
http://thanet.gov.uk/supplierspend,Thanet District Council,06/02/2019,468582,3990,,Ovenden Allworks Limited,OVE008,Director of Corporate Resources and S151,Balance Sheet,Rechargeable Works,CONSTRUCTION-REPAIR AND MAINT
http://thanet.gov.uk/supplierspend,Thanet District Council,06/02/2019,468965,25030.82,,P & R Installation Company Limited,PRI035,Director of Corporate Resources and S151,Balance Sheet,Repairs And Mtce Holding A/C,BUILDING CONSTRUCTION MATERIAL
http://thanet.gov.uk/supplierspend,Thanet District Council,06/02/2019,468967,877.99,,P & R Installation Company Limited,PRI035,Director of Corporate Resources and S151,Balance Sheet,Repairs And Mtce Holding A/C,BUILDING CONSTRUCTION MATERIAL
http://thanet.gov.uk/supplierspend,Thanet District Council,06/02/2019,469103,1247.94,,Peabody South East Limited,PEA024,Director of Corporate Resources and S151,Balance Sheet,Capital Exp-Non Council Assets,GRANTS
http://thanet.gov.uk/supplierspend,Thanet District Council,06/02/2019,469105,1076.83,,Peabody South East Limited,PEA024,Director of Corporate Resources and S151,Balance Sheet,Capital Exp-Non Council Assets,GRANTS
http://thanet.gov.uk/supplierspend,Thanet District Council,06/02/2019,469107,925.8,,Peabody South East Limited,PEA024,Director of Corporate Resources and S151,Balance Sheet,Capital Exp-Non Council Assets,GRANTS
http://thanet.gov.uk/supplierspend,Thanet District Council,06/02/2019,469109,3000,,Peabody South East Limited,PEA024,Director of Corporate Resources and S151,Balance Sheet,Capital Exp-Non Council Assets,GRANTS
http://thanet.gov.uk/supplierspend,Thanet District Council,06/02/2019,469111,3000,,Peabody South East Limited,PEA024,Director of Corporate Resources and S151,Balance Sheet,Capital Exp-Non Council Assets,GRANTS
http://thanet.gov.uk/supplierspend,Thanet District Council,06/02/2019,469117,727.3,,Peabody South East Limited,PEA024,Director of Corporate Resources and S151,Balance Sheet,Capital Exp-Non Council Assets,GRANTS
http://thanet.gov.uk/supplierspend,Thanet District Council,06/02/2019,469119,761.28,,Peabody South East Limited,PEA024,Director of Corporate Resources and S151,Balance Sheet,Capital Exp-Non Council Assets,GRANTS
http://thanet.gov.uk/supplierspend,Thanet District Council,06/02/2019,469121,844.14,,Peabody South East Limited,PEA024,Director of Corporate Resources and S151,Balance Sheet,Capital Exp-Non Council Assets,GRANTS
http://thanet.gov.uk/supplierspend,Thanet District Council,06/02/2019,469123,858.11,,Peabody South East Limited,PEA024,Director of Corporate Resources and S151,Balance Sheet,Capital Exp-Non Council Assets,GRANTS
http://thanet.gov.uk/supplierspend,Thanet District Council,06/02/2019,469149,916.91,,Peabody South East Limited,PEA024,Director of Corporate Resources and S151,Balance Sheet,Capital Exp-Non Council Assets,GRANTS
http://thanet.gov.uk/supplierspend,Thanet District Council,06/02/2019,469151,926.66,,Peabody South East Limited,PEA024,Director of Corporate Resources and S151,Balance Sheet,Capital Exp-Non Council Assets,GRANTS
http://thanet.gov.uk/supplierspend,Thanet District Council,06/02/2019,469140,1200,,Prospects Assured Uk Ltd,PRO032,Deputy Chief Executive/S151,Revenue,Grants & Subscriptions,RENT DEPOSITS
http://thanet.gov.uk/supplierspend,Thanet District Council,06/02/2019,469146,1000,,Prospects Assured Uk Ltd,PRO032,Deputy Chief Executive/S151,Revenue,Grants & Subscriptions,RENT DEPOSITS
http://thanet.gov.uk/supplierspend,Thanet District Council,06/02/2019,464579,-429,,R S S (Wessex) Limited,RSS002,Dir Ops/Commercial Serv,Revenue,Agency Staff,HUMAN RESOURCES
http://thanet.gov.uk/supplierspend,Thanet District Council,06/02/2019,468251,721.5,,R S S (Wessex) Limited,RSS002,Dir Ops/Commercial Serv,Revenue,Agency Staff,HUMAN RESOURCES
http://thanet.gov.uk/supplierspend,Thanet District Council,06/02/2019,468587,721.5,,R S S (Wessex) Limited,RSS002,Dir Ops/Commercial Serv,Revenue,Agency Staff,HUMAN RESOURCES
http://thanet.gov.uk/supplierspend,Thanet District Council,06/02/2019,468240,539.4,,Rigby Taylor Ltd,RIG002,Dir Ops/Commercial Serv,Revenue,"Equip, Furniture And Materials",HORTICULTURAL
http://thanet.gov.uk/supplierspend,Thanet District Council,06/02/2019,468299,900,,Rupert Beloff,BEL023,Director Of Corp Gov/Mon Off,Revenue,Services,LEGAL SERVICES
http://thanet.gov.uk/supplierspend,Thanet District Council,06/02/2019,468181,964.16,,Scottish Water Business Stream Ltd,SCO019,Dir Ops/Commercial Serv,Revenue,Water Services,UTILITIES
http://thanet.gov.uk/supplierspend,Thanet District Council,06/02/2019,468205,1054.44,,Scottish Water Business Stream Ltd,SCO019,Dir Ops/Commercial Serv,Revenue,Water Services,UTILITIES
http://thanet.gov.uk/supplierspend,Thanet District Council,06/02/2019,468210,922.49,,Scottish Water Business Stream Ltd,SCO019,Dir Ops/Commercial Serv,Revenue,Water Services,UTILITIES
http://thanet.gov.uk/supplierspend,Thanet District Council,06/02/2019,468211,1047.44,,Scottish Water Business Stream Ltd,SCO019,Dir Ops/Commercial Serv,Revenue,Water Services,UTILITIES
http://thanet.gov.uk/supplierspend,Thanet District Council,06/02/2019,468215,773.19,,Scottish Water Business Stream Ltd,SCO019,Dir Ops/Commercial Serv,Revenue,Water Services,UTILITIES
http://thanet.gov.uk/supplierspend,Thanet District Council,06/02/2019,468553,864.51,,Scottish Water Business Stream Ltd,SCO019,Director Of Corp Gov/Mon Off,Revenue,Water Services,UTILITIES
http://thanet.gov.uk/supplierspend,Thanet District Council,06/02/2019,468859,2493.02,,Scottish Water Business Stream Ltd,SCO019,Dir Ops/Commercial Serv,Revenue,Water Services,UTILITIES
http://thanet.gov.uk/supplierspend,Thanet District Council,06/02/2019,468902,708.29,,Scottish Water Business Stream Ltd,SCO019,Dir Ops/Commercial Serv,Revenue,Water Services,UTILITIES
http://thanet.gov.uk/supplierspend,Thanet District Council,06/02/2019,468835,1917,,Sellick Partnership Ltd,SEL011,Director Of Corp Gov/Mon Off,Revenue,Agency Staff,HUMAN RESOURCES
http://thanet.gov.uk/supplierspend,Thanet District Council,06/02/2019,468837,445,,Sellick Partnership Ltd,SEL011,Director Of Corp Gov/Mon Off,Revenue,Services,HUMAN RESOURCES
http://thanet.gov.uk/supplierspend,Thanet District Council,06/02/2019,469018,425,,Sellick Partnership Ltd,SEL011,Director Of Corp Gov/Mon Off,Revenue,Services,HUMAN RESOURCES
http://thanet.gov.uk/supplierspend,Thanet District Council,06/02/2019,469100,2972.49,,South East Building Company Limited,SEB001,Director of Corporate Resources and S151,Balance Sheet,Capital Exp-Non Council Assets,GRANTS
http://thanet.gov.uk/supplierspend,Thanet District Council,06/02/2019,468308,-705.07,,Southern Electric,SEL007,Director Of Corp Gov/Mon Off,Revenue,Energy Costs,UTILITIES
http://thanet.gov.uk/supplierspend,Thanet District Council,06/02/2019,469090,510,,Sycon Uk Ltd,SYC002,Deputy Chief Executive/S151,Revenue,Grants & Subscriptions,RENT DEPOSITS
http://thanet.gov.uk/supplierspend,Thanet District Council,06/02/2019,468586,590,,The Oyster Partnership Ltd,OYS001,Director Of Corp Gov/Mon Off,Revenue,Agency Staff,HUMAN RESOURCES
http://thanet.gov.uk/supplierspend,Thanet District Council,06/02/2019,468073,900,,Thom Dyke,DYK002,Director Of Corp Gov/Mon Off,Revenue,Services,LEGAL SERVICES
http://thanet.gov.uk/supplierspend,Thanet District Council,06/02/2019,469139,4500,,Topps Seafood Bar,TOP006,Dir Ops/Commercial Serv,Revenue,Grants & Subscriptions,FACILITIES AND MANGEMENT SERV
http://thanet.gov.uk/supplierspend,Thanet District Council,06/02/2019,469096,11841,,Trueden Disability Adaptations Ltd,TRU012,Director of Corporate Resources and S151,Balance Sheet,Capital Exp-Non Council Assets,GRANTS
http://thanet.gov.uk/supplierspend,Thanet District Council,06/02/2019,469148,7607,,Trueden Disability Adaptations Ltd,TRU012,Director of Corporate Resources and S151,Balance Sheet,Capital Exp-Non Council Assets,GRANTS
http://thanet.gov.uk/supplierspend,Thanet District Council,06/02/2019,468114,847.88,,Trustmarque Solutions Limited,TRU014,East Kent Shared Services,Revenue,Communications & Computing,ICT
http://thanet.gov.uk/supplierspend,Thanet District Council,07/02/2019,467767,1178.94,,Centurylink Communications Uk Ltd,CEN021,Director of Corporate Resources and S151,Balance Sheet,Telephone Holding Account,ICT
http://thanet.gov.uk/supplierspend,Thanet District Council,07/02/2019,469302,7500,,Mr I Baker,BAK015,Dir Ops/Commercial Serv,Revenue,Severance Payments,NON TRADE PAYEE
http://thanet.gov.uk/supplierspend,Thanet District Council,12/02/2019,468067,428.7,,Arco Limited,ARC001,Dir Ops/Commercial Serv,Revenue,"Clothes, Uniforms & Laundry",CLOTHING
http://thanet.gov.uk/supplierspend,Thanet District Council,12/02/2019,469299,540,,Beebee Communications,BEE010,Dir Ops/Commercial Serv,Revenue,Services,FACILITIES AND MANGEMENT SERV
http://thanet.gov.uk/supplierspend,Thanet District Council,12/02/2019,469029,499,,Bowman Maintenance Contracting,BMC001,Dir Ops/Commercial Serv,Revenue,"Repairs,  Alter & Mtce - Build",BUILDING CONSTRUCTION MATERIAL
http://thanet.gov.uk/supplierspend,Thanet District Council,12/02/2019,466965,272.22,,Ccs Media Limited,CCS003,East Kent Shared Services,Revenue,"Equip, Furniture And Materials",ICT
http://thanet.gov.uk/supplierspend,Thanet District Council,12/02/2019,466965,544.44,,Ccs Media Limited,CCS003,East Kent Shared Services,Revenue,Communications & Computing,ICT
http://thanet.gov.uk/supplierspend,Thanet District Council,12/02/2019,469456,1500,,Cooke & Co.,COO010,Deputy Chief Executive/S151,Revenue,Grants & Subscriptions,VARIOUS CATEGORIES
http://thanet.gov.uk/supplierspend,Thanet District Council,12/02/2019,468547,8596.5,,Dha Planning Limited,DHA002,Deputy Chief Executive/S151,Revenue,Services,CONSULTANCY
http://thanet.gov.uk/supplierspend,Thanet District Council,12/02/2019,469297,1584,,Disclosure And Barring Service,DIS017,Dir Ops/Commercial Serv,Revenue,"Equip, Furniture And Materials",HUMAN RESOURCES
http://thanet.gov.uk/supplierspend,Thanet District Council,12/02/2019,468594,950,,Dixon Searle Partnership Limited,DIX007,Deputy Chief Executive/S151,Revenue,Services,CONSULTANCY
http://thanet.gov.uk/supplierspend,Thanet District Council,12/02/2019,469446,20000,,Ekc Group,EKC007,Deputy Chief Executive/S151,Revenue,Grants & Subscriptions,HUMAN RESOURCES
http://thanet.gov.uk/supplierspend,Thanet District Council,12/02/2019,468997,536.8,,Electoral Reform Services,ELE010,Director Of Corp Gov/Mon Off,Revenue,"Print, Stat And Gen Off Exps",FACILITIES AND MANGEMENT SERV
http://thanet.gov.uk/supplierspend,Thanet District Council,12/02/2019,469461,1300,,Giselle Bywaters,BYW003,Deputy Chief Executive/S151,Revenue,Grants & Subscriptions,RENT DEPOSITS
http://thanet.gov.uk/supplierspend,Thanet District Council,12/02/2019,468871,1792.2,,Heras Ready Fence Hire & Sales,HER018,Dir Ops/Commercial Serv,Revenue,"Equip, Furniture And Materials",BUILDING CONSTRUCTION MATERIAL
http://thanet.gov.uk/supplierspend,Thanet District Council,12/02/2019,469000,438.07,,Hr Go (Kent) Ltd,HRG001,Dir Ops/Commercial Serv,Revenue,Agency Staff,HUMAN RESOURCES
http://thanet.gov.uk/supplierspend,Thanet District Council,12/02/2019,469002,1628.88,,Hr Go (Kent) Ltd,HRG001,Dir Ops/Commercial Serv,Revenue,Agency Staff,HUMAN RESOURCES
http://thanet.gov.uk/supplierspend,Thanet District Council,12/02/2019,468961,3082.5,,J Rospo Building Contractors Ltd,ROS001,Director Of Corp Gov/Mon Off,Revenue,"Repairs,  Alter & Mtce - Build",CONSTRUCTION-REPAIR AND MAINT
http://thanet.gov.uk/supplierspend,Thanet District Council,12/02/2019,469449,730.7,,John Gale,GAL001,Director of Corporate Resources and S151,Balance Sheet,Capital Exp-Non Council Assets,GRANTS
http://thanet.gov.uk/supplierspend,Thanet District Council,12/02/2019,469451,688,,John Gale,GAL001,Director of Corporate Resources and S151,Balance Sheet,Capital Exp-Non Council Assets,GRANTS
http://thanet.gov.uk/supplierspend,Thanet District Council,12/02/2019,468630,3300,,Kent County Council,KCC002,Deputy Chief Executive/S151,Revenue,Services,VARIOUS CATS-PUBLIC SECTOR
http://thanet.gov.uk/supplierspend,Thanet District Council,12/02/2019,468873,800,,Ling Metals Limited,LIN004,Dir Ops/Commercial Serv,Revenue,Cleaning & Domestic Supplies,ENVIRONMENTAL SERVICES
http://thanet.gov.uk/supplierspend,Thanet District Council,12/02/2019,468261,1079.72,,Lobster Van Hire Ltd,LOB001,Dir Ops/Commercial Serv,Revenue,Cont Hire & Operating Lease,VEHICLE MANAGEMENT
http://thanet.gov.uk/supplierspend,Thanet District Council,12/02/2019,468085,2018.99,,Mears Ltd,MEA003,Dir Ops/Commercial Serv,Revenue,"Repairs,  Alter & Mtce - Build",CONSTRUCTION-REPAIR AND MAINT
http://thanet.gov.uk/supplierspend,Thanet District Council,12/02/2019,469459,2600,,Miles & Barr Property Man  Ltd,MIL048,Deputy Chief Executive/S151,Revenue,Grants & Subscriptions,RENT DEPOSITS
http://thanet.gov.uk/supplierspend,Thanet District Council,12/02/2019,469460,1000,,Miles & Barr Property Man  Ltd,MIL048,Deputy Chief Executive/S151,Revenue,Grants & Subscriptions,RENT DEPOSITS
http://thanet.gov.uk/supplierspend,Thanet District Council,12/02/2019,469266,791.95,,National Express Ltd,NAT010,Dir Ops/Commercial Serv,Revenue,Services,AGENCY PAYMENTS
http://thanet.gov.uk/supplierspend,Thanet District Council,12/02/2019,468963,799.88,,Ohuk Limited,OHU001,Dir Ops/Commercial Serv,Revenue,Agency Staff,HUMAN RESOURCES
http://thanet.gov.uk/supplierspend,Thanet District Council,12/02/2019,469130,170289,,Paramount Ind Property Services Llp,PAR074,Deputy Chief Executive/S151,Revenue,Services,HOUSING MANAGEMENT
http://thanet.gov.uk/supplierspend,Thanet District Council,12/02/2019,469447,1250,,Peter Saunders,SAU006,Deputy Chief Executive/S151,Revenue,Grants & Subscriptions,RENT DEPOSITS
http://thanet.gov.uk/supplierspend,Thanet District Council,12/02/2019,445662,583.1,,Posturite Ltd,POS010,Chief Executive,Revenue,"Equip, Furniture And Materials",HEALTH AND SAFETY
http://thanet.gov.uk/supplierspend,Thanet District Council,12/02/2019,463701,710.5,,Posturite Ltd,POS010,Dir Ops/Commercial Serv,Revenue,"Equip, Furniture And Materials",HEALTH AND SAFETY
http://thanet.gov.uk/supplierspend,Thanet District Council,12/02/2019,464893,851.65,,Posturite Ltd,POS010,Dir Ops/Commercial Serv,Revenue,"Equip, Furniture And Materials",HEALTH AND SAFETY
http://thanet.gov.uk/supplierspend,Thanet District Council,12/02/2019,467879,-2000,,Profile Security Services Limited,PRO018,Dir Ops/Commercial Serv,Revenue,Services,FACILITIES AND MANGEMENT SERV
http://thanet.gov.uk/supplierspend,Thanet District Council,12/02/2019,468883,25949.3,,Profile Security Services Limited,PRO018,Dir Ops/Commercial Serv,Revenue,Services,FACILITIES AND MANGEMENT SERV
http://thanet.gov.uk/supplierspend,Thanet District Council,12/02/2019,468884,961.25,,Profile Security Services Limited,PRO018,Dir Ops/Commercial Serv,Revenue,Services,FACILITIES AND MANGEMENT SERV
http://thanet.gov.uk/supplierspend,Thanet District Council,12/02/2019,469458,1350,,Prospects Assured Uk Ltd,PRO032,Deputy Chief Executive/S151,Revenue,Grants & Subscriptions,RENT DEPOSITS
http://thanet.gov.uk/supplierspend,Thanet District Council,12/02/2019,468972,455,,R Cannon,CAN007,Dir Ops/Commercial Serv,Revenue,Services,MARITIME SERVICES
http://thanet.gov.uk/supplierspend,Thanet District Council,12/02/2019,469450,6880,,South East Building Company Limited,SEB001,Director of Corporate Resources and S151,Balance Sheet,Capital Exp-Non Council Assets,GRANTS
http://thanet.gov.uk/supplierspend,Thanet District Council,12/02/2019,468934,15206.4,,Topdesk Uk Limited,TOP011,East Kent Shared Services,Revenue,Communications & Computing,ICT
http://thanet.gov.uk/supplierspend,Thanet District Council,12/02/2019,469448,7307,,Trueden Disability Adaptations Ltd,TRU012,Director of Corporate Resources and S151,Balance Sheet,Capital Exp-Non Council Assets,GRANTS
http://thanet.gov.uk/supplierspend,Thanet District Council,12/02/2019,469318,2536,,Veale Wasbrough Vizards Llp,VEA001,Director Of Corp Gov/Mon Off,Revenue,Services,LEGAL SERVICES
http://thanet.gov.uk/supplierspend,Thanet District Council,12/02/2019,469454,188265.69,,Veale Wasbrough Vizards Llp,VEA001,Director of Corporate Resources and S151,Balance Sheet,Council Dwellings,LEGAL SERVICES
http://thanet.gov.uk/supplierspend,Thanet District Council,12/02/2019,469455,151285.48,,Veale Wasbrough Vizards Llp,VEA001,Director of Corporate Resources and S151,Balance Sheet,Council Dwellings,LEGAL SERVICES
http://thanet.gov.uk/supplierspend,Thanet District Council,12/02/2019,469463,2227,,Veale Wasbrough Vizards Llp,VEA001,Director of Corporate Resources and S151,Balance Sheet,Investment Prop For Lease-Hra,LEGAL SERVICES
http://thanet.gov.uk/supplierspend,Thanet District Council,14/02/2019,468886,5890,,Bradstowe Chartered Surveyors,BRA027,Director of Corporate Resources and S151,Balance Sheet,Council Dwellings,FACILITIES AND MANGEMENT SERV
http://thanet.gov.uk/supplierspend,Thanet District Council,14/02/2019,468593,24648,,Cloud Technology Solutions Ltd,CLO006,East Kent Shared Services,Revenue,Communications & Computing,ICT
http://thanet.gov.uk/supplierspend,Thanet District Council,14/02/2019,468593,42502,,Cloud Technology Solutions Ltd,CLO006,Deputy Chief Executive/S151,Revenue,Communications & Computing,ICT
http://thanet.gov.uk/supplierspend,Thanet District Council,14/02/2019,468530,1029.69,,Dennis Eagle Ltd,DEN005,Dir Ops/Commercial Serv,Revenue,Direct Transport Costs,VEHICLE MANAGEMENT
http://thanet.gov.uk/supplierspend,Thanet District Council,14/02/2019,468629,1692.18,,Downfast Demolition & Salvage Ltd,DOW001,Director of Corporate Resources and S151,Balance Sheet,Rechargeable Works,BUILDING CONSTRUCTION MATERIAL
http://thanet.gov.uk/supplierspend,Thanet District Council,14/02/2019,469126,1335,,Ekc Group,EKC007,Deputy Chief Executive/S151,Revenue,Training,HUMAN RESOURCES
http://thanet.gov.uk/supplierspend,Thanet District Council,14/02/2019,469061,10000,,Kent County Council,KCC002,Dir Ops/Commercial Serv,Revenue,Grants & Subscriptions,VARIOUS CATS-PUBLIC SECTOR
http://thanet.gov.uk/supplierspend,Thanet District Council,14/02/2019,468866,497.9,,Neopost Ltd,NEO003,Director Of Corp Gov/Mon Off,Revenue,"Equip, Furniture And Materials",MAIL SERVICES
http://thanet.gov.uk/supplierspend,Thanet District Council,14/02/2019,469342,1967.67,,Scottish Water Business Stream Ltd,SCO019,Director Of Corp Gov/Mon Off,Revenue,Water Services,UTILITIES
http://thanet.gov.uk/supplierspend,Thanet District Council,14/02/2019,469343,2193.96,,Scottish Water Business Stream Ltd,SCO019,Dir Ops/Commercial Serv,Revenue,Water Services,UTILITIES
http://thanet.gov.uk/supplierspend,Thanet District Council,14/02/2019,469346,1369.12,,Scottish Water Business Stream Ltd,SCO019,Dir Ops/Commercial Serv,Revenue,Water Services,UTILITIES
http://thanet.gov.uk/supplierspend,Thanet District Council,14/02/2019,469347,275.17,,Scottish Water Business Stream Ltd,SCO019,Director Of Corp Gov/Mon Off,Revenue,Water Services,UTILITIES
http://thanet.gov.uk/supplierspend,Thanet District Council,14/02/2019,469347,558.69,,Scottish Water Business Stream Ltd,SCO019,Dir Ops/Commercial Serv,Revenue,Water Services,UTILITIES
http://thanet.gov.uk/supplierspend,Thanet District Council,14/02/2019,469348,785.28,,Scottish Water Business Stream Ltd,SCO019,Dir Ops/Commercial Serv,Revenue,Water Services,UTILITIES
http://thanet.gov.uk/supplierspend,Thanet District Council,14/02/2019,469409,791.71,,Scottish Water Business Stream Ltd,SCO019,Dir Ops/Commercial Serv,Revenue,Water Services,UTILITIES
http://thanet.gov.uk/supplierspend,Thanet District Council,19/02/2019,468968,1750,,Adrian Cox Associates Limited,ADR002,Director Of Corp Gov/Mon Off,Revenue,"Repairs,  Alter & Mtce - Build",CONSULTANCY
http://thanet.gov.uk/supplierspend,Thanet District Council,19/02/2019,469387,7025,,Advanced Business Solutions,COA011,Deputy Chief Executive/S151,Revenue,Communications & Computing,ICT
http://thanet.gov.uk/supplierspend,Thanet District Council,19/02/2019,469022,449.34,,Aebi Schmidt Uk Limited,AEB002,Dir Ops/Commercial Serv,Revenue,Direct Transport Costs,VEHICLE MANAGEMENT
http://thanet.gov.uk/supplierspend,Thanet District Council,19/02/2019,469899,1050,,Appleton Letting Agents,APP001,Deputy Chief Executive/S151,Revenue,Grants & Subscriptions,RENT DEPOSITS
http://thanet.gov.uk/supplierspend,Thanet District Council,19/02/2019,469355,895.92,,Bt Payment Services Ltd,BTE003,Deputy Chief Executive/S151,Revenue,Communications & Computing,ICT
http://thanet.gov.uk/supplierspend,Thanet District Council,19/02/2019,469356,875.03,,Bt Payment Services Ltd,BTE003,Deputy Chief Executive/S151,Revenue,Communications & Computing,ICT
http://thanet.gov.uk/supplierspend,Thanet District Council,19/02/2019,469265,966.33,,Calibre Cleaning Ltd,CAL010,Director Of Corp Gov/Mon Off,Revenue,Cleaning & Domestic Supplies,CLEANING AND JANITORIAL
http://thanet.gov.uk/supplierspend,Thanet District Council,19/02/2019,469028,45.41,,Cannon Hygiene Limited,CAN030,Dir Ops/Commercial Serv,Revenue,Fixtures & Fittings,ENVIRONMENTAL SERVICES
http://thanet.gov.uk/supplierspend,Thanet District Council,19/02/2019,469028,1927.77,,Cannon Hygiene Limited,CAN030,Dir Ops/Commercial Serv,Revenue,Services,ENVIRONMENTAL SERVICES
http://thanet.gov.uk/supplierspend,Thanet District Council,19/02/2019,469278,554.55,,Ccs Media Limited,CCS003,Director of Corporate Resources and S151,Balance Sheet,Plant And Equipment,ICT
http://thanet.gov.uk/supplierspend,Thanet District Council,19/02/2019,469280,938.34,,Ccs Media Limited,CCS003,East Kent Shared Services,Revenue,Communications & Computing,ICT
http://thanet.gov.uk/supplierspend,Thanet District Council,19/02/2019,469558,1315.82,,Centurylink Communications Uk Ltd,CEN021,Director of Corporate Resources and S151,Balance Sheet,Telephone Holding Account,ICT
http://thanet.gov.uk/supplierspend,Thanet District Council,19/02/2019,469896,1150,,Countrywide Residential Lettings,COU030,Deputy Chief Executive/S151,Revenue,Grants & Subscriptions,RENT DEPOSITS
http://thanet.gov.uk/supplierspend,Thanet District Council,19/02/2019,469389,25264.75,,Crown Estate,CRO022,Dir Ops/Commercial Serv,Revenue,Rents,MARITIME SERVICES
http://thanet.gov.uk/supplierspend,Thanet District Council,19/02/2019,469390,4877.5,,Crown Estate,CRO022,Dir Ops/Commercial Serv,Revenue,Rents,MARITIME SERVICES
http://thanet.gov.uk/supplierspend,Thanet District Council,19/02/2019,469391,31450.25,,Crown Estate,CRO022,Dir Ops/Commercial Serv,Revenue,Rents,MARITIME SERVICES
http://thanet.gov.uk/supplierspend,Thanet District Council,19/02/2019,469250,24514.38,,Dcb (Kent) Ltd,DCB001,Director of Corporate Resources and S151,Balance Sheet,Repairs And Mtce Holding A/C,CONSTRUCTION-REPAIR AND MAINT
http://thanet.gov.uk/supplierspend,Thanet District Council,19/02/2019,468994,1434.31,,Dennis Eagle Limited,TER011,Dir Ops/Commercial Serv,Revenue,Direct Transport Costs,VEHICLE MANAGEMENT
http://thanet.gov.uk/supplierspend,Thanet District Council,19/02/2019,469031,1004.54,,Dennis Eagle Limited,TER011,Dir Ops/Commercial Serv,Revenue,Direct Transport Costs,VEHICLE MANAGEMENT
http://thanet.gov.uk/supplierspend,Thanet District Council,19/02/2019,469797,1775,,Dr R K Chhabra,CHH001,Dir Ops/Commercial Serv,Revenue,Services,CEMETERY AND CREMATORIUM
http://thanet.gov.uk/supplierspend,Thanet District Council,19/02/2019,469268,444.65,,E Saunders Margate Ltd,SAU001,Director Of Corp Gov/Mon Off,Revenue,"Repairs,  Alter & Mtce - Build",CONSTRUCTION-REPAIR AND MAINT
http://thanet.gov.uk/supplierspend,Thanet District Council,19/02/2019,469132,872,,Estuary Services Ltd,EST002,Dir Ops/Commercial Serv,Revenue,Cont Hire & Operating Lease,MARITIME SERVICES
http://thanet.gov.uk/supplierspend,Thanet District Council,19/02/2019,469900,7253.4,,Furley Page Solicitors,FUR003,Director of Corporate Resources and S151,Balance Sheet,Capital Exp-Non Council Assets,GRANTS
http://thanet.gov.uk/supplierspend,Thanet District Council,19/02/2019,469902,899.47,,Furley Page Solicitors,FUR003,Director of Corporate Resources and S151,Balance Sheet,Capital Exp-Non Council Assets,GRANTS
http://thanet.gov.uk/supplierspend,Thanet District Council,19/02/2019,469131,1500,,Gl Hearn Limited,GLH001,Director of Corporate Resources and S151,Balance Sheet,Other Land And Buildings-Hra,CONSULTANCY
http://thanet.gov.uk/supplierspend,Thanet District Council,19/02/2019,469598,465,,Guard It Limited,GUA008,Dir Ops/Commercial Serv,Revenue,Services,FACILITIES AND MANGEMENT SERV
http://thanet.gov.uk/supplierspend,Thanet District Council,19/02/2019,468876,1361.59,,Hr Go (Kent) Ltd,HRG001,Dir Ops/Commercial Serv,Revenue,Agency Staff,HUMAN RESOURCES
http://thanet.gov.uk/supplierspend,Thanet District Council,19/02/2019,468877,7910,,Hr Go (Kent) Ltd,HRG001,Dir Ops/Commercial Serv,Revenue,Agency Staff,HUMAN RESOURCES
http://thanet.gov.uk/supplierspend,Thanet District Council,19/02/2019,469003,777.75,,Hr Go (Kent) Ltd,HRG001,Dir Ops/Commercial Serv,Revenue,Agency Staff,HUMAN RESOURCES
http://thanet.gov.uk/supplierspend,Thanet District Council,19/02/2019,469005,658.6,,Hr Go (Kent) Ltd,HRG001,Dir Ops/Commercial Serv,Revenue,Agency Staff,HUMAN RESOURCES
http://thanet.gov.uk/supplierspend,Thanet District Council,19/02/2019,469008,1486.21,,Hr Go (Kent) Ltd,HRG001,Dir Ops/Commercial Serv,Revenue,Agency Staff,HUMAN RESOURCES
http://thanet.gov.uk/supplierspend,Thanet District Council,19/02/2019,468875,770,,Innovative Safety Systems Limited,INN002,Dir Ops/Commercial Serv,Revenue,"Equip, Furniture And Materials",VEHICLE MANAGEMENT
http://thanet.gov.uk/supplierspend,Thanet District Council,19/02/2019,468980,808,,Innovative Safety Systems Limited,INN002,Dir Ops/Commercial Serv,Revenue,"Equip, Furniture And Materials",VEHICLE MANAGEMENT
http://thanet.gov.uk/supplierspend,Thanet District Council,19/02/2019,469893,919.5,,John Gale,GAL001,Director of Corporate Resources and S151,Balance Sheet,Capital Exp-Non Council Assets,GRANTS
http://thanet.gov.uk/supplierspend,Thanet District Council,19/02/2019,469296,1869.12,,Jon Lambourne Arboricultural Consult,LAM015,Deputy Chief Executive/S151,Revenue,Services,CONSULTANCY
http://thanet.gov.uk/supplierspend,Thanet District Council,19/02/2019,469476,3425.5,,Kent County Council,KCC002,Director Of Corp Gov/Mon Off,Revenue,Services,VARIOUS CATS-PUBLIC SECTOR
http://thanet.gov.uk/supplierspend,Thanet District Council,19/02/2019,466559,1343.95,,Main Man Supplies Ltd,MAI001,Dir Ops/Commercial Serv,Revenue,"Clothes, Uniforms & Laundry",CLOTHING
http://thanet.gov.uk/supplierspend,Thanet District Council,19/02/2019,469716,4800,,Marc Brittain,BRI048,Director of Corporate Resources and S151,Balance Sheet,Provisions-Future Settlement,LEGAL SERVICES
http://thanet.gov.uk/supplierspend,Thanet District Council,19/02/2019,469897,2240,,Martin Neame Ltd,MAR116,Deputy Chief Executive/S151,Revenue,Grants & Subscriptions,RENT DEPOSITS
http://thanet.gov.uk/supplierspend,Thanet District Council,19/02/2019,468086,486.68,,Mears Ltd,MEA003,Dir Ops/Commercial Serv,Revenue,"Repairs,  Alter & Mtce - Build",CONSTRUCTION-REPAIR AND MAINT
http://thanet.gov.uk/supplierspend,Thanet District Council,19/02/2019,468881,563.87,,Mears Ltd,MEA003,Director Of Corp Gov/Mon Off,Revenue,"Repairs,  Alter & Mtce - Build",CONSTRUCTION-REPAIR AND MAINT
http://thanet.gov.uk/supplierspend,Thanet District Council,19/02/2019,468975,1866.52,,Mears Ltd,MEA003,Deputy Chief Executive/S151,Revenue,"Repairs,  Alter & Mtce - Build",CONSTRUCTION-REPAIR AND MAINT
http://thanet.gov.uk/supplierspend,Thanet District Council,19/02/2019,468976,2859.49,,Mears Ltd,MEA003,Deputy Chief Executive/S151,Revenue,"Repairs,  Alter & Mtce - Build",CONSTRUCTION-REPAIR AND MAINT
http://thanet.gov.uk/supplierspend,Thanet District Council,19/02/2019,468977,444.85,,Mears Ltd,MEA003,Director Of Corp Gov/Mon Off,Revenue,"Repairs,  Alter & Mtce - Build",CONSTRUCTION-REPAIR AND MAINT
http://thanet.gov.uk/supplierspend,Thanet District Council,19/02/2019,468977,964.44,,Mears Ltd,MEA003,Dir Ops/Commercial Serv,Revenue,"Repairs,  Alter & Mtce - Build",CONSTRUCTION-REPAIR AND MAINT
http://thanet.gov.uk/supplierspend,Thanet District Council,19/02/2019,469358,800.43,,Mears Ltd,MEA003,Director of Corporate Resources and S151,Balance Sheet,Repairs And Mtce Holding A/C,CONSTRUCTION-REPAIR AND MAINT
http://thanet.gov.uk/supplierspend,Thanet District Council,19/02/2019,469365,27889.34,,Mears Ltd,MEA003,Director of Corporate Resources and S151,Balance Sheet,Repairs And Mtce Holding A/C,CONSTRUCTION-REPAIR AND MAINT
http://thanet.gov.uk/supplierspend,Thanet District Council,19/02/2019,469379,679.2,,Mears Ltd,MEA003,Director of Corporate Resources and S151,Balance Sheet,Repairs And Mtce Holding A/C,CONSTRUCTION-REPAIR AND MAINT
http://thanet.gov.uk/supplierspend,Thanet District Council,19/02/2019,469380,2597.21,,Mears Ltd,MEA003,Director of Corporate Resources and S151,Balance Sheet,Repairs And Mtce Holding A/C,CONSTRUCTION-REPAIR AND MAINT
http://thanet.gov.uk/supplierspend,Thanet District Council,19/02/2019,469381,5691.12,,Mears Ltd,MEA003,Director of Corporate Resources and S151,Balance Sheet,Repairs And Mtce Holding A/C,CONSTRUCTION-REPAIR AND MAINT
http://thanet.gov.uk/supplierspend,Thanet District Council,19/02/2019,469382,68226.62,,Mears Ltd,MEA003,Director of Corporate Resources and S151,Balance Sheet,Repairs And Mtce Holding A/C,CONSTRUCTION-REPAIR AND MAINT
http://thanet.gov.uk/supplierspend,Thanet District Council,19/02/2019,469383,537.29,,Mears Ltd,MEA003,Director of Corporate Resources and S151,Balance Sheet,Repairs And Mtce Holding A/C,CONSTRUCTION-REPAIR AND MAINT
http://thanet.gov.uk/supplierspend,Thanet District Council,19/02/2019,469717,1200,,Mr Paul Tapsell,TAP002,Deputy Chief Executive/S151,Revenue,Services,LEGAL SERVICES
http://thanet.gov.uk/supplierspend,Thanet District Council,19/02/2019,469349,735,,Ovenden Tipper Services Ltd,OVE001,Dir Ops/Commercial Serv,Revenue,"Equip, Furniture And Materials",VEHICLE MANAGEMENT
http://thanet.gov.uk/supplierspend,Thanet District Council,19/02/2019,469631,23949.18,,P & R Installation Company Limited,PRI035,Director of Corporate Resources and S151,Balance Sheet,Repairs And Mtce Holding A/C,BUILDING CONSTRUCTION MATERIAL
http://thanet.gov.uk/supplierspend,Thanet District Council,19/02/2019,469335,1152.26,,Platform Service And Repair Ltd,PLA031,Dir Ops/Commercial Serv,Revenue,"Repairs,  Alter & Mtce - Build",ENVIRONMENTAL SERVICES
http://thanet.gov.uk/supplierspend,Thanet District Council,19/02/2019,469248,2637.86,,Potter Raper Partnership,POT006,Director of Corporate Resources and S151,Balance Sheet,Council Dwellings,CONSULTANCY
http://thanet.gov.uk/supplierspend,Thanet District Council,19/02/2019,464825,2050,,Rundle & Co Limited,RUN004,Director Of Corp Gov/Mon Off,Revenue,"Repairs,  Alter & Mtce - Build",FINANCIAL SERVICES
http://thanet.gov.uk/supplierspend,Thanet District Council,19/02/2019,469636,475,,Sellick Partnership Ltd,SEL011,Director Of Corp Gov/Mon Off,Revenue,Services,HUMAN RESOURCES
http://thanet.gov.uk/supplierspend,Thanet District Council,19/02/2019,469735,639,,Sellick Partnership Ltd,SEL011,Director Of Corp Gov/Mon Off,Revenue,Agency Staff,HUMAN RESOURCES
http://thanet.gov.uk/supplierspend,Thanet District Council,19/02/2019,469247,795,,Serveco Ltd,SER009,Deputy Chief Executive/S151,Revenue,Rents,SPECIAL COMMUNITY CARE
http://thanet.gov.uk/supplierspend,Thanet District Council,19/02/2019,469892,9975,,South East Building Company Limited,SEB001,Director of Corporate Resources and S151,Balance Sheet,Capital Exp-Non Council Assets,GRANTS
http://thanet.gov.uk/supplierspend,Thanet District Council,19/02/2019,469581,5.36,,Southern Electric,SEL007,Deputy Chief Executive/S151,Revenue,Energy Costs,UTILITIES
http://thanet.gov.uk/supplierspend,Thanet District Council,19/02/2019,469581,571.99,,Southern Electric,SEL007,Dir Ops/Commercial Serv,Revenue,Energy Costs,UTILITIES
http://thanet.gov.uk/supplierspend,Thanet District Council,19/02/2019,469239,663,,Streetmaster (S.Wales) Limited,STR001,Dir Ops/Commercial Serv,Revenue,"Equip, Furniture And Materials",HIGHWAY EQUIPMENT AND MATERIAL
http://thanet.gov.uk/supplierspend,Thanet District Council,19/02/2019,469240,635.5,,Streetmaster (S.Wales) Limited,STR001,Dir Ops/Commercial Serv,Revenue,"Equip, Furniture And Materials",HIGHWAY EQUIPMENT AND MATERIAL
http://thanet.gov.uk/supplierspend,Thanet District Council,19/02/2019,469241,608,,Streetmaster (S.Wales) Limited,STR001,Dir Ops/Commercial Serv,Revenue,"Equip, Furniture And Materials",HIGHWAY EQUIPMENT AND MATERIAL
http://thanet.gov.uk/supplierspend,Thanet District Council,19/02/2019,469242,735.5,,Streetmaster (S.Wales) Limited,STR001,Dir Ops/Commercial Serv,Revenue,"Equip, Furniture And Materials",HIGHWAY EQUIPMENT AND MATERIAL
http://thanet.gov.uk/supplierspend,Thanet District Council,19/02/2019,469243,695.5,,Streetmaster (S.Wales) Limited,STR001,Dir Ops/Commercial Serv,Revenue,"Equip, Furniture And Materials",HIGHWAY EQUIPMENT AND MATERIAL
http://thanet.gov.uk/supplierspend,Thanet District Council,19/02/2019,469244,615.5,,Streetmaster (S.Wales) Limited,STR001,Dir Ops/Commercial Serv,Revenue,"Equip, Furniture And Materials",HIGHWAY EQUIPMENT AND MATERIAL
http://thanet.gov.uk/supplierspend,Thanet District Council,19/02/2019,469245,595.5,,Streetmaster (S.Wales) Limited,STR001,Dir Ops/Commercial Serv,Revenue,"Equip, Furniture And Materials",HIGHWAY EQUIPMENT AND MATERIAL
http://thanet.gov.uk/supplierspend,Thanet District Council,19/02/2019,468970,1715.72,,The Oyster Partnership Ltd,OYS001,Director Of Corp Gov/Mon Off,Revenue,Agency Staff,HUMAN RESOURCES
http://thanet.gov.uk/supplierspend,Thanet District Council,19/02/2019,469246,900.5,,Topdesk Uk Limited,TOP011,East Kent Shared Services,Revenue,Communications & Computing,ICT
http://thanet.gov.uk/supplierspend,Thanet District Council,19/02/2019,469620,11316.83,,Town & Country Cleaners Ltd,TOW002,Director of Corporate Resources and S151,Balance Sheet,Repairs And Mtce Holding A/C,CLEANING AND JANITORIAL
http://thanet.gov.uk/supplierspend,Thanet District Council,19/02/2019,469891,8704.16,,Trueden Disability Adaptations Ltd,TRU012,Director of Corporate Resources and S151,Balance Sheet,Capital Exp-Non Council Assets,GRANTS
http://thanet.gov.uk/supplierspend,Thanet District Council,19/02/2019,469421,580,,W Brazil & Bros,BRA001,Director of Corporate Resources and S151,Balance Sheet,Repairs And Mtce Holding A/C,ENVIRONMENTAL SERVICES
http://thanet.gov.uk/supplierspend,Thanet District Council,20/02/2019,468693,660,,Ameeco Hotels Limited,AME002,Deputy Chief Executive/S151,Revenue,Services,FACILITIES AND MANGEMENT SERV
http://thanet.gov.uk/supplierspend,Thanet District Council,20/02/2019,468872,812,,Aston Walker,AST008,Dir Ops/Commercial Serv,Revenue,Services,CEMETERY AND CREMATORIUM
http://thanet.gov.uk/supplierspend,Thanet District Council,20/02/2019,469384,1000,,Bevan Brittan Llp,BEV001,Director Of Corp Gov/Mon Off,Revenue,Services,LEGAL SERVICES
http://thanet.gov.uk/supplierspend,Thanet District Council,20/02/2019,469798,1550,,British Destinations,BRA002,Dir Ops/Commercial Serv,Revenue,Grants & Subscriptions,HUMAN RESOURCES
http://thanet.gov.uk/supplierspend,Thanet District Council,20/02/2019,468920,450,,Business Computer Solutions Ltd,BUS002,Director Of Corp Gov/Mon Off,Revenue,Communications & Computing,ICT
http://thanet.gov.uk/supplierspend,Thanet District Council,20/02/2019,469016,1210,,Cipfa Business Ltd,CIP008,Deputy Chief Executive/S151,Revenue,Grants & Subscriptions,FINANCIAL SERVICES
http://thanet.gov.uk/supplierspend,Thanet District Council,20/02/2019,469719,540,,Ekc Group,EKC007,Dir Ops/Commercial Serv,Revenue,Services,HUMAN RESOURCES
http://thanet.gov.uk/supplierspend,Thanet District Council,20/02/2019,468874,14827.21,,Facultatieve Technologies,FAC003,Dir Ops/Commercial Serv,Revenue,"Repairs,  Alter & Mtce - Build",CEMETERY AND CREMATORIUM
http://thanet.gov.uk/supplierspend,Thanet District Council,20/02/2019,469995,273388,,Kent & Medway Towns Fire Authority,KMT001,Director of Corporate Resources and S151,Balance Sheet,Collection Fund,VARIOUS CATS-PUBLIC SECTOR
http://thanet.gov.uk/supplierspend,Thanet District Council,20/02/2019,469994,4479726,,Kent County Council,KCC022,Director of Corporate Resources and S151,Balance Sheet,Collection Fund,VARIOUS CATS-PUBLIC SECTOR
http://thanet.gov.uk/supplierspend,Thanet District Council,20/02/2019,469996,612004,,Kent Police & Crime Commissioner,KPA003,Director of Corporate Resources and S151,Balance Sheet,Collection Fund,VARIOUS CATS-PUBLIC SECTOR
http://thanet.gov.uk/supplierspend,Thanet District Council,20/02/2019,468998,1724.4,,Patrol,PAT004,Dir Ops/Commercial Serv,Revenue,Services,STREET AND TRAFFIC MANAGEMENT
http://thanet.gov.uk/supplierspend,Thanet District Council,20/02/2019,468538,1907.78,,Potter Raper Partnership,POT006,Director of Corporate Resources and S151,Balance Sheet,Other Land And Buildings-Hra,CONSULTANCY
http://thanet.gov.uk/supplierspend,Thanet District Council,20/02/2019,468612,1500,,Potter Raper Partnership,POT006,Director of Corporate Resources and S151,Balance Sheet,Other Land And Buildings-Hra,CONSULTANCY
http://thanet.gov.uk/supplierspend,Thanet District Council,25/02/2019,470146,1972.01,,Worldpay Ltd,WOR008,Deputy Chief Executive/S151,Revenue,Services,FINANCIAL SERVICES
http://thanet.gov.uk/supplierspend,Thanet District Council,25/02/2019,470147,3021.59,,Worldpay Ltd,WOR008,Deputy Chief Executive/S151,Revenue,Services,FINANCIAL SERVICES
http://thanet.gov.uk/supplierspend,Thanet District Council,26/02/2019,470326,515.64,,10 Dalby Square (Management) Ltd,10D001,Director of Corporate Resources and S151,Balance Sheet,Capital Exp-Non Council Assets,GRANTS
http://thanet.gov.uk/supplierspend,Thanet District Council,26/02/2019,470327,699.81,,10 Dalby Square (Management) Ltd,10D001,Director of Corporate Resources and S151,Balance Sheet,Capital Exp-Non Council Assets,GRANTS
http://thanet.gov.uk/supplierspend,Thanet District Council,26/02/2019,470160,2129,,24 Hour Bailiffs Limited,24H001,Dir Ops/Commercial Serv,Revenue,Services,FINANCIAL SERVICES
http://thanet.gov.uk/supplierspend,Thanet District Council,26/02/2019,469696,2521.01,,A B Crush Panelcraft Ltd,ABC004,Dir Ops/Commercial Serv,Revenue,Direct Transport Costs,VEHICLE MANAGEMENT
http://thanet.gov.uk/supplierspend,Thanet District Council,26/02/2019,470314,14580.83,,Acorn Maintenance Services Ltd,ACO010,Director of Corporate Resources and S151,Balance Sheet,Capital Exp-Non Council Assets,GRANTS
http://thanet.gov.uk/supplierspend,Thanet District Council,26/02/2019,470299,4515,,Ascendit Lifts Ltd,ASC001,Director of Corporate Resources and S151,Balance Sheet,Capital Exp-Non Council Assets,GRANTS
http://thanet.gov.uk/supplierspend,Thanet District Council,26/02/2019,469782,389.12,,Aspli Safety Limited,ASP005,Dir Ops/Commercial Serv,Revenue,"Equip, Furniture And Materials",MARITIME SERVICES
http://thanet.gov.uk/supplierspend,Thanet District Council,26/02/2019,469782,435,,Aspli Safety Limited,ASP005,Dir Ops/Commercial Serv,Revenue,"Repairs,  Alter & Mtce - Build",MARITIME SERVICES
http://thanet.gov.uk/supplierspend,Thanet District Council,26/02/2019,469313,1043,,Bevan Brittan Llp,BEV001,Director Of Corp Gov/Mon Off,Revenue,Services,LEGAL SERVICES
http://thanet.gov.uk/supplierspend,Thanet District Council,26/02/2019,469314,2704.64,,Bevan Brittan Llp,BEV001,Director Of Corp Gov/Mon Off,Revenue,Services,LEGAL SERVICES
http://thanet.gov.uk/supplierspend,Thanet District Council,26/02/2019,470303,7875.33,,Bramling Construction Ltd,BRA020,Director of Corporate Resources and S151,Balance Sheet,Capital Exp-Non Council Assets,GRANTS
http://thanet.gov.uk/supplierspend,Thanet District Council,26/02/2019,469771,2300,,Cabinet Office,CAB004,Deputy Chief Executive/S151,Revenue,Services,FINANCIAL SERVICES
http://thanet.gov.uk/supplierspend,Thanet District Council,26/02/2019,469337,495,,Canon (Uk) Ltd,CAN021,Director Of Corp Gov/Mon Off,Revenue,"Equip, Furniture And Materials",FACILITIES AND MANGEMENT SERV
http://thanet.gov.uk/supplierspend,Thanet District Council,26/02/2019,469338,851.74,,Canon (Uk) Ltd,CAN021,Director Of Corp Gov/Mon Off,Revenue,"Equip, Furniture And Materials",FACILITIES AND MANGEMENT SERV
http://thanet.gov.uk/supplierspend,Thanet District Council,26/02/2019,469388,2418.48,,Canon (Uk) Ltd,CAN021,Director Of Corp Gov/Mon Off,Revenue,"Equip, Furniture And Materials",FACILITIES AND MANGEMENT SERV
http://thanet.gov.uk/supplierspend,Thanet District Council,26/02/2019,470074,538.57,,Canon (Uk) Ltd,CAN021,Director Of Corp Gov/Mon Off,Revenue,"Print, Stat And Gen Off Exps",FACILITIES AND MANGEMENT SERV
http://thanet.gov.uk/supplierspend,Thanet District Council,26/02/2019,469784,5000,,Canterbury City Council,CAN004,Chief Executive,Revenue,Services,VARIOUS CATS-PUBLIC SECTOR
http://thanet.gov.uk/supplierspend,Thanet District Council,26/02/2019,469573,8507.6,,Ccs Media Limited,CCS003,East Kent Shared Services,Revenue,Communications & Computing,ICT
http://thanet.gov.uk/supplierspend,Thanet District Council,26/02/2019,469615,2525.95,,Ccs Media Limited,CCS003,Director of Corporate Resources and S151,Balance Sheet,Plant And Equipment,ICT
http://thanet.gov.uk/supplierspend,Thanet District Council,26/02/2019,469638,962.8,,Ccs Media Limited,CCS003,Director of Corporate Resources and S151,Balance Sheet,Plant And Equipment,ICT
http://thanet.gov.uk/supplierspend,Thanet District Council,26/02/2019,469785,35210.48,,Certas Energy Uk Ltd,CER005,Dir Ops/Commercial Serv,Revenue,Direct Transport Costs,VEHICLE MANAGEMENT
http://thanet.gov.uk/supplierspend,Thanet District Council,26/02/2019,469697,4965,,Cipfa Business Ltd,CIP008,Deputy Chief Executive/S151,Revenue,Grants & Subscriptions,FINANCIAL SERVICES
http://thanet.gov.uk/supplierspend,Thanet District Council,26/02/2019,469805,769.5,,Csl Power Systems Ltd,CSL002,Dir Ops/Commercial Serv,Revenue,"Repairs,  Alter & Mtce - Build",BUILDING CONSTRUCTION MATERIAL
http://thanet.gov.uk/supplierspend,Thanet District Council,26/02/2019,469625,2370,,Discovery Park Management Ltd,DIS020,East Kent Shared Services,Revenue,Services,FACILITIES AND MANGEMENT SERV
http://thanet.gov.uk/supplierspend,Thanet District Council,26/02/2019,469628,42803.92,,Dover District Council,DOV001,Deputy Chief Executive/S151,Revenue,Services,VARIOUS CATS-PUBLIC SECTOR
http://thanet.gov.uk/supplierspend,Thanet District Council,26/02/2019,469267,420.3,,E Saunders Margate Ltd,SAU001,Director Of Corp Gov/Mon Off,Revenue,"Repairs,  Alter & Mtce - Build",CONSTRUCTION-REPAIR AND MAINT
http://thanet.gov.uk/supplierspend,Thanet District Council,26/02/2019,469794,36.75,,E Saunders Margate Ltd,SAU001,Dir Ops/Commercial Serv,Revenue,"Repairs,  Alter & Mtce - Build",CONSTRUCTION-REPAIR AND MAINT
http://thanet.gov.uk/supplierspend,Thanet District Council,26/02/2019,469794,643.62,,E Saunders Margate Ltd,SAU001,Director Of Corp Gov/Mon Off,Revenue,"Repairs,  Alter & Mtce - Build",CONSTRUCTION-REPAIR AND MAINT
http://thanet.gov.uk/supplierspend,Thanet District Council,26/02/2019,469795,50.72,,E Saunders Margate Ltd,SAU001,Dir Ops/Commercial Serv,Revenue,"Repairs,  Alter & Mtce - Build",CONSTRUCTION-REPAIR AND MAINT
http://thanet.gov.uk/supplierspend,Thanet District Council,26/02/2019,469795,483.25,,E Saunders Margate Ltd,SAU001,Director Of Corp Gov/Mon Off,Revenue,"Repairs,  Alter & Mtce - Build",CONSTRUCTION-REPAIR AND MAINT
http://thanet.gov.uk/supplierspend,Thanet District Council,26/02/2019,470230,29700,,Eagle Security Alarms Ltd,EAG005,Dir Ops/Commercial Serv,Revenue,Services,FACILITIES AND MANGEMENT SERV
http://thanet.gov.uk/supplierspend,Thanet District Council,26/02/2019,469656,712,,Econoprint (Uk) Ltd,ECO001,Deputy Chief Executive/S151,Revenue,"Print, Stat And Gen Off Exps",FACILITIES AND MANGEMENT SERV
http://thanet.gov.uk/supplierspend,Thanet District Council,26/02/2019,469828,660,,Emma Dring,DRI004,Director Of Corp Gov/Mon Off,Revenue,Services,LEGAL SERVICES
http://thanet.gov.uk/supplierspend,Thanet District Council,26/02/2019,469575,630.38,,Evergreen Landscaping Gardening Ltd,EVE004,Director Of Corp Gov/Mon Off,Revenue,Grounds Mtce Costs,HORTICULTURAL
http://thanet.gov.uk/supplierspend,Thanet District Council,26/02/2019,470315,7615,,Evermech Services Ltd,EVE011,Director of Corporate Resources and S151,Balance Sheet,Capital Exp-Non Council Assets,GRANTS
http://thanet.gov.uk/supplierspend,Thanet District Council,26/02/2019,470316,5466.98,,Evermech Services Ltd,EVE011,Director of Corporate Resources and S151,Balance Sheet,Capital Exp-Non Council Assets,GRANTS
http://thanet.gov.uk/supplierspend,Thanet District Council,26/02/2019,469651,800,,G & G Forklifts,GGF001,Director of Corporate Resources and S151,Balance Sheet,Other Land And Buildings-Hra,VEHICLE MANAGEMENT
http://thanet.gov.uk/supplierspend,Thanet District Council,26/02/2019,469671,424.64,,G & G Forklifts,GGF001,Dir Ops/Commercial Serv,Revenue,"Equip, Furniture And Materials",VEHICLE MANAGEMENT
http://thanet.gov.uk/supplierspend,Thanet District Council,26/02/2019,469599,1650,,Harrisons Property Surveyors Limited,HAR067,Director Of Corp Gov/Mon Off,Revenue,Services,CONSULTANCY
http://thanet.gov.uk/supplierspend,Thanet District Council,26/02/2019,470169,2000,,Hastings Borough Council,HAS002,Chief Executive,Revenue,Services,VARIOUS CATS-PUBLIC SECTOR
http://thanet.gov.uk/supplierspend,Thanet District Council,26/02/2019,469277,2250,,Hazle Mccormack Young Llp,HAZ004,Director of Corporate Resources and S151,Balance Sheet,Council Dwellings,CONSTRUCTION-REPAIR AND MAINT
http://thanet.gov.uk/supplierspend,Thanet District Council,26/02/2019,470301,8600.19,,Hfd Construction,HFD001,Director of Corporate Resources and S151,Balance Sheet,Capital Exp-Non Council Assets,GRANTS
http://thanet.gov.uk/supplierspend,Thanet District Council,26/02/2019,469557,5247.89,,Hr Go (Kent) Ltd,HRG001,Dir Ops/Commercial Serv,Revenue,Agency Staff,HUMAN RESOURCES
http://thanet.gov.uk/supplierspend,Thanet District Council,26/02/2019,469600,658.6,,Hr Go (Kent) Ltd,HRG001,Dir Ops/Commercial Serv,Revenue,Agency Staff,HUMAN RESOURCES
http://thanet.gov.uk/supplierspend,Thanet District Council,26/02/2019,469602,1401.5,,Hr Go (Kent) Ltd,HRG001,Dir Ops/Commercial Serv,Revenue,Agency Staff,HUMAN RESOURCES
http://thanet.gov.uk/supplierspend,Thanet District Council,26/02/2019,469606,1178.47,,Hr Go (Kent) Ltd,HRG001,Dir Ops/Commercial Serv,Revenue,Agency Staff,HUMAN RESOURCES
http://thanet.gov.uk/supplierspend,Thanet District Council,26/02/2019,469607,1579.52,,Hr Go (Kent) Ltd,HRG001,Dir Ops/Commercial Serv,Revenue,Agency Staff,HUMAN RESOURCES
http://thanet.gov.uk/supplierspend,Thanet District Council,26/02/2019,469690,4459.15,,Hr Go (Kent) Ltd,HRG001,Dir Ops/Commercial Serv,Revenue,Agency Staff,HUMAN RESOURCES
http://thanet.gov.uk/supplierspend,Thanet District Council,26/02/2019,469837,1397.63,,Hr Go (Kent) Ltd,HRG001,Dir Ops/Commercial Serv,Revenue,Agency Staff,HUMAN RESOURCES
http://thanet.gov.uk/supplierspend,Thanet District Council,26/02/2019,469839,578.5,,Hr Go (Kent) Ltd,HRG001,Dir Ops/Commercial Serv,Revenue,Agency Staff,HUMAN RESOURCES
http://thanet.gov.uk/supplierspend,Thanet District Council,26/02/2019,470085,4703.48,,Hr Go (Kent) Ltd,HRG001,Dir Ops/Commercial Serv,Revenue,Agency Staff,HUMAN RESOURCES
http://thanet.gov.uk/supplierspend,Thanet District Council,26/02/2019,470330,800,,Hyfield Estates Limited,HYF001,Deputy Chief Executive/S151,Revenue,Grants & Subscriptions,RENT DEPOSITS
http://thanet.gov.uk/supplierspend,Thanet District Council,26/02/2019,470217,2457,,Kent County Council,KCC002,Director Of Corp Gov/Mon Off,Revenue,Services,VARIOUS CATS-PUBLIC SECTOR
http://thanet.gov.uk/supplierspend,Thanet District Council,26/02/2019,469724,837.39,,Kent County Council (Kcs),KCC003,Dir Ops/Commercial Serv,Revenue,Energy Costs,FACILITIES AND MANGEMENT SERV
http://thanet.gov.uk/supplierspend,Thanet District Council,26/02/2019,469725,2489.19,,Kent County Council (Kcs),KCC003,Director Of Corp Gov/Mon Off,Revenue,Energy Costs,FACILITIES AND MANGEMENT SERV
http://thanet.gov.uk/supplierspend,Thanet District Council,26/02/2019,469726,898.23,,Kent County Council (Kcs),KCC003,Dir Ops/Commercial Serv,Revenue,Energy Costs,FACILITIES AND MANGEMENT SERV
http://thanet.gov.uk/supplierspend,Thanet District Council,26/02/2019,469731,618.75,,Kent County Council (Kcs),KCC003,Director Of Corp Gov/Mon Off,Revenue,Energy Costs,FACILITIES AND MANGEMENT SERV
http://thanet.gov.uk/supplierspend,Thanet District Council,26/02/2019,469733,2694.95,,Kent County Council (Kcs),KCC003,Dir Ops/Commercial Serv,Revenue,Energy Costs,FACILITIES AND MANGEMENT SERV
http://thanet.gov.uk/supplierspend,Thanet District Council,26/02/2019,469745,1382.82,,Kent County Council (Kcs),KCC003,Dir Ops/Commercial Serv,Revenue,Energy Costs,FACILITIES AND MANGEMENT SERV
http://thanet.gov.uk/supplierspend,Thanet District Council,26/02/2019,469748,2810.21,,Kent County Council (Kcs),KCC003,Dir Ops/Commercial Serv,Revenue,Energy Costs,FACILITIES AND MANGEMENT SERV
http://thanet.gov.uk/supplierspend,Thanet District Council,26/02/2019,469749,2225.53,,Kent County Council (Kcs),KCC003,Dir Ops/Commercial Serv,Revenue,Energy Costs,FACILITIES AND MANGEMENT SERV
http://thanet.gov.uk/supplierspend,Thanet District Council,26/02/2019,469751,2014.42,,Kent County Council (Kcs),KCC003,Deputy Chief Executive/S151,Revenue,Energy Costs,FACILITIES AND MANGEMENT SERV
http://thanet.gov.uk/supplierspend,Thanet District Council,26/02/2019,470105,1221.9,,Kent County Council (Kcs),KCC003,Dir Ops/Commercial Serv,Revenue,Energy Costs,FACILITIES AND MANGEMENT SERV
http://thanet.gov.uk/supplierspend,Thanet District Council,26/02/2019,470106,1102.63,,Kent County Council (Kcs),KCC003,Dir Ops/Commercial Serv,Revenue,Energy Costs,FACILITIES AND MANGEMENT SERV
http://thanet.gov.uk/supplierspend,Thanet District Council,26/02/2019,470107,1295.18,,Kent County Council (Kcs),KCC003,Dir Ops/Commercial Serv,Revenue,Energy Costs,FACILITIES AND MANGEMENT SERV
http://thanet.gov.uk/supplierspend,Thanet District Council,26/02/2019,470108,1270.11,,Kent County Council (Kcs),KCC003,Dir Ops/Commercial Serv,Revenue,Energy Costs,FACILITIES AND MANGEMENT SERV
http://thanet.gov.uk/supplierspend,Thanet District Council,26/02/2019,469718,5000,,Kent Wildlife Trust,KEN007,Dir Ops/Commercial Serv,Revenue,Grants & Subscriptions,VARIOUS CATEGORIES
http://thanet.gov.uk/supplierspend,Thanet District Council,26/02/2019,469587,3032.42,,Kgb Cleaning & Support Services Ltd,KGB001,Dir Ops/Commercial Serv,Revenue,Cleaning & Domestic Supplies,CLEANING AND JANITORIAL
http://thanet.gov.uk/supplierspend,Thanet District Council,26/02/2019,467562,9478,,Kingdom Security Limited,KIN039,Dir Ops/Commercial Serv,Revenue,Services,STREET AND TRAFFIC MANAGEMENT
http://thanet.gov.uk/supplierspend,Thanet District Council,26/02/2019,469294,3866.55,,Kingdom Security Limited,KIN039,Dir Ops/Commercial Serv,Revenue,Services,STREET AND TRAFFIC MANAGEMENT
http://thanet.gov.uk/supplierspend,Thanet District Council,26/02/2019,469776,417.96,,L W Burt & Son Ltd,BUR027,Director Of Corp Gov/Mon Off,Revenue,"Repairs,  Alter & Mtce - Build",CONSTRUCTION-REPAIR AND MAINT
http://thanet.gov.uk/supplierspend,Thanet District Council,26/02/2019,469777,552.7,,L W Burt & Son Ltd,BUR027,Director Of Corp Gov/Mon Off,Revenue,"Repairs,  Alter & Mtce - Build",CONSTRUCTION-REPAIR AND MAINT
http://thanet.gov.uk/supplierspend,Thanet District Council,26/02/2019,469778,1642,,L W Burt & Son Ltd,BUR027,Director Of Corp Gov/Mon Off,Revenue,"Repairs,  Alter & Mtce - Build",CONSTRUCTION-REPAIR AND MAINT
http://thanet.gov.uk/supplierspend,Thanet District Council,26/02/2019,469779,454.71,,L W Burt & Son Ltd,BUR027,Dir Ops/Commercial Serv,Revenue,"Repairs,  Alter & Mtce - Build",CONSTRUCTION-REPAIR AND MAINT
http://thanet.gov.uk/supplierspend,Thanet District Council,26/02/2019,470113,5663.2,,Ling Metals Limited,LIN004,Dir Ops/Commercial Serv,Revenue,Services,ENVIRONMENTAL SERVICES
http://thanet.gov.uk/supplierspend,Thanet District Council,26/02/2019,469822,1041.6,,Lyreco Uk Limited,LYR001,Director Of Corp Gov/Mon Off,Revenue,"Print, Stat And Gen Off Exps",STATIONERY
http://thanet.gov.uk/supplierspend,Thanet District Council,26/02/2019,470333,1250,,Martin Neame Ltd,MAR116,Deputy Chief Executive/S151,Revenue,Grants & Subscriptions,RENT DEPOSITS
http://thanet.gov.uk/supplierspend,Thanet District Council,26/02/2019,469432,3253.58,,Mears Ltd,MEA003,Dir Ops/Commercial Serv,Revenue,"Repairs,  Alter & Mtce - Build",CONSTRUCTION-REPAIR AND MAINT
http://thanet.gov.uk/supplierspend,Thanet District Council,26/02/2019,469433,1062.14,,Mears Ltd,MEA003,Dir Ops/Commercial Serv,Revenue,"Repairs,  Alter & Mtce - Build",CONSTRUCTION-REPAIR AND MAINT
http://thanet.gov.uk/supplierspend,Thanet District Council,26/02/2019,469595,666.13,,Mears Ltd,MEA003,Dir Ops/Commercial Serv,Revenue,"Repairs,  Alter & Mtce - Build",CONSTRUCTION-REPAIR AND MAINT
http://thanet.gov.uk/supplierspend,Thanet District Council,26/02/2019,469596,1195.36,,Mears Ltd,MEA003,Dir Ops/Commercial Serv,Revenue,"Repairs,  Alter & Mtce - Build",CONSTRUCTION-REPAIR AND MAINT
http://thanet.gov.uk/supplierspend,Thanet District Council,26/02/2019,470161,490.82,,Mears Ltd,MEA003,Director Of Corp Gov/Mon Off,Revenue,"Repairs,  Alter & Mtce - Build",CONSTRUCTION-REPAIR AND MAINT
http://thanet.gov.uk/supplierspend,Thanet District Council,26/02/2019,470164,475.81,,Mears Ltd,MEA003,Director Of Corp Gov/Mon Off,Revenue,"Repairs,  Alter & Mtce - Build",CONSTRUCTION-REPAIR AND MAINT
http://thanet.gov.uk/supplierspend,Thanet District Council,26/02/2019,470164,546.54,,Mears Ltd,MEA003,Dir Ops/Commercial Serv,Revenue,"Repairs,  Alter & Mtce - Build",CONSTRUCTION-REPAIR AND MAINT
http://thanet.gov.uk/supplierspend,Thanet District Council,26/02/2019,470172,717.09,,Mears Ltd,MEA003,Director Of Corp Gov/Mon Off,Revenue,"Repairs,  Alter & Mtce - Build",CONSTRUCTION-REPAIR AND MAINT
http://thanet.gov.uk/supplierspend,Thanet District Council,26/02/2019,470225,1042.52,,Mears Ltd,MEA003,Dir Ops/Commercial Serv,Revenue,"Repairs,  Alter & Mtce - Build",CONSTRUCTION-REPAIR AND MAINT
http://thanet.gov.uk/supplierspend,Thanet District Council,26/02/2019,470311,1250,,Miles & Barr Property Man  Ltd,MIL048,Deputy Chief Executive/S151,Revenue,Grants & Subscriptions,RENT DEPOSITS
http://thanet.gov.uk/supplierspend,Thanet District Council,26/02/2019,470321,1000,,Miles & Barr Property Man  Ltd,MIL048,Deputy Chief Executive/S151,Revenue,Grants & Subscriptions,RENT DEPOSITS
http://thanet.gov.uk/supplierspend,Thanet District Council,26/02/2019,470323,1000,,Miles & Barr Property Man  Ltd,MIL048,Deputy Chief Executive/S151,Revenue,Grants & Subscriptions,RENT DEPOSITS
http://thanet.gov.uk/supplierspend,Thanet District Council,26/02/2019,470060,5000,,Neopost Limited Neofunds,NEO004,Director Of Corp Gov/Mon Off,Revenue,Communications & Computing,MAIL SERVICES
http://thanet.gov.uk/supplierspend,Thanet District Council,26/02/2019,470320,5000,,Neopost Ltd Credifon,NEO002,Director Of Corp Gov/Mon Off,Revenue,Communications & Computing,MAIL SERVICES
http://thanet.gov.uk/supplierspend,Thanet District Council,26/02/2019,469431,1039.88,,Ohuk Limited,OHU001,Dir Ops/Commercial Serv,Revenue,Agency Staff,HUMAN RESOURCES
http://thanet.gov.uk/supplierspend,Thanet District Council,26/02/2019,469808,799.88,,Ohuk Limited,OHU001,Dir Ops/Commercial Serv,Revenue,Agency Staff,HUMAN RESOURCES
http://thanet.gov.uk/supplierspend,Thanet District Council,26/02/2019,469781,9525,,One 51 Es Plastics (Uk) Limited,ONE006,Dir Ops/Commercial Serv,Revenue,"Equip, Furniture And Materials",ENVIRONMENTAL SERVICES
http://thanet.gov.uk/supplierspend,Thanet District Council,26/02/2019,469768,6366.29,,Oracle Corporation Uk Ltd,ORA001,East Kent Shared Services,Revenue,Communications & Computing,ICT
http://thanet.gov.uk/supplierspend,Thanet District Council,26/02/2019,469698,9218.08,,Ovenden Allworks Limited,OVE008,Dir Ops/Commercial Serv,Revenue,"Repairs,  Alter & Mtce - Build",CONSTRUCTION-REPAIR AND MAINT
http://thanet.gov.uk/supplierspend,Thanet District Council,26/02/2019,469699,3552.65,,Ovenden Allworks Limited,OVE008,Dir Ops/Commercial Serv,Revenue,"Repairs,  Alter & Mtce - Build",CONSTRUCTION-REPAIR AND MAINT
http://thanet.gov.uk/supplierspend,Thanet District Council,26/02/2019,470300,2431.81,,Peabody South East Limited,PEA024,Director of Corporate Resources and S151,Balance Sheet,Capital Exp-Non Council Assets,GRANTS
http://thanet.gov.uk/supplierspend,Thanet District Council,26/02/2019,470302,1036.02,,Peabody South East Limited,PEA024,Director of Corporate Resources and S151,Balance Sheet,Capital Exp-Non Council Assets,GRANTS
http://thanet.gov.uk/supplierspend,Thanet District Council,26/02/2019,470304,949.04,,Peabody South East Limited,PEA024,Director of Corporate Resources and S151,Balance Sheet,Capital Exp-Non Council Assets,GRANTS
http://thanet.gov.uk/supplierspend,Thanet District Council,26/02/2019,470305,1488,,Peabody South East Limited,PEA024,Director of Corporate Resources and S151,Balance Sheet,Capital Exp-Non Council Assets,GRANTS
http://thanet.gov.uk/supplierspend,Thanet District Council,26/02/2019,470317,660.04,,Peabody South East Limited,PEA024,Director of Corporate Resources and S151,Balance Sheet,Capital Exp-Non Council Assets,GRANTS
http://thanet.gov.uk/supplierspend,Thanet District Council,26/02/2019,470319,850.92,,Peabody South East Limited,PEA024,Director of Corporate Resources and S151,Balance Sheet,Capital Exp-Non Council Assets,GRANTS
http://thanet.gov.uk/supplierspend,Thanet District Council,26/02/2019,470313,1625,,Pearsons Lettings,PEA012,Deputy Chief Executive/S151,Revenue,Grants & Subscriptions,RENT DEPOSITS
http://thanet.gov.uk/supplierspend,Thanet District Council,26/02/2019,470111,432.65,,Premier Paper Group Limited,PRE035,Director Of Corp Gov/Mon Off,Revenue,"Print, Stat And Gen Off Exps",STATIONERY
http://thanet.gov.uk/supplierspend,Thanet District Council,26/02/2019,469593,1637.28,,Profile Security Services Limited,PRO018,Dir Ops/Commercial Serv,Revenue,Services,FACILITIES AND MANGEMENT SERV
http://thanet.gov.uk/supplierspend,Thanet District Council,26/02/2019,470307,1350,,Prospects Assured Uk Ltd,PRO032,Deputy Chief Executive/S151,Revenue,Grants & Subscriptions,RENT DEPOSITS
http://thanet.gov.uk/supplierspend,Thanet District Council,26/02/2019,470308,1250,,Prospects Assured Uk Ltd,PRO032,Deputy Chief Executive/S151,Revenue,Grants & Subscriptions,RENT DEPOSITS
http://thanet.gov.uk/supplierspend,Thanet District Council,26/02/2019,470309,1250,,Prospects Assured Uk Ltd,PRO032,Deputy Chief Executive/S151,Revenue,Grants & Subscriptions,RENT DEPOSITS
http://thanet.gov.uk/supplierspend,Thanet District Council,26/02/2019,470310,1250,,Prospects Assured Uk Ltd,PRO032,Deputy Chief Executive/S151,Revenue,Grants & Subscriptions,RENT DEPOSITS
http://thanet.gov.uk/supplierspend,Thanet District Council,26/02/2019,469790,38379.09,,Ridley Recycling Ltd,RID002,Dir Ops/Commercial Serv,Revenue,"Equip, Furniture And Materials",ENVIRONMENTAL SERVICES
http://thanet.gov.uk/supplierspend,Thanet District Council,26/02/2019,470081,958.74,,Scottish Water Business Stream Ltd,SCO019,Dir Ops/Commercial Serv,Revenue,Water Services,UTILITIES
http://thanet.gov.uk/supplierspend,Thanet District Council,26/02/2019,470082,1085.47,,Scottish Water Business Stream Ltd,SCO019,Dir Ops/Commercial Serv,Revenue,Water Services,UTILITIES
http://thanet.gov.uk/supplierspend,Thanet District Council,26/02/2019,470083,1121.11,,Scottish Water Business Stream Ltd,SCO019,Dir Ops/Commercial Serv,Revenue,Water Services,UTILITIES
http://thanet.gov.uk/supplierspend,Thanet District Council,26/02/2019,470101,2263.75,,Scottish Water Business Stream Ltd,SCO019,Director Of Corp Gov/Mon Off,Revenue,Water Services,UTILITIES
http://thanet.gov.uk/supplierspend,Thanet District Council,26/02/2019,469308,3254,,Securitas Security Services (Uk) Ltd,SEC019,Director Of Corp Gov/Mon Off,Revenue,Services,FACILITIES AND MANGEMENT SERV
http://thanet.gov.uk/supplierspend,Thanet District Council,26/02/2019,469829,435,,Sellick Partnership Ltd,SEL011,Director Of Corp Gov/Mon Off,Revenue,Services,HUMAN RESOURCES
http://thanet.gov.uk/supplierspend,Thanet District Council,26/02/2019,470166,3195,,Sellick Partnership Ltd,SEL011,Director Of Corp Gov/Mon Off,Revenue,Agency Staff,HUMAN RESOURCES
http://thanet.gov.uk/supplierspend,Thanet District Council,26/02/2019,470306,1250,,Simply Homes 4 U Ltd,SIM012,Deputy Chief Executive/S151,Revenue,Grants & Subscriptions,RENT DEPOSITS
http://thanet.gov.uk/supplierspend,Thanet District Council,26/02/2019,469675,657.1,,Southern Electric,SEL007,Dir Ops/Commercial Serv,Revenue,Energy Costs,UTILITIES
http://thanet.gov.uk/supplierspend,Thanet District Council,26/02/2019,470076,2184.32,,Southern Electric,SEL007,Dir Ops/Commercial Serv,Revenue,Energy Costs,UTILITIES
http://thanet.gov.uk/supplierspend,Thanet District Council,26/02/2019,469877,450,,Survey And Test,SUR015,Director Of Corp Gov/Mon Off,Revenue,"Repairs,  Alter & Mtce - Build",UTILITIES
http://thanet.gov.uk/supplierspend,Thanet District Council,26/02/2019,468516,2500,,Survey Design Services & Assoc Ltd,SUR013,Dir Ops/Commercial Serv,Revenue,"Repairs,  Alter & Mtce - Build",CONSTRUCTION-REPAIR AND MAINT
http://thanet.gov.uk/supplierspend,Thanet District Council,26/02/2019,469274,1945.5,,Thanet Waste Services Ltd,TWA001,Dir Ops/Commercial Serv,Revenue,Cleaning & Domestic Supplies,ENVIRONMENTAL SERVICES
http://thanet.gov.uk/supplierspend,Thanet District Council,26/02/2019,469415,2726.25,,Thanet Waste Services Ltd,TWA001,Dir Ops/Commercial Serv,Revenue,Cleaning & Domestic Supplies,ENVIRONMENTAL SERVICES
http://thanet.gov.uk/supplierspend,Thanet District Council,26/02/2019,469435,1050,,Thanet Waste Services Ltd,TWA001,Dir Ops/Commercial Serv,Revenue,Cleaning & Domestic Supplies,ENVIRONMENTAL SERVICES
http://thanet.gov.uk/supplierspend,Thanet District Council,26/02/2019,470208,1059.15,,The Bell Brush Company,BEL018,Dir Ops/Commercial Serv,Revenue,"Equip, Furniture And Materials",CLEANING AND JANITORIAL
http://thanet.gov.uk/supplierspend,Thanet District Council,26/02/2019,469592,1445.5,,The Oyster Partnership Ltd,OYS001,Director Of Corp Gov/Mon Off,Revenue,Agency Staff,HUMAN RESOURCES
http://thanet.gov.uk/supplierspend,Thanet District Council,26/02/2019,469825,2113.97,,The Oyster Partnership Ltd,OYS001,Director Of Corp Gov/Mon Off,Revenue,Agency Staff,HUMAN RESOURCES
http://thanet.gov.uk/supplierspend,Thanet District Council,26/02/2019,470200,1735.78,,The Oyster Partnership Ltd,OYS001,Director Of Corp Gov/Mon Off,Revenue,Agency Staff,HUMAN RESOURCES
http://thanet.gov.uk/supplierspend,Thanet District Council,26/02/2019,469807,1105,,Travmedia (Uk) Limited,TRA059,Dir Ops/Commercial Serv,Revenue,Services,FACILITIES AND MANGEMENT SERV
http://thanet.gov.uk/supplierspend,Thanet District Council,26/02/2019,470318,7090.96,,Trueden Disability Adaptations Ltd,TRU012,Director of Corporate Resources and S151,Balance Sheet,Capital Exp-Non Council Assets,GRANTS
http://thanet.gov.uk/supplierspend,Thanet District Council,26/02/2019,469653,95.19,,W G Burbridge,BUR016,Dir Ops/Commercial Serv,Revenue,"Repairs,  Alter & Mtce - Build",BUILDING CONSTRUCTION MATERIAL
http://thanet.gov.uk/supplierspend,Thanet District Council,26/02/2019,469653,420.08,,W G Burbridge,BUR016,Director of Corporate Resources and S151,Balance Sheet,Other Land And Buildings-Hra,BUILDING CONSTRUCTION MATERIAL
http://thanet.gov.uk/supplierspend,Thanet District Council,26/02/2019,469647,33854,,W W Martin Ltd,MAR003,Director of Corporate Resources and S151,Balance Sheet,Council Dwellings,CONSTRUCTION-REPAIR AND MAINT
http://thanet.gov.uk/supplierspend,Thanet District Council,26/02/2019,469648,45365.99,,W W Martin Ltd,MAR003,Director of Corporate Resources and S151,Balance Sheet,Council Dwellings,CONSTRUCTION-REPAIR AND MAINT
http://thanet.gov.uk/supplierspend,Thanet District Council,27/02/2019,469806,527.38,,Capita Business Services Ltd,CAP001,Deputy Chief Executive/S151,Revenue,Services,HUMAN RESOURCES
http://thanet.gov.uk/supplierspend,Thanet District Council,27/02/2019,470079,1949.39,,Capita Business Services Ltd,CAP001,Deputy Chief Executive/S151,Revenue,Services,HUMAN RESOURCES
http://thanet.gov.uk/supplierspend,Thanet District Council,27/02/2019,470256,587570,,Maidstone Borough Council,MAI002,Deputy Chief Executive/S151,Revenue,Revenue Financing,VARIOUS CATS-PUBLIC SECTOR
http://thanet.gov.uk/supplierspend,Thanet District Council,27/02/2019,470256,1364600,,Maidstone Borough Council,MAI002,Director of Corporate Resources and S151,Balance Sheet,Collection Fund,VARIOUS CATS-PUBLIC SECTOR
http://thanet.gov.uk/supplierspend,Thanet District Council,27/02/2019,470261,15800,,Public Works Loan Board,PWL001,Director of Corporate Resources and S151,Balance Sheet,Debit Interest And Expenses,INVESTMENTS AND LOANS
http://thanet.gov.uk/supplierspend,Thanet District Council,27/02/2019,470265,251.23,,Public Works Loan Board,PWL001,Director of Corporate Resources and S151,Balance Sheet,Borrowing Repayable>1 Yr,INVESTMENTS AND LOANS
http://thanet.gov.uk/supplierspend,Thanet District Council,27/02/2019,470265,1117.09,,Public Works Loan Board,PWL001,Director of Corporate Resources and S151,Balance Sheet,Debit Interest And Expenses,INVESTMENTS AND LOANS
http://thanet.gov.uk/supplierspend,Thanet District Council,27/02/2019,470483,16541.27,,Ravestein Bv,RAV001,Director of Corporate Resources and S151,Balance Sheet,Other Land And Buildings-Hra,MARITIME SERVICES
http://thanet.gov.uk/supplierspend,Thanet District Council,27/02/2019,470484,55137.55,,Ravestein Bv,RAV001,Director of Corporate Resources and S151,Balance Sheet,Other Land And Buildings-Hra,MARITIME SERVICES
http://thanet.gov.uk/supplierspend,Thanet District Council,27/02/2019,N/A,5000,,REDACTED PERSONAL DATA,N/A,Deputy Chief Executive/S151,Revenue,Services,FINANCIAL SERVICES
http://thanet.gov.uk/supplierspend,Thanet District Council,27/02/2019,470270,1714,,Secretary Of State,SEC003,Deputy Chief Executive/S151,Revenue,Revenue Financing,GOVERNMENT AGENCIES
http://thanet.gov.uk/supplierspend,Thanet District Council,27/02/2019,470270,1759,,Secretary Of State,SEC003,Director of Corporate Resources and S151,Balance Sheet,Collection Fund,GOVERNMENT AGENCIES
http://thanet.gov.uk/supplierspend,Thanet District Council,27/02/2019,470270,14185,,Secretary Of State,SEC003,Director of Corporate Resources and S151,Balance Sheet,Business Rates Retention,GOVERNMENT AGENCIES
http://thanet.gov.uk/supplierspend,Thanet District Council,28/02/2019,469889,24745,,Kent County Council,KCC002,Director of Corporate Resources and S151,Balance Sheet,Insurance Holding Account,VARIOUS CATS-PUBLIC SECTOR
http://thanet.gov.uk/supplierspend,Thanet District Council,28/02/2019,470449,1250,,Martin Neame Ltd,MAR116,Deputy Chief Executive/S151,Revenue,Grants & Subscriptions,RENT DEPOSITS
http://thanet.gov.uk/supplierspend,Thanet District Council,28/02/2019,470450,1250,,Martin Neame Ltd,MAR116,Deputy Chief Executive/S151,Revenue,Grants & Subscriptions,RENT DEPOSITS
http://thanet.gov.uk/supplierspend,Thanet District Council,28/02/2019,470451,1250,,Martin Neame Ltd,MAR116,Deputy Chief Executive/S151,Revenue,Grants & Subscriptions,RENT DEPOSITS
http://thanet.gov.uk/supplierspend,Thanet District Council,28/02/2019,470452,1250,,Martin Neame Ltd,MAR116,Deputy Chief Executive/S151,Revenue,Grants & Subscriptions,RENT DEPOSITS
http://thanet.gov.uk/supplierspend,Thanet District Council,28/02/2019,470453,1250,,Martin Neame Ltd,MAR116,Deputy Chief Executive/S151,Revenue,Grants & Subscriptions,RENT DEPOSITS
http://thanet.gov.uk/supplierspend,Thanet District Council,28/02/2019,470448,1495,,Ncc Services Ltd,NCC003,Deputy Chief Executive/S151,Revenue,Communications & Computing,ICT
http://thanet.gov.uk/supplierspend,Thanet District Council,28/02/2019,470455,1250,,Prospects Assured Uk Ltd,PRO032,Deputy Chief Executive/S151,Revenue,Grants & Subscriptions,RENT DEPOSITS
http://thanet.gov.uk/supplierspend,Thanet District Council,28/02/2019,470456,1250,,Prospects Assured Uk Ltd,PRO032,Deputy Chief Executive/S151,Revenue,Grants & Subscriptions,RENT DEPOSITS
http://thanet.gov.uk/supplierspend,Thanet District Council,28/02/2019,470601,244540.13,,Veale Wasbrough Vizards Llp,VEA001,Director of Corporate Resources and S151,Balance Sheet,Council Dwellings,LEGAL SERVICES
http://thanet.gov.uk/supplierspend,Thanet District Council,28/02/2019,470602,269223,,Veale Wasbrough Vizards Llp,VEA001,Director of Corporate Resources and S151,Balance Sheet,Council Dwellings,LEGAL SERVICES
http://thanet.gov.uk/supplierspend,Thanet District Council,05/03/2019,469015,10115,,7futures Limited,7FU001,East Kent Shared Services,Revenue,Services,HUMAN RESOURCES
http://thanet.gov.uk/supplierspend,Thanet District Council,05/03/2019,470203,7200,,Action With Comms In Rural Kent,ACT004,Deputy Chief Executive/S151,Revenue,Services,CONSULTANCY
http://thanet.gov.uk/supplierspend,Thanet District Council,05/03/2019,469835,2488,,Albion Fencing&Construction Kent Ltd,ALB005,Dir Ops/Commercial Serv,Revenue,"Equip, Furniture And Materials",BUILDING CONSTRUCTION MATERIAL
http://thanet.gov.uk/supplierspend,Thanet District Council,05/03/2019,470222,1346,,Albion Fencing&Construction Kent Ltd,ALB005,Dir Ops/Commercial Serv,Revenue,"Repairs,  Alter & Mtce - Build",BUILDING CONSTRUCTION MATERIAL
http://thanet.gov.uk/supplierspend,Thanet District Council,05/03/2019,470817,2260,,Ascendit Lifts Ltd,ASC001,Director of Corporate Resources and S151,Balance Sheet,Capital Exp-Non Council Assets,GRANTS
http://thanet.gov.uk/supplierspend,Thanet District Council,05/03/2019,469295,1219.93,,Ats Euromaster Ltd,ATS002,Dir Ops/Commercial Serv,Revenue,Direct Transport Costs,VEHICLE MANAGEMENT
http://thanet.gov.uk/supplierspend,Thanet District Council,05/03/2019,470571,1646.68,,Bt Payment Services Ltd,BTE003,Director of Corporate Resources and S151,Balance Sheet,Telephone Holding Account,ICT
http://thanet.gov.uk/supplierspend,Thanet District Council,05/03/2019,469826,4818.5,,C S Mitchell Ltd,MIT010,Dir Ops/Commercial Serv,Revenue,"Equip, Furniture And Materials",MARITIME SERVICES
http://thanet.gov.uk/supplierspend,Thanet District Council,05/03/2019,469444,1942.46,,Canon (Uk) Ltd,CAN021,Director Of Corp Gov/Mon Off,Revenue,"Equip, Furniture And Materials",FACILITIES AND MANGEMENT SERV
http://thanet.gov.uk/supplierspend,Thanet District Council,05/03/2019,470830,1262.41,,Canon (Uk) Ltd,CAN021,Director Of Corp Gov/Mon Off,Revenue,"Equip, Furniture And Materials",FACILITIES AND MANGEMENT SERV
http://thanet.gov.uk/supplierspend,Thanet District Council,05/03/2019,469571,4814,,Ccs Media Limited,CCS003,Director of Corporate Resources and S151,Balance Sheet,Plant And Equipment,ICT
http://thanet.gov.uk/supplierspend,Thanet District Council,05/03/2019,469820,5520.44,,Ccs Media Limited,CCS003,Director of Corporate Resources and S151,Balance Sheet,Plant And Equipment,ICT
http://thanet.gov.uk/supplierspend,Thanet District Council,05/03/2019,470110,1160,,Cdw Limited,CDW002,Director of Corporate Resources and S151,Balance Sheet,Plant And Equipment,ICT
http://thanet.gov.uk/supplierspend,Thanet District Council,05/03/2019,469549,1906,,Civica Uk Ltd,CIV003,East Kent Shared Services,Revenue,Communications & Computing,ICT
http://thanet.gov.uk/supplierspend,Thanet District Council,05/03/2019,469550,1906,,Civica Uk Ltd,CIV003,East Kent Shared Services,Revenue,Communications & Computing,ICT
http://thanet.gov.uk/supplierspend,Thanet District Council,05/03/2019,469551,1906,,Civica Uk Ltd,CIV003,East Kent Shared Services,Revenue,Communications & Computing,ICT
http://thanet.gov.uk/supplierspend,Thanet District Council,05/03/2019,470044,111667.98,,Civica Uk Ltd,CIV003,East Kent Shared Services,Revenue,Communications & Computing,ICT
http://thanet.gov.uk/supplierspend,Thanet District Council,05/03/2019,470045,1324.17,,Civica Uk Ltd,CIV003,East Kent Shared Services,Revenue,Communications & Computing,ICT
http://thanet.gov.uk/supplierspend,Thanet District Council,05/03/2019,470046,827.61,,Civica Uk Ltd,CIV003,East Kent Shared Services,Revenue,Communications & Computing,ICT
http://thanet.gov.uk/supplierspend,Thanet District Council,05/03/2019,470047,2062.86,,Civica Uk Ltd,CIV003,East Kent Shared Services,Revenue,Communications & Computing,ICT
http://thanet.gov.uk/supplierspend,Thanet District Council,05/03/2019,470048,2206.96,,Civica Uk Ltd,CIV003,East Kent Shared Services,Revenue,Communications & Computing,ICT
http://thanet.gov.uk/supplierspend,Thanet District Council,05/03/2019,470049,2120.39,,Civica Uk Ltd,CIV003,East Kent Shared Services,Revenue,Communications & Computing,ICT
http://thanet.gov.uk/supplierspend,Thanet District Council,05/03/2019,470050,1260.18,,Civica Uk Ltd,CIV003,East Kent Shared Services,Revenue,Communications & Computing,ICT
http://thanet.gov.uk/supplierspend,Thanet District Council,05/03/2019,470051,1534.13,,Civica Uk Ltd,CIV003,East Kent Shared Services,Revenue,Communications & Computing,ICT
http://thanet.gov.uk/supplierspend,Thanet District Council,05/03/2019,470053,1753.29,,Civica Uk Ltd,CIV003,East Kent Shared Services,Revenue,Communications & Computing,ICT
http://thanet.gov.uk/supplierspend,Thanet District Council,05/03/2019,470056,966.89,,Civica Uk Ltd,CIV003,East Kent Shared Services,Revenue,Communications & Computing,ICT
http://thanet.gov.uk/supplierspend,Thanet District Council,05/03/2019,470057,1611.48,,Civica Uk Ltd,CIV003,East Kent Shared Services,Revenue,Communications & Computing,ICT
http://thanet.gov.uk/supplierspend,Thanet District Council,05/03/2019,470058,966.89,,Civica Uk Ltd,CIV003,East Kent Shared Services,Revenue,Communications & Computing,ICT
http://thanet.gov.uk/supplierspend,Thanet District Council,05/03/2019,470059,3150.65,,Civica Uk Ltd,CIV003,East Kent Shared Services,Revenue,Communications & Computing,ICT
http://thanet.gov.uk/supplierspend,Thanet District Council,05/03/2019,469734,1800,,Coastal Publications,COA018,Dir Ops/Commercial Serv,Revenue,Services,ARTS AND LEISURE SERVICES
http://thanet.gov.uk/supplierspend,Thanet District Council,05/03/2019,469412,5670.4,,Cobalt Telephone Technologies Ltd,COB002,Dir Ops/Commercial Serv,Revenue,Services,ICT
http://thanet.gov.uk/supplierspend,Thanet District Council,05/03/2019,470819,4500,,Dolphin Lifts Kent,DOL003,Director of Corporate Resources and S151,Balance Sheet,Capital Exp-Non Council Assets,GRANTS
http://thanet.gov.uk/supplierspend,Thanet District Council,05/03/2019,469629,17271.31,,Dover District Council,DOV001,East Kent Shared Services,Revenue,Services,VARIOUS CATS-PUBLIC SECTOR
http://thanet.gov.uk/supplierspend,Thanet District Council,05/03/2019,470112,3351.85,,E Saunders Margate Ltd,SAU001,Dir Ops/Commercial Serv,Revenue,"Repairs,  Alter & Mtce - Build",CONSTRUCTION-REPAIR AND MAINT
http://thanet.gov.uk/supplierspend,Thanet District Council,05/03/2019,470173,1548.01,,E Saunders Margate Ltd,SAU001,Director of Corporate Resources and S151,Balance Sheet,Rechargeable Works,CONSTRUCTION-REPAIR AND MAINT
http://thanet.gov.uk/supplierspend,Thanet District Council,05/03/2019,469579,838,,Electrical Lighting Solutions Ltd,ELE013,Dir Ops/Commercial Serv,Revenue,"Repairs,  Alter & Mtce - Build",BUILDING CONSTRUCTION MATERIAL
http://thanet.gov.uk/supplierspend,Thanet District Council,05/03/2019,469617,1031.73,,Electrical Lighting Solutions Ltd,ELE013,Dir Ops/Commercial Serv,Revenue,"Repairs,  Alter & Mtce - Build",BUILDING CONSTRUCTION MATERIAL
http://thanet.gov.uk/supplierspend,Thanet District Council,05/03/2019,470071,673.34,,Evoke Supplies Limited,EVO001,Dir Ops/Commercial Serv,Revenue,"Repairs,  Alter & Mtce - Build",BUILDING CONSTRUCTION MATERIAL
http://thanet.gov.uk/supplierspend,Thanet District Council,05/03/2019,470290,5400,,Frenkels Limited,FRE069,Director of Corporate Resources and S151,Balance Sheet,Provisions-Future Settlement,LEGAL SERVICES
http://thanet.gov.uk/supplierspend,Thanet District Council,05/03/2019,470512,1857.46,,Gas Contract Services Ltd,GAS004,Director of Corporate Resources and S151,Balance Sheet,Repairs And Mtce Holding A/C,CONSTRUCTION-REPAIR AND MAINT
http://thanet.gov.uk/supplierspend,Thanet District Council,05/03/2019,469276,2470,,Hazle Mccormack Young Llp,HAZ004,Director of Corporate Resources and S151,Balance Sheet,Council Dwellings,CONSTRUCTION-REPAIR AND MAINT
http://thanet.gov.uk/supplierspend,Thanet District Council,05/03/2019,470560,1070,,Heras Ready Fence Hire & Sales,HER018,Dir Ops/Commercial Serv,Revenue,"Repairs,  Alter & Mtce - Build",BUILDING CONSTRUCTION MATERIAL
http://thanet.gov.uk/supplierspend,Thanet District Council,05/03/2019,469673,650,,Hi Way Services Ltd,HIW002,Dir Ops/Commercial Serv,Revenue,"Repairs,  Alter & Mtce - Build",HIGHWAY EQUIPMENT AND MATERIAL
http://thanet.gov.uk/supplierspend,Thanet District Council,05/03/2019,469350,9615.85,,Hr Go (Kent) Ltd,HRG001,Dir Ops/Commercial Serv,Revenue,Agency Staff,HUMAN RESOURCES
http://thanet.gov.uk/supplierspend,Thanet District Council,05/03/2019,469411,2450.5,,Hr Go (Kent) Ltd,HRG001,Dir Ops/Commercial Serv,Revenue,Agency Staff,HUMAN RESOURCES
http://thanet.gov.uk/supplierspend,Thanet District Council,05/03/2019,469604,449.55,,Hr Go (Kent) Ltd,HRG001,Dir Ops/Commercial Serv,Revenue,Agency Staff,HUMAN RESOURCES
http://thanet.gov.uk/supplierspend,Thanet District Council,05/03/2019,469689,2686.77,,Hr Go (Kent) Ltd,HRG001,Dir Ops/Commercial Serv,Revenue,Agency Staff,HUMAN RESOURCES
http://thanet.gov.uk/supplierspend,Thanet District Council,05/03/2019,469836,1400.59,,Hr Go (Kent) Ltd,HRG001,Dir Ops/Commercial Serv,Revenue,Agency Staff,HUMAN RESOURCES
http://thanet.gov.uk/supplierspend,Thanet District Council,05/03/2019,469841,449.55,,Hr Go (Kent) Ltd,HRG001,Dir Ops/Commercial Serv,Revenue,Agency Staff,HUMAN RESOURCES
http://thanet.gov.uk/supplierspend,Thanet District Council,05/03/2019,470084,1283.49,,Hr Go (Kent) Ltd,HRG001,Dir Ops/Commercial Serv,Revenue,Agency Staff,HUMAN RESOURCES
http://thanet.gov.uk/supplierspend,Thanet District Council,05/03/2019,470589,1493.14,,Hr Go (Kent) Ltd,HRG001,Dir Ops/Commercial Serv,Revenue,Agency Staff,HUMAN RESOURCES
http://thanet.gov.uk/supplierspend,Thanet District Council,05/03/2019,469624,13162.53,,Imperial Civil Enforcement Sols Ltd,IMP008,Dir Ops/Commercial Serv,Revenue,Services,STREET AND TRAFFIC MANAGEMENT
http://thanet.gov.uk/supplierspend,Thanet District Council,05/03/2019,470822,2217.5,,John Gale,GAL001,Director of Corporate Resources and S151,Balance Sheet,Capital Exp-Non Council Assets,GRANTS
http://thanet.gov.uk/supplierspend,Thanet District Council,05/03/2019,470824,638.5,,John Gale,GAL001,Director of Corporate Resources and S151,Balance Sheet,Capital Exp-Non Council Assets,GRANTS
http://thanet.gov.uk/supplierspend,Thanet District Council,05/03/2019,470827,7064.91,,Kent County Council,KCC002,Director of Corporate Resources and S151,Balance Sheet,Insurance Holding Account,VARIOUS CATS-PUBLIC SECTOR
http://thanet.gov.uk/supplierspend,Thanet District Council,05/03/2019,469746,6464.71,,Kent County Council (Kcs),KCC003,Dir Ops/Commercial Serv,Revenue,Energy Costs,FACILITIES AND MANGEMENT SERV
http://thanet.gov.uk/supplierspend,Thanet District Council,05/03/2019,469747,10267.08,,Kent County Council (Kcs),KCC003,Director Of Corp Gov/Mon Off,Revenue,Energy Costs,FACILITIES AND MANGEMENT SERV
http://thanet.gov.uk/supplierspend,Thanet District Council,05/03/2019,469750,9765.63,,Kent County Council (Kcs),KCC003,Dir Ops/Commercial Serv,Revenue,Energy Costs,FACILITIES AND MANGEMENT SERV
http://thanet.gov.uk/supplierspend,Thanet District Council,05/03/2019,470176,3032.42,,Kgb Cleaning & Support Services Ltd,KGB001,Dir Ops/Commercial Serv,Revenue,Cleaning & Domestic Supplies,CLEANING AND JANITORIAL
http://thanet.gov.uk/supplierspend,Thanet District Council,05/03/2019,470244,3032.42,,Kgb Cleaning & Support Services Ltd,KGB001,Dir Ops/Commercial Serv,Revenue,Cleaning & Domestic Supplies,CLEANING AND JANITORIAL
http://thanet.gov.uk/supplierspend,Thanet District Council,05/03/2019,469874,814.1,,Ling Metals Limited,LIN004,Dir Ops/Commercial Serv,Revenue,Cleaning & Domestic Supplies,ENVIRONMENTAL SERVICES
http://thanet.gov.uk/supplierspend,Thanet District Council,05/03/2019,469876,765.96,,Ling Metals Limited,LIN004,Dir Ops/Commercial Serv,Revenue,Cleaning & Domestic Supplies,ENVIRONMENTAL SERVICES
http://thanet.gov.uk/supplierspend,Thanet District Council,05/03/2019,470219,3174,,Loadwise International Ltd,LOA001,Dir Ops/Commercial Serv,Revenue,"Equip, Furniture And Materials",MARITIME SERVICES
http://thanet.gov.uk/supplierspend,Thanet District Council,05/03/2019,470572,9975,,Luv Corp Ltd,LUV001,Deputy Chief Executive/S151,Revenue,Services,ICT
http://thanet.gov.uk/supplierspend,Thanet District Council,05/03/2019,470574,9975,,Luv Corp Ltd,LUV001,Deputy Chief Executive/S151,Revenue,Services,ICT
http://thanet.gov.uk/supplierspend,Thanet District Council,05/03/2019,470283,750,,Marc Brittain,BRI048,Director of Corporate Resources and S151,Balance Sheet,Provisions-Future Settlement,LEGAL SERVICES
http://thanet.gov.uk/supplierspend,Thanet District Council,05/03/2019,470086,100948.71,,Mears Ltd,MEA003,Deputy Chief Executive/S151,Revenue,"Repairs,  Alter & Mtce - Build",CONSTRUCTION-REPAIR AND MAINT
http://thanet.gov.uk/supplierspend,Thanet District Council,05/03/2019,470828,1000,,Miles & Barr Property Man  Ltd,MIL048,Deputy Chief Executive/S151,Revenue,Grants & Subscriptions,RENT DEPOSITS
http://thanet.gov.uk/supplierspend,Thanet District Council,05/03/2019,470829,1420,,Miles & Barr Property Man  Ltd,MIL048,Deputy Chief Executive/S151,Revenue,Grants & Subscriptions,RENT DEPOSITS
http://thanet.gov.uk/supplierspend,Thanet District Council,05/03/2019,469597,2655,,Moreton Hayward Ltd,MOR034,Director of Corporate Resources and S151,Balance Sheet,Council Dwellings,CONSULTANCY
http://thanet.gov.uk/supplierspend,Thanet District Council,05/03/2019,470192,608.65,,Northgate Public Services (Uk) Ltd,NOR018,Deputy Chief Executive/S151,Revenue,Communications & Computing,ICT
http://thanet.gov.uk/supplierspend,Thanet District Council,05/03/2019,470202,799.88,,Ohuk Limited,OHU001,Dir Ops/Commercial Serv,Revenue,Agency Staff,HUMAN RESOURCES
http://thanet.gov.uk/supplierspend,Thanet District Council,05/03/2019,470515,25030.82,,P & R Installation Company Limited,PRI035,Director of Corporate Resources and S151,Balance Sheet,Repairs And Mtce Holding A/C,BUILDING CONSTRUCTION MATERIAL
http://thanet.gov.uk/supplierspend,Thanet District Council,05/03/2019,470528,462.1,,P & R Installation Company Limited,PRI035,Director of Corporate Resources and S151,Balance Sheet,Repairs And Mtce Holding A/C,BUILDING CONSTRUCTION MATERIAL
http://thanet.gov.uk/supplierspend,Thanet District Council,05/03/2019,469442,2077,,Paramount Ind Property Services Llp,PAR074,Deputy Chief Executive/S151,Revenue,Grants & Subscriptions,HOUSING MANAGEMENT
http://thanet.gov.uk/supplierspend,Thanet District Council,05/03/2019,469623,1622.55,,Parkeon Limited,PAR063,Dir Ops/Commercial Serv,Revenue,Communications & Computing,STREET AND TRAFFIC MANAGEMENT
http://thanet.gov.uk/supplierspend,Thanet District Council,05/03/2019,470818,1264.7,,Peabody South East Limited,PEA024,Director of Corporate Resources and S151,Balance Sheet,Capital Exp-Non Council Assets,GRANTS
http://thanet.gov.uk/supplierspend,Thanet District Council,05/03/2019,470820,540,,Peabody South East Limited,PEA024,Director of Corporate Resources and S151,Balance Sheet,Capital Exp-Non Council Assets,GRANTS
http://thanet.gov.uk/supplierspend,Thanet District Council,05/03/2019,470170,1128.2,,Peer 1 (Uk) Limited,PEE003,East Kent Shared Services,Revenue,Communications & Computing,ICT
http://thanet.gov.uk/supplierspend,Thanet District Council,05/03/2019,470181,436,,Point Safety Limited,POI005,Dir Ops/Commercial Serv,Revenue,"Equip, Furniture And Materials",ENVIRONMENTAL SERVICES
http://thanet.gov.uk/supplierspend,Thanet District Council,05/03/2019,470213,25949.3,,Profile Security Services Limited,PRO018,Dir Ops/Commercial Serv,Revenue,Services,FACILITIES AND MANGEMENT SERV
http://thanet.gov.uk/supplierspend,Thanet District Council,05/03/2019,470214,961.25,,Profile Security Services Limited,PRO018,Dir Ops/Commercial Serv,Revenue,Services,FACILITIES AND MANGEMENT SERV
http://thanet.gov.uk/supplierspend,Thanet District Council,05/03/2019,469585,429,,R S S (Wessex) Limited,RSS002,Dir Ops/Commercial Serv,Revenue,Agency Staff,HUMAN RESOURCES
http://thanet.gov.uk/supplierspend,Thanet District Council,05/03/2019,469827,721.5,,R S S (Wessex) Limited,RSS002,Dir Ops/Commercial Serv,Revenue,Agency Staff,HUMAN RESOURCES
http://thanet.gov.uk/supplierspend,Thanet District Council,05/03/2019,470196,721.5,,R S S (Wessex) Limited,RSS002,Dir Ops/Commercial Serv,Revenue,Agency Staff,HUMAN RESOURCES
http://thanet.gov.uk/supplierspend,Thanet District Council,05/03/2019,469852,570.74,,Royal Mail,ROY004,Director Of Corp Gov/Mon Off,Revenue,Communications & Computing,MAIL SERVICES
http://thanet.gov.uk/supplierspend,Thanet District Council,05/03/2019,470279,25569.6,,Sagoss Limited,SAG004,Director of Corporate Resources and S151,Balance Sheet,Plant And Equipment,ICT
http://thanet.gov.uk/supplierspend,Thanet District Council,05/03/2019,470280,22295,,Sagoss Limited,SAG004,Director of Corporate Resources and S151,Balance Sheet,Plant And Equipment,ICT
http://thanet.gov.uk/supplierspend,Thanet District Council,05/03/2019,470527,2157.19,,Scottish Water Business Stream Ltd,SCO019,Dir Ops/Commercial Serv,Revenue,Water Services,UTILITIES
http://thanet.gov.uk/supplierspend,Thanet District Council,05/03/2019,470530,1786.05,,Scottish Water Business Stream Ltd,SCO019,Dir Ops/Commercial Serv,Revenue,Water Services,UTILITIES
http://thanet.gov.uk/supplierspend,Thanet District Council,05/03/2019,470541,3031.74,,Scottish Water Business Stream Ltd,SCO019,Dir Ops/Commercial Serv,Revenue,Water Services,UTILITIES
http://thanet.gov.uk/supplierspend,Thanet District Council,05/03/2019,470744,544.42,,Scottish Water Business Stream Ltd,SCO019,Dir Ops/Commercial Serv,Revenue,Water Services,UTILITIES
http://thanet.gov.uk/supplierspend,Thanet District Council,05/03/2019,470745,-1030.81,,Scottish Water Business Stream Ltd,SCO019,Dir Ops/Commercial Serv,Revenue,Water Services,UTILITIES
http://thanet.gov.uk/supplierspend,Thanet District Council,05/03/2019,470746,1249.06,,Scottish Water Business Stream Ltd,SCO019,Dir Ops/Commercial Serv,Revenue,Water Services,UTILITIES
http://thanet.gov.uk/supplierspend,Thanet District Council,05/03/2019,470603,3195,,Sellick Partnership Ltd,SEL011,Director Of Corp Gov/Mon Off,Revenue,Agency Staff,HUMAN RESOURCES
http://thanet.gov.uk/supplierspend,Thanet District Council,05/03/2019,470604,432,,Sellick Partnership Ltd,SEL011,Director Of Corp Gov/Mon Off,Revenue,Services,HUMAN RESOURCES
http://thanet.gov.uk/supplierspend,Thanet District Council,05/03/2019,470821,23045,,South East Building Company Limited,SEB001,Director of Corporate Resources and S151,Balance Sheet,Capital Exp-Non Council Assets,GRANTS
http://thanet.gov.uk/supplierspend,Thanet District Council,05/03/2019,470823,6385,,South East Building Company Limited,SEB001,Director of Corporate Resources and S151,Balance Sheet,Capital Exp-Non Council Assets,GRANTS
http://thanet.gov.uk/supplierspend,Thanet District Council,05/03/2019,470490,3906.55,,Southern Electric,SEL007,Dir Ops/Commercial Serv,Revenue,Energy Costs,UTILITIES
http://thanet.gov.uk/supplierspend,Thanet District Council,05/03/2019,470491,1613.99,,Southern Electric,SEL007,Dir Ops/Commercial Serv,Revenue,Energy Costs,UTILITIES
http://thanet.gov.uk/supplierspend,Thanet District Council,05/03/2019,470493,1135.73,,Southern Electric,SEL007,Dir Ops/Commercial Serv,Revenue,Energy Costs,UTILITIES
http://thanet.gov.uk/supplierspend,Thanet District Council,05/03/2019,470495,2864.9,,Southern Electric,SEL007,Deputy Chief Executive/S151,Revenue,Energy Costs,UTILITIES
http://thanet.gov.uk/supplierspend,Thanet District Council,05/03/2019,470498,1640.34,,Southern Electric,SEL007,Dir Ops/Commercial Serv,Revenue,Energy Costs,UTILITIES
http://thanet.gov.uk/supplierspend,Thanet District Council,05/03/2019,470500,3379.03,,Southern Electric,SEL007,Deputy Chief Executive/S151,Revenue,Energy Costs,UTILITIES
http://thanet.gov.uk/supplierspend,Thanet District Council,05/03/2019,470502,2032.26,,Southern Electric,SEL007,Deputy Chief Executive/S151,Revenue,Energy Costs,UTILITIES
http://thanet.gov.uk/supplierspend,Thanet District Council,05/03/2019,470504,613.91,,Southern Electric,SEL007,Dir Ops/Commercial Serv,Revenue,Energy Costs,UTILITIES
http://thanet.gov.uk/supplierspend,Thanet District Council,05/03/2019,470641,1072.44,,Southern Electric,SEL007,Dir Ops/Commercial Serv,Revenue,Energy Costs,UTILITIES
http://thanet.gov.uk/supplierspend,Thanet District Council,05/03/2019,470642,1784.96,,Southern Electric,SEL007,Deputy Chief Executive/S151,Revenue,Energy Costs,UTILITIES
http://thanet.gov.uk/supplierspend,Thanet District Council,05/03/2019,470643,6536.29,,Southern Electric,SEL007,Deputy Chief Executive/S151,Revenue,Energy Costs,UTILITIES
http://thanet.gov.uk/supplierspend,Thanet District Council,05/03/2019,470648,568.12,,Southern Electric,SEL007,Dir Ops/Commercial Serv,Revenue,Energy Costs,UTILITIES
http://thanet.gov.uk/supplierspend,Thanet District Council,05/03/2019,470653,2536.57,,Southern Electric,SEL007,Deputy Chief Executive/S151,Revenue,Energy Costs,UTILITIES
http://thanet.gov.uk/supplierspend,Thanet District Council,05/03/2019,470654,2908.71,,Southern Electric,SEL007,Deputy Chief Executive/S151,Revenue,Energy Costs,UTILITIES
http://thanet.gov.uk/supplierspend,Thanet District Council,05/03/2019,470659,1108.17,,Southern Electric,SEL007,Dir Ops/Commercial Serv,Revenue,Energy Costs,UTILITIES
http://thanet.gov.uk/supplierspend,Thanet District Council,05/03/2019,470663,4349.65,,Southern Electric,SEL007,Dir Ops/Commercial Serv,Revenue,Energy Costs,UTILITIES
http://thanet.gov.uk/supplierspend,Thanet District Council,05/03/2019,470831,-3033.97,,Southern Electric,SEL007,Dir Ops/Commercial Serv,Revenue,Energy Costs,UTILITIES
http://thanet.gov.uk/supplierspend,Thanet District Council,05/03/2019,470832,-3033.97,,Southern Electric,SEL007,Dir Ops/Commercial Serv,Revenue,Energy Costs,UTILITIES
http://thanet.gov.uk/supplierspend,Thanet District Council,05/03/2019,470209,828.72,,Standfast Burglar Alarm Co (Ek) Ltd,STA003,Dir Ops/Commercial Serv,Revenue,"Equip, Furniture And Materials",FACILITIES AND MANGEMENT SERV
http://thanet.gov.uk/supplierspend,Thanet District Council,05/03/2019,469135,9356.5,,Veale Wasbrough Vizards Llp,VEA001,Dir Ops/Commercial Serv,Revenue,Services,LEGAL SERVICES
http://thanet.gov.uk/supplierspend,Thanet District Council,05/03/2019,470741,4622.97,,Vodafone Limited,VOD001,Director of Corporate Resources and S151,Balance Sheet,Mobile Phone Holding A/C,ICT
http://thanet.gov.uk/supplierspend,Thanet District Council,05/03/2019,469311,2600,,Wallace Print Limited,WAL034,Dir Ops/Commercial Serv,Revenue,Miscellaneous Expenses,FACILITIES AND MANGEMENT SERV
http://thanet.gov.uk/supplierspend,Thanet District Council,05/03/2019,470064,1923.2,,Your Leisure Kent Limited,YOU016,Deputy Chief Executive/S151,Revenue,Services,ARTS AND LEISURE SERVICES
http://thanet.gov.uk/supplierspend,Thanet District Council,08/03/2019,470576,650,,Bradstowe Chartered Surveyors,BRA027,Director Of Corp Gov/Mon Off,Revenue,Services,FACILITIES AND MANGEMENT SERV
http://thanet.gov.uk/supplierspend,Thanet District Council,08/03/2019,469833,5392.5,,Business Computer Solutions Ltd,BUS002,Director Of Corp Gov/Mon Off,Revenue,Communications & Computing,ICT
http://thanet.gov.uk/supplierspend,Thanet District Council,08/03/2019,470613,966.33,,Calibre Cleaning Ltd,CAL010,Director Of Corp Gov/Mon Off,Revenue,Cleaning & Domestic Supplies,CLEANING AND JANITORIAL
http://thanet.gov.uk/supplierspend,Thanet District Council,08/03/2019,470672,2650.53,,Canon (Uk) Ltd,CAN021,Director Of Corp Gov/Mon Off,Revenue,"Equip, Furniture And Materials",FACILITIES AND MANGEMENT SERV
http://thanet.gov.uk/supplierspend,Thanet District Council,08/03/2019,471149,1216.86,,Centurylink Communications Uk Ltd,CEN021,Director of Corporate Resources and S151,Balance Sheet,Telephone Holding Account,ICT
http://thanet.gov.uk/supplierspend,Thanet District Council,08/03/2019,470231,1800,,Cipfa Business Ltd,CIP008,Deputy Chief Executive/S151,Revenue,Grants & Subscriptions,FINANCIAL SERVICES
http://thanet.gov.uk/supplierspend,Thanet District Council,08/03/2019,470557,6487.56,,Dcb (Kent) Ltd,DCB001,Director of Corporate Resources and S151,Balance Sheet,Repairs And Mtce Holding A/C,CONSTRUCTION-REPAIR AND MAINT
http://thanet.gov.uk/supplierspend,Thanet District Council,08/03/2019,470559,2704.34,,Dcb (Kent) Ltd,DCB001,Director of Corporate Resources and S151,Balance Sheet,Repairs And Mtce Holding A/C,CONSTRUCTION-REPAIR AND MAINT
http://thanet.gov.uk/supplierspend,Thanet District Council,08/03/2019,470562,2898.63,,Dcb (Kent) Ltd,DCB001,Director of Corporate Resources and S151,Balance Sheet,Repairs And Mtce Holding A/C,CONSTRUCTION-REPAIR AND MAINT
http://thanet.gov.uk/supplierspend,Thanet District Council,08/03/2019,471168,2300,,Dolphin Lifts Kent,DOL003,Director of Corporate Resources and S151,Balance Sheet,Capital Exp-Non Council Assets,GRANTS
http://thanet.gov.uk/supplierspend,Thanet District Council,08/03/2019,470583,4506,,Dover District Council,DOV001,Deputy Chief Executive/S151,Revenue,Services,VARIOUS CATS-PUBLIC SECTOR
http://thanet.gov.uk/supplierspend,Thanet District Council,08/03/2019,470514,1052.19,,Elec-Sec Ltd,ELE014,Director Of Corp Gov/Mon Off,Revenue,"Repairs,  Alter & Mtce - Build",BUILDING CONSTRUCTION MATERIAL
http://thanet.gov.uk/supplierspend,Thanet District Council,08/03/2019,470517,1689.75,,Elec-Sec Ltd,ELE014,Director Of Corp Gov/Mon Off,Revenue,"Repairs,  Alter & Mtce - Build",BUILDING CONSTRUCTION MATERIAL
http://thanet.gov.uk/supplierspend,Thanet District Council,08/03/2019,469814,983.11,,Electrical Lighting Solutions Ltd,ELE013,Dir Ops/Commercial Serv,Revenue,"Repairs,  Alter & Mtce - Build",BUILDING CONSTRUCTION MATERIAL
http://thanet.gov.uk/supplierspend,Thanet District Council,08/03/2019,471172,8909.19,,Evermech Services Ltd,EVE011,Director of Corporate Resources and S151,Balance Sheet,Capital Exp-Non Council Assets,GRANTS
http://thanet.gov.uk/supplierspend,Thanet District Council,08/03/2019,470699,3969,,Farrer Barnes Limited,FAR012,Deputy Chief Executive/S151,Revenue,Services,HUMAN RESOURCES
http://thanet.gov.uk/supplierspend,Thanet District Council,08/03/2019,470068,2380,,Giant Campus Limited,GIA001,Dir Ops/Commercial Serv,Revenue,Services,HUMAN RESOURCES
http://thanet.gov.uk/supplierspend,Thanet District Council,08/03/2019,469548,570,,Griffiths & Nielsen Limited,GRI022,Dir Ops/Commercial Serv,Revenue,"Equip, Furniture And Materials",ENVIRONMENTAL SERVICES
http://thanet.gov.uk/supplierspend,Thanet District Council,08/03/2019,471006,2737.9,,Heath Lambert Limited (Client Money),HEA011,Dir Ops/Commercial Serv,Revenue,Transport Insurance,FINANCIAL SERVICES
http://thanet.gov.uk/supplierspend,Thanet District Council,08/03/2019,470593,511.13,,Hr Go (Kent) Ltd,HRG001,Director Of Corp Gov/Mon Off,Revenue,Agency Staff,HUMAN RESOURCES
http://thanet.gov.uk/supplierspend,Thanet District Council,08/03/2019,471151,911.5,,John Gale,GAL001,Director of Corporate Resources and S151,Balance Sheet,Capital Exp-Non Council Assets,GRANTS
http://thanet.gov.uk/supplierspend,Thanet District Council,08/03/2019,471175,1046.55,,John Gale,GAL001,Director of Corporate Resources and S151,Balance Sheet,Capital Exp-Non Council Assets,GRANTS
http://thanet.gov.uk/supplierspend,Thanet District Council,08/03/2019,471083,8200,,Keep Britain Tidy,KEE011,Dir Ops/Commercial Serv,Revenue,Grants & Subscriptions,HUMAN RESOURCES
http://thanet.gov.uk/supplierspend,Thanet District Council,08/03/2019,469800,2661.22,,Kent County Council (Kcs),KCC003,Director Of Corp Gov/Mon Off,Revenue,Energy Costs,FACILITIES AND MANGEMENT SERV
http://thanet.gov.uk/supplierspend,Thanet District Council,08/03/2019,470238,4535,,Local Government Futures Ltd,LOC013,Deputy Chief Executive/S151,Revenue,Grants & Subscriptions,CONSULTANCY
http://thanet.gov.uk/supplierspend,Thanet District Council,08/03/2019,469801,432,,Main Man Supplies Ltd,MAI001,Dir Ops/Commercial Serv,Revenue,"Clothes, Uniforms & Laundry",CLOTHING
http://thanet.gov.uk/supplierspend,Thanet District Council,08/03/2019,470241,444.85,,Mears Ltd,MEA003,Director Of Corp Gov/Mon Off,Revenue,"Repairs,  Alter & Mtce - Build",CONSTRUCTION-REPAIR AND MAINT
http://thanet.gov.uk/supplierspend,Thanet District Council,08/03/2019,470241,964.44,,Mears Ltd,MEA003,Dir Ops/Commercial Serv,Revenue,"Repairs,  Alter & Mtce - Build",CONSTRUCTION-REPAIR AND MAINT
http://thanet.gov.uk/supplierspend,Thanet District Council,08/03/2019,470569,475.81,,Mears Ltd,MEA003,Director Of Corp Gov/Mon Off,Revenue,"Repairs,  Alter & Mtce - Build",CONSTRUCTION-REPAIR AND MAINT
http://thanet.gov.uk/supplierspend,Thanet District Council,08/03/2019,470569,546.54,,Mears Ltd,MEA003,Dir Ops/Commercial Serv,Revenue,"Repairs,  Alter & Mtce - Build",CONSTRUCTION-REPAIR AND MAINT
http://thanet.gov.uk/supplierspend,Thanet District Council,08/03/2019,470549,413.33,,Mr Darren Osborne,OSB008,Director Of Corp Gov/Mon Off,Revenue,Cleaning & Domestic Supplies,CLEANING AND JANITORIAL
http://thanet.gov.uk/supplierspend,Thanet District Council,08/03/2019,470549,94.17,,Mr Darren Osborne,OSB008,Dir Ops/Commercial Serv,Revenue,Cleaning & Domestic Supplies,CLEANING AND JANITORIAL
http://thanet.gov.uk/supplierspend,Thanet District Council,08/03/2019,470787,1033.25,,National Express Ltd,NAT010,Dir Ops/Commercial Serv,Revenue,Services,AGENCY PAYMENTS
http://thanet.gov.uk/supplierspend,Thanet District Council,08/03/2019,471153,9115,,Northwood Builders,NOR002,Director of Corporate Resources and S151,Balance Sheet,Capital Exp-Non Council Assets,GRANTS
http://thanet.gov.uk/supplierspend,Thanet District Council,08/03/2019,471161,897.92,,Peabody South East Limited,PEA024,Director of Corporate Resources and S151,Balance Sheet,Capital Exp-Non Council Assets,GRANTS
http://thanet.gov.uk/supplierspend,Thanet District Council,08/03/2019,471166,1145.8,,Peabody South East Limited,PEA024,Director of Corporate Resources and S151,Balance Sheet,Capital Exp-Non Council Assets,GRANTS
http://thanet.gov.uk/supplierspend,Thanet District Council,08/03/2019,471169,1073.1,,Peabody South East Limited,PEA024,Director of Corporate Resources and S151,Balance Sheet,Capital Exp-Non Council Assets,GRANTS
http://thanet.gov.uk/supplierspend,Thanet District Council,08/03/2019,470544,1295,,Reed Specialist Recruitment Ltd,REE015,Deputy Chief Executive/S151,Revenue,Agency Staff,HUMAN RESOURCES
http://thanet.gov.uk/supplierspend,Thanet District Council,08/03/2019,469780,600,,Salmestone Grange Ltd,SAL007,Director Of Corp Gov/Mon Off,Revenue,Rents,FACILITIES AND MANGEMENT SERV
http://thanet.gov.uk/supplierspend,Thanet District Council,08/03/2019,471128,4058.54,,Scottish Water Business Stream Ltd,SCO019,Dir Ops/Commercial Serv,Revenue,Water Services,UTILITIES
http://thanet.gov.uk/supplierspend,Thanet District Council,08/03/2019,470235,3254,,Securitas Security Services (Uk) Ltd,SEC019,Director Of Corp Gov/Mon Off,Revenue,Services,FACILITIES AND MANGEMENT SERV
http://thanet.gov.uk/supplierspend,Thanet District Council,08/03/2019,471058,564.45,,Southern Electric,SEL007,Director Of Corp Gov/Mon Off,Revenue,Energy Costs,UTILITIES
http://thanet.gov.uk/supplierspend,Thanet District Council,08/03/2019,471059,3711.9,,Southern Electric,SEL007,Dir Ops/Commercial Serv,Revenue,Energy Costs,UTILITIES
http://thanet.gov.uk/supplierspend,Thanet District Council,08/03/2019,471060,502.18,,Southern Electric,SEL007,Director Of Corp Gov/Mon Off,Revenue,Energy Costs,UTILITIES
http://thanet.gov.uk/supplierspend,Thanet District Council,08/03/2019,471145,1680.55,,Southern Electric,SEL007,Deputy Chief Executive/S151,Revenue,Energy Costs,UTILITIES
http://thanet.gov.uk/supplierspend,Thanet District Council,08/03/2019,470523,6006.71,,Specialist Building Products Ltd,SPE027,Director of Corporate Resources and S151,Balance Sheet,Repairs And Mtce Holding A/C,BUILDING CONSTRUCTION MATERIAL
http://thanet.gov.uk/supplierspend,Thanet District Council,08/03/2019,469552,603,,Streetmaster (S.Wales) Limited,STR001,Dir Ops/Commercial Serv,Revenue,"Equip, Furniture And Materials",HIGHWAY EQUIPMENT AND MATERIAL
http://thanet.gov.uk/supplierspend,Thanet District Council,08/03/2019,469554,610.5,,Streetmaster (S.Wales) Limited,STR001,Dir Ops/Commercial Serv,Revenue,"Equip, Furniture And Materials",HIGHWAY EQUIPMENT AND MATERIAL
http://thanet.gov.uk/supplierspend,Thanet District Council,08/03/2019,469555,633,,Streetmaster (S.Wales) Limited,STR001,Dir Ops/Commercial Serv,Revenue,"Equip, Furniture And Materials",HIGHWAY EQUIPMENT AND MATERIAL
http://thanet.gov.uk/supplierspend,Thanet District Council,08/03/2019,469556,748,,Streetmaster (S.Wales) Limited,STR001,Dir Ops/Commercial Serv,Revenue,"Equip, Furniture And Materials",HIGHWAY EQUIPMENT AND MATERIAL
http://thanet.gov.uk/supplierspend,Thanet District Council,08/03/2019,470246,445,,Survey And Test,SUR015,Director Of Corp Gov/Mon Off,Revenue,"Repairs,  Alter & Mtce - Build",UTILITIES
http://thanet.gov.uk/supplierspend,Thanet District Council,08/03/2019,468888,1650,,The Fulker Consultancy Limited,FUL005,Director of Corporate Resources and S151,Balance Sheet,Repairs And Mtce Holding A/C,CONSULTANCY
http://thanet.gov.uk/supplierspend,Thanet District Council,08/03/2019,471150,4640,,Trueden Disability Adaptations Ltd,TRU012,Director of Corporate Resources and S151,Balance Sheet,Capital Exp-Non Council Assets,GRANTS
http://thanet.gov.uk/supplierspend,Thanet District Council,08/03/2019,471158,3320.52,,Trueden Disability Adaptations Ltd,TRU012,Director of Corporate Resources and S151,Balance Sheet,Capital Exp-Non Council Assets,GRANTS
http://thanet.gov.uk/supplierspend,Thanet District Council,08/03/2019,471165,7482.69,,Trueden Disability Adaptations Ltd,TRU012,Director of Corporate Resources and S151,Balance Sheet,Capital Exp-Non Council Assets,GRANTS
http://thanet.gov.uk/supplierspend,Thanet District Council,08/03/2019,471005,114797.51,,Veale Wasbrough Vizards Llp,VEA001,Director of Corporate Resources and S151,Balance Sheet,Council Dwellings,LEGAL SERVICES
http://thanet.gov.uk/supplierspend,Thanet District Council,08/03/2019,469650,463,,Watling Tyre Service Ltd,WAT003,Dir Ops/Commercial Serv,Revenue,"Equip, Furniture And Materials",VEHICLE MANAGEMENT
http://thanet.gov.uk/supplierspend,Thanet District Council,08/03/2019,471001,469098.77,,Zurich Insurance Plc,ZUR007,Director of Corporate Resources and S151,Balance Sheet,Insurance Holding Account,FINANCIAL SERVICES
http://thanet.gov.uk/supplierspend,Thanet District Council,08/03/2019,471002,20067.13,,Zurich Insurance Plc,ZUR007,Director of Corporate Resources and S151,Balance Sheet,Insurance Holding Account,FINANCIAL SERVICES
http://thanet.gov.uk/supplierspend,Thanet District Council,08/03/2019,471003,4385.47,,Zurich Insurance Plc,ZUR007,Director of Corporate Resources and S151,Balance Sheet,Insurance Holding Account,FINANCIAL SERVICES
http://thanet.gov.uk/supplierspend,Thanet District Council,08/03/2019,471004,60393.75,,Zurich Insurance Plc,ZUR007,Director of Corporate Resources and S151,Balance Sheet,Insurance Holding Account,FINANCIAL SERVICES
http://thanet.gov.uk/supplierspend,Thanet District Council,13/03/2019,471217,2700,,A2b Technology (Uk) Ltd,A2B001,Director Of Corp Gov/Mon Off,Revenue,Communications & Computing,ICT
http://thanet.gov.uk/supplierspend,Thanet District Council,13/03/2019,471373,812,,Aston Walker,AST008,Dir Ops/Commercial Serv,Revenue,Services,CEMETERY AND CREMATORIUM
http://thanet.gov.uk/supplierspend,Thanet District Council,13/03/2019,470777,2319.86,,Business Computer Solutions Ltd,BUS002,Director Of Corp Gov/Mon Off,Revenue,Fixtures & Fittings,ICT
http://thanet.gov.uk/supplierspend,Thanet District Council,13/03/2019,470961,45.41,,Cannon Hygiene Limited,CAN030,Dir Ops/Commercial Serv,Revenue,Fixtures & Fittings,ENVIRONMENTAL SERVICES
http://thanet.gov.uk/supplierspend,Thanet District Council,13/03/2019,470961,1927.77,,Cannon Hygiene Limited,CAN030,Dir Ops/Commercial Serv,Revenue,Services,ENVIRONMENTAL SERVICES
http://thanet.gov.uk/supplierspend,Thanet District Council,13/03/2019,470520,447.06,,Castle Automotive & Eng Supp Ltd,CAS024,Dir Ops/Commercial Serv,Revenue,"Equip, Furniture And Materials",VEHICLE MANAGEMENT
http://thanet.gov.uk/supplierspend,Thanet District Council,13/03/2019,470807,1964.61,,Channel Commercials Plc,CCO001,Dir Ops/Commercial Serv,Revenue,Direct Transport Costs,VEHICLE MANAGEMENT
http://thanet.gov.uk/supplierspend,Thanet District Council,13/03/2019,470775,595,,Chapel Print Limited,CHA069,Dir Ops/Commercial Serv,Revenue,Miscellaneous Expenses,STATIONERY
http://thanet.gov.uk/supplierspend,Thanet District Council,13/03/2019,470776,2600,,Chapel Print Limited,CHA069,Dir Ops/Commercial Serv,Revenue,Miscellaneous Expenses,STATIONERY
http://thanet.gov.uk/supplierspend,Thanet District Council,13/03/2019,471539,51891,,Citizens Advice Thanet,CIT016,Deputy Chief Executive/S151,Revenue,Grants & Subscriptions,HUMAN RESOURCES
